Workbook

Sheet GUIDE TO KSB MAPPING
A1: GUIDE TO KSB MAPPING
A2: Applicants must show how their qualification will enable a person to demonstrate that they have attained as many of the knowledge, skills and behaviours set out in the standard as may be reasonably expected by undertaking a course of education.
A4: 1. You can map your qualification to one or more occupational standards.
A5: 2. Select the occupational standard(s) you wish to map to your qualification from the tabs in this spreadsheet. You may delete sheets/tabs that are not relevant to your qualification.
A6: 3. Please fill in the following details in cells B1-7 on your selected tab: Awarding Body/Applicant, Qualification name, Programme title if applicable.
A7: 4. Please respond to each KSB statement.
A8: 5. Populate columns C-G (or I-M for ST0475; E-I for ST0588, ST0624, ST0847; H-L for ST0605) as shown in the example at the top of each standard tab.
A9: 6. Please be as specific as possible about which content in the qualification aligns to each KSB statement.
A10: 7. Submit the completed spreadsheet along with 'Qualification structure' spreadsheet and any documents you have cited in the 'EVIDENCE UPLOAD' part of the application form. Where we have capacity we are happy to feedback on early drafts of your KSB mapping.
A11: 8. Please contact HTQ.approvals@education.gov.uk if you need further help or guidance on mapping.

Sheet ST0406
B1: START HERE
B2: Awarding body/Applicant:
B3: Please type the name of awarding body/applicant here
B4: Qualification name:
B5: Please type your qualification title here
B6: Programme title if applicable:
B7: Please type the programme title here
A10: EXAMPLE OF KSB MAPPING
A11: KSB | B11: KSB Statement | C11: KSB coverage Select the coverage provided by the qualification from the dropdown box | D11: Where in the qualification is the relevant content? Please reference precisely where the content you are citing as evidence is within the submitted documents - Document name/Module name/Specific page number | E11: Evidence Quote or copy & paste the relevant content from your referenced qualification documents. Please provide 1 - 3 references that best evidence the KSB and only refer to content that all students will cover regardless of option choice. The information you supply in this column, in conjunction with the Supporting Comments / Rationale column (Column F) should clearly and explicitly demonstrate the declared level of KSB coverage. | F11: Supporting Comments/Rationale Where the evidence in Column E does not clearly and explicitly provide the declared level of coverage or might not be obvious to someone who is not an expert in your qualification, use this space to explain how the level of KSB coverage is achieved by the qualification content - please be specific to the wording and meaning of the KSB statement. Where a KSB is not fully met, please provide the rationale for why you feel this is not achievable. | G11: Assessment method Provide information on the method(s) used to assess this KSB and relevant assessment materials.
A12: K7 | B12: Safe and professional working practices including health, safety, environment and legislative requirements relevant to the sector, the organisation and own role | C12: FULLY MET | D12: Qualification specification, pg 14-16 Module 2: Health, safety and professional working practices, pg 6 | E12: Module 2: LO1 - Understand the importance of health and safety in the workplace. LO2 - Understand the application of health and safety legislation in the workplace. LO3 - Understand how to apply safe working practices to work activities. Indicative content: local, regional, national health & safety regulations, codes of practice, site safety, health & safety promotion, health & safety measures, PPE, manual handling, equipment management, waste disposal, risk management, risk assessment | F12: Learners will be able to show a full understanding of Health & Safety and legislative requirements relevant to the role. The indicative content on Pg 16 of the qualification specification shows they will cover Health & Safety across the wider sector, and then identify some measures that may be specific to certain organisations. Learners will also analyse the role of the employer and the environment with regards to applying Health & Safety working practices and processes. | G12: Module 2 - students will produce a written report using a brief. There is also a short answer paper. Module 2 Assessment Brief pg 7-8 refers.
A13: S23 | B13: Communicate effectively (verbal, non-verbal, written, digital) in manner relevant to the target audience | C13: FULLY MET | D13: Qualification specification, pg 21-22 Module 6: The Fundamentals of Practice, pg 12 Module 9: Personal and Professional Development Skills, pg 11 | E13: Module 6: LO2 - Know how to use digital devices and databases relevant to your workplace. Module 9: LO1 - Understand the uses of different methods of communication. LO3 - Be able to communicate effectively with different audiences. Indicative content: verbal and non-verbal communication skills, presentation skills, academic and non-academic writing style, writing skills | F13: Learners will cover verbal, non-verbal, written and digital communications, and demonstrate practical skills by completing assessment tasks which will include simulated work environments and preparing presentations targeting different audiences. Learners will develop the skills to communicate with people in a professional capacity including co-workers, line managers, clients, contractors and the public. | G13: Module 6 - case study. Module 9 - scenarios in simulated work environment, students will produce presentation. Module 9 assessment pg 4.
B18: Vehicle damage assessor (level 4)
B19: Return to Guide
A20: KSB | B20: KSB Statement | C20: KSB coverage Select the coverage provided by the qualification from the dropdown box | D20: Where in the qualification is the relevant content? Please reference precisely where the content you are citing as evidence is within the submitted documents - Document name/Module name/Specific page number | E20: Evidence Quote or copy & paste the relevant content from your referenced qualification documents. Please provide 1 - 3 references that best evidence the KSB and only refer to content that all students will cover regardless of option choice. The information you supply in this column, in conjunction with the Supporting Comments / Rationale column (Column F) should clearly and explicitly demonstrate the declared level of KSB coverage. | F20: Supporting Comments/Rationale Where the evidence in Column E does not clearly and explicitly provide the declared level of coverage or might not be obvious to someone who is not an expert in your qualification, use this space to explain how the level of KSB coverage is achieved by the qualification content - please be specific to the wording and meaning of the KSB statement. Where a KSB is not fully met, please provide the rationale for why you feel this is not achievable. | G20: Assessment method Provide information on the method(s) used to assess this KSB and relevant assessment materials. | I20: AB Score | J20: IM Score | K20: Mitigations | L20: CoE Score | M20: Outstanding Requirement | N20: IM Comment | O20: IM moderation | P20: G7 QA | Q20: IM G7 Response | R20: Conclusion
B21: Knowledge
A22: K1 | B22: Vehicles construction and materials | I22: =IF(C22:C38 = "FULLY MET",1,IF(C22:C38 = "PARTIALLY MET",0.5,IF(C22:C38 = "NOT MET",0,))) -> 0 | K22: NONE | L22: =IF(J22=1,1,IF(J22=0.5,0.5,IF(J22=0,0))) -> 0 | M22: =IF(L22=1,"NONE",IF(L22=0.5,"PARTIAL",IF(L22=0,"FULL"))) -> FULL
A23: K2 | B23: Steering, suspension and braking, systems and operations | I23: 0 | K23: NONE | L23: 0 | M23: FULL
A24: K3 | B24: Transmission and drivelines | I24: 0 | K24: NONE | L24: 0 | M24: FULL
A25: K4 | B25: The principles of electrical systems | I25: 0 | K25: NONE | L25: 0 | M25: FULL
A26: K5 | B26: Electrical/electronic components | I26: 0 | K26: NONE | L26: 0 | M26: FULL
A27: K6 | B27: Vehicle safety systems | I27: 0 | K27: NONE | L27: 0 | M27: FULL
A28: K7 | B28: Tools and equipment used in the process | I28: 0 | K28: NONE | L28: 0 | M28: FULL
A29: K8 | B29: Understand current Health & Safety legislation in the workplace | I29: 0 | K29: NONE | L29: 0 | M29: FULL
A30: K9 | B30: The structure of their organisation or workplace | I30: 0 | K30: NONE | L30: 0 | M30: FULL
A31: K10 | B31: The importance of teamwork in the workplace | I31: 0 | K31: NONE | L31: 0 | M31: FULL
A32: K11 | B32: How to communicate effectively | I32: 0 | K32: NONE | L32: 0 | M32: FULL
A33: K12 | B33: Up to date vehicle repair technologies including Paint, Panel and MET | I33: 0 | K33: NONE | L33: 0 | M33: FULL
A34: K13 | B34: Good understanding of commercial aspects of a body shop | I34: 0 | K34: NONE | L34: 0 | M34: FULL
A35: K14 | B35: How to produce a job card | I35: 0 | K35: NONE | L35: 0 | M35: FULL
A36: K15 | B36: Non-accidental related damage | I36: 0 | K36: NONE | L36: 0 | M36: FULL
A37: K16 | B37: Electronic costings systems | I37: 0 | K37: NONE | L37: 0 | M37: FULL
A38: K17 | B38: Industry vehicle Repair methods | I38: 0 | K38: NONE | L38: 0 | M38: FULL
B39: Skills
A40: S1 | B40: Recognise properties of different types of vehicle damage | I40: =IF(C40:C53 = "FULLY MET",1,IF(C40:C53 = "PARTIALLY MET",0.5,IF(C40:C53 = "NOT MET",0,))) -> 0 | K40: NONE | L40: =IF(J40=1,1,IF(J40=0.5,0.5,IF(J40=0,0))) -> 0 | M40: =IF(L40=1,"NONE",IF(L40=0.5,"PARTIAL",IF(L40=0,"FULL"))) -> FULL
A41: S2 | B41: Maintain records | I41: 0 | K41: NONE | L41: 0 | M41: FULL
A42: S3 | B42: Use manual and digital image technology | I42: 0 | K42: NONE | L42: 0 | M42: FULL
A43: S4 | B43: Locate vehicle unique identification details | I43: 0 | K43: NONE | L43: 0 | M43: FULL
A44: S5 | B44: Diagnose safety faults on vehicles | I44: 0 | K44: NONE | L44: 0 | M44: FULL
A45: S6 | B45: Read, adhere to and apply relevant legislation | I45: 0 | K45: NONE | L45: 0 | M45: FULL
A46: S7 | B46: Use repair methods | I46: 0 | K46: NONE | L46: 0 | M46: FULL
A47: S8 | B47: Make judgements on vehicle damage, taking into account safety and cost | I47: 0 | K47: NONE | L47: 0 | M47: FULL
A48: S9 | B48: Commercial decision making | I48: 0 | K48: NONE | L48: 0 | M48: FULL
A49: S10 | B49: Prepare costings based on parts and labour ratios | I49: 0 | K49: NONE | L49: 0 | M49: FULL
A50: S11 | B50: Oral communication, listening and negotiation skills | I50: 0 | K50: NONE | L50: 0 | M50: FULL
A51: S12 | B51: Use industry guidelines appropriately | I51: 0 | K51: NONE | L51: 0 | M51: FULL
A52: S13 | B52: Recognises importance of gaining approval before work commences | I52: 0 | K52: NONE | L52: 0 | M52: FULL
A53: S14 | B53: Use of estimating software, spreadsheets, on-line databases | I53: 0 | K53: NONE | L53: 0 | M53: FULL
B54: Behaviours
A55: B1 | B55: Customer focussed – demonstrate behaviour that puts the customer first | I55: =IF(C55:C61 = "FULLY MET",1,IF(C55:C61 = "PARTIALLY MET",0.5,IF(C55:C61 = "NOT MET",0,))) -> 0 | K55: NONE | L55: =IF(J55=1,1,IF(J55=0.5,0.5,IF(J55=0,0))) -> 0 | M55: =IF(L55=1,"NONE",IF(L55=0.5,"PARTIAL",IF(L55=0,"FULL"))) -> FULL
A56: B2 | B56: A right first time approach committed to delivering and maintaining high quality workplace standards | I56: 0 | K56: NONE | L56: 0 | M56: FULL
A57: B3 | B57: A calm and reasoned approach | I57: 0 | K57: NONE | L57: 0 | M57: FULL
A58: B4 | B58: A professional approach, demonstrates integrity and confidence in daily activities | I58: 0 | K58: NONE | L58: 0 | M58: FULL
A59: B5 | B59: Adherence to company values, shows passion and enthusiasm for the industry | I59: 0 | K59: NONE | L59: 0 | M59: FULL
A60: B6 | B60: Take responsibility for health and safety | I60: 0 | K60: NONE | L60: 0 | M60: FULL
A61: B7 | B61: Attention to detail | I61: 0 | K61: NONE | L61: 0 | M61: FULL
I64: Gross score | J64: =SUM(J22:J61) -> 0 | K64: Net Score | L64: =SUM(L22:L61) -> 0
I65: total KSB coverage | J65: =J64/L68 -> 0 | K65: total CoE KSB coverage | L65: =L64/L71 -> 0
K68: total KSBs | L68: 38
K69: fully mitigated | L69: 0
K70: partially mitigated | L70: 0
K71: net KSB | L71: =L68-L69-(L70*0.5) -> 38

Sheet ST0475
B1: START HERE
B2: Awarding body/Applicant:
B3: Please type the name of awarding body/applicant here
B4: Qualification name:
B5: Please type your qualification title here
B6: Programme title if applicable:
B7: Please type the programme title here
A10: EXAMPLE OF KSB MAPPING
A11: KSB | B11: KSB Statement (this list contains the core KSBs for the Electrical power networks engineer occupation, plus the specific KSBs for Asset Management Engineer, Planning Engineer, Design Engineer, Control Engineer, Electrical Project Engineer and Operational Delivery Engineer options) | C11: Included in: | I11: KSB coverage Select the coverage provided by the qualification from the dropdown box | J11: Where in the qualification is the relevant content? Please reference precisely where the content you are citing as evidence is within the submitted documents - Document name/Module name/Specific page number | K11: Evidence Quote or copy & paste the relevant content from your referenced qualification documents. Please provide 1 - 3 references that best evidence the KSB and only refer to content that all students will cover regardless of option choice. The information you supply in this column, in conjunction with the Supporting Comments / Rationale column (Column L) should clearly and explicitly demonstrate the declared level of KSB coverage. | L11: Supporting Comments/Rationale Where the evidence in Column K does not clearly and explicitly provide the declared level of coverage or might not be obvious to someone who is not an expert in your qualification, use this space to explain how the level of KSB coverage is achieved by the qualification content - please be specific to the wording and meaning of the KSB statement. Where a KSB is not fully met, please provide the rationale for why you feel this is not achievable. | M11: Assessment method Provide information on the method(s) used to assess this KSB and relevant assessment materials.
C12: Electrical power networks engineer (level 4) - Asset Management Engineer | D12: Electrical power networks engineer (level 4) - Planning Engineer | E12: Electrical power networks engineer (level 4) - Design Engineer | F12: Electrical power networks engineer (level 4) - Control Engineer | G12: Electrical power networks engineer (level 4) - Electrical Project Engineer | H12: Electrical power networks engineer (level 4) - Operational Delivery Engineer
A13: K7 | B13: Safe and professional working practices including health, safety, environment and legislative requirements relevant to the sector, the organisation and own role | C13: YES | D13: YES | E13: YES | F13: YES | G13: YES | H13: YES | I13: FULLY MET | J13: Qualification specification, pg 14-16 Module 2: Health, safety and professional working practices, pg 6 | K13: Module 2: LO1 - Understand the importance of health and safety in the workplace. LO2 - Understand the application of health and safety legislation in the workplace. LO3 - Understand how to apply safe working practices to work activities. Indicative content: local, regional, national health & safety regulations, codes of practice, site safety, health & safety promotion, health & safety measures, PPE, manual handling, equipment management, waste disposal, risk management, risk assessment | L13: Learners will be able to show a full understanding of Health & Safety and legislative requirements relevant to the role. The indicative content on Pg 16 of the qualification specification shows they will cover Health & Safety across the wider sector, and then identify some measures that may be specific to certain organisations. Learners will also analyse the role of the employer and the environment with regards to applying Health & Safety working practices and processes. | M13: Module 2 - students will produce a written report using a brief. There is also a short answer paper. Module 2 Assessment Brief pg 7-8 refers.
A14: S23 | B14: Communicate effectively (verbal, non-verbal, written, digital) in manner relevant to the target audience | C14: YES | D14: YES | E14: YES | F14: YES | G14: YES | H14: YES | I14: FULLY MET | J14: Qualification specification, pg 21-22 Module 6: The Fundamentals of Practice, pg 12 Module 9: Personal and Professional Development Skills, pg 11 | K14: Module 6: LO2 - Know how to use digital devices and databases relevant to your workplace. Module 9: LO1 - Understand the uses of different methods of communication. LO3 - Be able to communicate effectively with different audiences. Indicative content: verbal and non-verbal communication skills, presentation skills, academic and non-academic writing style, writing skills | L14: Learners will cover verbal, non-verbal, written and digital communications, and demonstrate practical skills by completing assessment tasks which will include simulated work environments and preparing presentations targeting different audiences. Learners will develop the skills to communicate with people in a professional capacity including co-workers, line managers, clients, contractors and the public. | M14: Module 6 - case study. Module 9 - scenarios in simulated work environment, students will produce presentation. Module 9 assessment pg 4.
B19: Electrical power networks engineer (level 4)
B20: Return to Guide
B21: Six options are available (columns C-H). Please check if the KSB needs to be mapped against the option of your choice. If you map against two or more options and the evidence is different for each option please mark which evidence corresponds to which option.
A24: KSB | B24: KSB Statement (this list contains the core KSBs for the Electrical power networks engineer occupation, plus the specific KSBs for Asset Management Engineer, Planning Engineer, Design Engineer, Control Engineer, Electrical Project Engineer and Operational Delivery Engineer options) | C24: Included in: | I24: KSB coverage Select the coverage provided by the qualification from the dropdown box | J24: Where in the qualification is the relevant content? Please reference precisely where the content you are citing as evidence is within the submitted documents - Document name/Module name/Specific page number | K24: Evidence Quote or copy & paste the relevant content from your referenced qualification documents. Please provide 1 - 3 references that best evidence the KSB and only refer to content that all students will cover regardless of option choice. The information you supply in this column, in conjunction with the Supporting Comments / Rationale column (Column L) should clearly and explicitly demonstrate the declared level of KSB coverage. | L24: Supporting Comments/Rationale Where the evidence in Column K does not clearly and explicitly provide the declared level of coverage or might not be obvious to someone who is not an expert in your qualification, use this space to explain how the level of KSB coverage is achieved by the qualification content - please be specific to the wording and meaning of the KSB statement. Where a KSB is not fully met, please provide the rationale for why you feel this is not achievable. | M24: Assessment method Provide information on the method(s) used to assess this KSB and relevant assessment materials. | O24: AB Score | P24: IM Score | Q24: Mitigations | R24: CoE Score | S24: Outstanding Requirement | T24: IM Comment | U24: IM moderation | V24: G7 QA | W24: IM G7 Response | X24: Conclusion
B25: Knowledge - an Electrical Power Network Engineer understands: | C25: Electrical power networks engineer (level 4) - Asset Management Engineer | D25: Electrical power networks engineer (level 4) - Planning Engineer | E25: Electrical power networks engineer (level 4) - Design Engineer | F25: Electrical power networks engineer (level 4) - Control Engineer | G25: Electrical power networks engineer (level 4) - Electrical Project Engineer | H25: Electrical power networks engineer (level 4) - Operational Delivery Engineer
A26: K1 | B26: Electrical power principles: alternating current/direct current theories; dynamic/static engineering systems; application of electrical and electronic circuit theory; the use of complex wave forms | C26: YES | D26: YES | E26: YES | F26: YES | G26: YES | H26: YES | O26: =IF(I26:I35 = "FULLY MET",1,IF(I26:I35 = "PARTIALLY MET",0.5,IF(I26:I35 = "NOT MET",0,))) -> 0 | Q26: NONE | R26: =IF(P26=1,1,IF(P26=0.5,0.5,IF(P26=0,0))) -> 0 | S26: =IF(R26=1,"NONE",IF(R26=0.5,"PARTIAL",IF(R26=0,"FULL"))) -> FULL
A27: K2 | B27: Three-phase systems with consideration being given to harmonics and their effects and the methods of power distribution | C27: YES | D27: YES | E27: YES | F27: YES | G27: YES | H27: YES | O27: 0 | Q27: NONE | R27: 0 | S27: FULL
A28: K3 | B28: Electricity network design, capabilities, complexities, operations and topologies; operation and limitations of plant and equipment | C28: YES | D28: YES | E28: YES | F28: YES | G28: YES | H28: YES | O28: 0 | Q28: NONE | R28: 0 | S28: FULL
A29: K4 | B29: The operation of the electricity network in normal and fault conditions | C29: YES | D29: YES | E29: YES | F29: YES | G29: YES | H29: YES | O29: 0 | Q29: NONE | R29: 0 | S29: FULL
A30: K5 | B30: Safe systems of work and risk management; the application of Electricity Supply Standards, Regulations including environmental requirements. These are Health and Safety at Work Act 1974, Electricity at Work Regulations 1989, Management of Health & Safety at Work Regulations 2003, Control of Substances Hazardous to Health (COSHH) Regulations 2002, The Electricity Safety, Quality and Continuity Regulations 2002, The Environmental Protection Act 1990 | C30: YES | D30: YES | E30: YES | F30: YES | G30: YES | H30: YES | O30: 0 | Q30: NONE | R30: 0 | S30: FULL
A31: K6 | B31: Company requirements with regard to project management tools, techniques and processes | C31: YES | D31: YES | E31: YES | F31: YES | G31: YES | H31: YES | O31: 0 | Q31: NONE | R31: 0 | S31: FULL
A32: K7 | B32: Company engineering policies appropriate to their role | C32: YES | D32: YES | E32: YES | F32: YES | G32: YES | H32: YES | O32: 0 | Q32: NONE | R32: 0 | S32: FULL
A33: K8 | B33: Engineering problems including how to identify the problem, gather and analyse all relevant information, provide and implement a workable solution and monitoring its effectiveness | C33: YES | D33: YES | E33: YES | F33: YES | G33: YES | H33: YES | O33: 0 | Q33: NONE | R33: 0 | S33: FULL
A34: K9 | B34: Company business planning and resource control measures | C34: YES | D34: YES | E34: YES | F34: YES | G34: YES | H34: YES | O34: 0 | Q34: NONE | R34: 0 | S34: FULL
A35: K10 | B35: The key interfaces of the electricity network and the impact of those interfaces | C35: YES | D35: YES | E35: YES | F35: YES | G35: YES | H35: YES | O35: 0 | Q35: NONE | R35: 0 | S35: FULL
B36: Skills - an Electrical Power Network Engineer will apply their knowledge of the electricity network to safely perform their activities. This requires them to:
A37: S1 | B37: Comply with company and Industry health, safety and environmental standards, regulations, company operating procedures and working practices | C37: YES | D37: YES | E37: YES | F37: YES | G37: YES | H37: YES | O37: =IF(I37:I89 = "FULLY MET",1,IF(I37:I89 = "PARTIALLY MET",0.5,IF(I37:I89 = "NOT MET",0,))) -> 0 | Q37: NONE | R37: =IF(P37=1,1,IF(P37=0.5,0.5,IF(P37=0,0))) -> 0 | S37: =IF(R37=1,"NONE",IF(R37=0.5,"PARTIAL",IF(R37=0,"FULL"))) -> FULL
A38: S2 | B38: Ensure that all safety considerations are incorporated and evident in all working practices | C38: YES | D38: YES | E38: YES | F38: YES | G38: YES | H38: YES | O38: 0 | Q38: NONE | R38: =IF(P38=1,1,IF(P38=0.5,0.5,IF(P38=0,0))) -> 0 | S38: =IF(R38=1,"NONE",IF(R38=0.5,"PARTIAL",IF(R38=0,"FULL"))) -> FULL
A39: S3 | B39: Apply asset management, design, planning, control, electrical project or operational engineering principles, as appropriate to their role, to maintain and improve the integrity, safety and longevity of the transmission/distribution electrical network | C39: YES | D39: YES | E39: YES | F39: YES | G39: YES | H39: YES | O39: 0 | Q39: NONE | R39: 0 | S39: FULL
A40: S4 | B40: Produce timely communications providing information to stakeholders both in writing and verbally in relation to their role activities | C40: YES | D40: YES | E40: YES | F40: YES | G40: YES | H40: YES | O40: 0 | Q40: NONE | R40: 0 | S40: FULL
A41: S5 | B41: Read, understand and interpret technical information relative to their role, identified in company strategies and policies and work in compliance with technical specifications | C41: YES | D41: YES | E41: YES | F41: YES | G41: YES | H41: YES | O41: 0 | Q41: PARTIAL | R41: =IF(P41=1,0.5,IF(P41=0.5,0.5,IF(P41=0,0))) -> 0 | S41: =IF(R41=0.5,"NONE",IF(R41=0,"PARTIAL")) -> PARTIAL
A42: S6 | B42: Produce clear and precise reports in relation to their activities to line management, other business departments and to external stakeholders | C42: YES | D42: YES | E42: YES | F42: YES | G42: YES | H42: YES | O42: 0 | Q42: NONE | R42: 0 | S42: FULL
A43: S7 | B43: Develop and agree project plans to undertake their activities. These plans will contain clear objectives, budgets, desired outcomes and timescales. Also included will be implementation criteria, monitoring process controls and evaluation records | C43: YES | D43: YES | E43: YES | F43: YES | G43: YES | H43: YES | O43: 0 | Q43: NONE | R43: 0 | S43: FULL
A44: S8 | B44: Use company IT systems to provide accurate and reliable data to support business decisions | C44: YES | D44: YES | E44: YES | F44: YES | G44: YES | H44: YES | O44: 0 | Q44: NONE | R44: 0 | S44: FULL
A45: S9 | B45: Demonstrate that their work activities supports the business to achieve its regulatory incentive mechanisms | C45: YES | D45: YES | E45: YES | F45: YES | G45: YES | H45: YES | O45: 0 | Q45: NONE | R45: 0 | S45: FULL
A46: S10 | B46: Provide information to support business planning processes in relation to their role activities. | C46: YES | D46: YES | E46: YES | F46: YES | G46: YES | H46: YES | O46: 0 | Q46: NONE | R46: 0 | S46: FULL
A47: S11 | B47: Uses company risk tools and techniques to evaluate and predict the reliability of engineering systems and equipment | C47: YES | D47: YES | E47: YES | F47: YES | G47: YES | H47: YES | O47: 0 | Q47: NONE | R47: 0 | S47: FULL
A48: S12 | B48: Support the development of innovative policy solutions to best serve the needs of customers and stakeholders | C48: YES | D48: NO | E48: NO | F48: NO | G48: NO | H48: NO | O48: 0 | Q48: NONE | R48: 0 | S48: FULL
A49: S13 | B49: Plan, develop and produce long term network reinforcement plans taking into account emerging technologies and projected future load requirements | C49: YES | D49: NO | E49: NO | F49: NO | G49: NO | H49: NO | O49: 0 | Q49: NONE | R49: 0 | S49: FULL
A50: S14 | B50: Understand and interpret Regulatory requirements and business plans and contribute to the production of Regulatory technical returns | C50: YES | D50: NO | E50: NO | F50: NO | G50: NO | H50: NO | O50: 0 | Q50: NONE | R50: 0 | S50: FULL
A51: S15 | B51: Assimilate complex external information to inform company decisions | C51: YES | D51: NO | E51: NO | F51: NO | G51: NO | H51: NO | O51: 0 | Q51: NONE | R51: 0 | S51: FULL
A52: S16 | B52: Evaluate plant and equipment proposals and recommend company approaches | C52: YES | D52: NO | E52: NO | F52: NO | G52: NO | H52: NO | O52: 0 | Q52: NONE | R52: 0 | S52: FULL
A53: S17 | B53: Instigate, as appropriate, investigations into asset, systems or process failures as well as undertaking network performance analysis | C53: YES | D53: NO | E53: NO | F53: NO | G53: NO | H53: NO | O53: 0 | Q53: NONE | R53: 0 | S53: FULL
A54: S18 | B54: Support the identification of new and existing innovation projects | C54: YES | D54: NO | E54: NO | F54: NO | G54: NO | H54: NO | O54: 0 | Q54: NONE | R54: 0 | S54: FULL
A55: S19 | B55: Identify the implications of the next generation of low carbon energy and how it influences the way the network is operated | C55: YES | D55: NO | E55: NO | F55: NO | G55: NO | H55: NO | O55: 0 | Q55: NONE | R55: 0 | S55: FULL
A56: S20 | B56: Build and be accountable for a rolling and dynamic plan, including managing conflicts and changes, for all operational and capital works | C56: NO | D56: YES | E56: NO | F56: NO | G56: NO | H56: NO | O56: 0 | Q56: NONE | R56: 0 | S56: FULL
A57: S21 | B57: Prioritise all works to be delivered taking into account capital delivery and contractor resources ensuring that all outcome targets are considered | C57: NO | D57: YES | E57: NO | F57: NO | G57: NO | H57: NO | O57: 0 | Q57: NONE | R57: 0 | S57: FULL
A58: S22 | B58: Ensure area plans are built optimally, utilising resource skill sets and plan the appropriate outages, negotiating and confirming these by utilising the switching matrix | C58: NO | D58: YES | E58: NO | F58: NO | G58: NO | H58: NO | O58: 0 | Q58: NONE | R58: 0 | S58: FULL
A59: S23 | B59: Ensure all risk assessments are initiated in a timely manner, that any constraints are assessed and managed and any mitigating actions are determined | C59: NO | D59: YES | E59: NO | F59: NO | G59: NO | H59: NO | O59: 0 | Q59: NONE | R59: 0 | S59: FULL
A60: S24 | B60: Ensure all planning decisions are documented in the relevant systems and are communicated with reasoning to all relevant stakeholders | C60: NO | D60: YES | E60: NO | F60: NO | G60: NO | H60: NO | O60: 0 | Q60: NONE | R60: 0 | S60: FULL
A61: S25 | B61: Ensure assets are compliant with statutory requirements, company policy obligations and optimal/limit dates and assess asset condition data against maintenance policy risk & criticality criteria | C61: NO | D61: YES | E61: NO | F61: NO | G61: NO | H61: NO | O61: 0 | Q61: PARTIAL | R61: =IF(P61=1,0.5,IF(P61=0.5,0.5,IF(P61=0,0))) -> 0 | S61: =IF(R61=0.5,"NONE",IF(R61=0,"PARTIAL")) -> PARTIAL
A62: S26 | B62: Be accountable for both resource and outage planning ownership and authority of work to be included or removed from the plan | C62: NO | D62: YES | E62: NO | F62: NO | G62: NO | H62: NO | O62: 0 | Q62: NONE | R62: 0 | S62: FULL
A63: S27 | B63: Taking the long term network plan into consideration, translate company strategies into specific designs | C63: NO | D63: NO | E63: YES | F63: NO | G63: NO | H63: NO | O63: 0 | Q63: PARTIAL | R63: =IF(P63=1,0.5,IF(P63=0.5,0.5,IF(P63=0,0))) -> 0 | S63: =IF(R63=0.5,"NONE",IF(R63=0,"PARTIAL")) -> PARTIAL
A64: S28 | B64: Make proposals regarding appropriate plant & equipment to be used and the benefits of the proposals | C64: NO | D64: NO | E64: YES | F64: NO | G64: NO | H64: NO | O64: 0 | Q64: NONE | R64: 0 | S64: FULL
A65: S29 | B65: Undertake all aspects of design from outlines to detailed plans. This involves approvals, wayleaves, consents, appropriate regulations and costing information | C65: NO | D65: NO | E65: YES | F65: NO | G65: NO | H65: NO | O65: 0 | Q65: NONE | R65: 0 | S65: FULL
A66: S30 | B66: Take into account the implications of safety and environmental requirements, statutory and industry standards, technical system requirements and commercial constraints on design plans | C66: NO | D66: NO | E66: YES | F66: NO | G66: NO | H66: NO | O66: 0 | Q66: NONE | R66: 0 | S66: FULL
A67: S31 | B67: Demonstrate the application of appropriate methods to identify correct load calculations and produce network diagrams | C67: NO | D67: NO | E67: YES | F67: NO | G67: NO | H67: NO | O67: 0 | Q67: NONE | R67: 0 | S67: FULL
A68: S32 | B68: Ensure that proposed designs meet commercial, investment requirements and take into account innovation developments | C68: NO | D68: NO | E68: YES | F68: NO | G68: NO | H68: NO | O68: 0 | Q68: NONE | R68: 0 | S68: FULL
A69: S33 | B69: Remotely control the electrical network, in accordance with operating procedures and safety rules to ensure the safe and efficient operation of the power system. | C69: NO | D69: NO | E69: NO | F69: YES | G69: NO | H69: NO | O69: 0 | Q69: NONE | R69: 0 | S69: FULL
A70: S34 | B70: Control all outages and network access requests ensuring risks to the network and system security are minimised | C70: NO | D70: NO | E70: NO | F70: YES | G70: NO | H70: NO | O70: 0 | Q70: NONE | R70: 0 | S70: FULL
A71: S35 | B71: Manage planned and fault operations and activities on the network to provide a safe and secure electricity supply | C71: NO | D71: NO | E71: NO | F71: YES | G71: NO | H71: NO | O71: 0 | Q71: NONE | R71: 0 | S71: FULL
A72: S36 | B72: Undertake work in complex, dynamic and reactive environments and provide technical and operational guidance to the rest of the business. | C72: NO | D72: NO | E72: NO | F72: YES | G72: NO | H72: NO | O72: 0 | Q72: NONE | R72: 0 | S72: FULL
A73: S37 | B73: Agree and co-ordinate the work of others to maximise network availability and minimise network risks | C73: NO | D73: NO | E73: NO | F73: YES | G73: NO | H73: NO | O73: 0 | Q73: NONE | R73: 0 | S73: FULL
A74: S38 | B74: Escalate significant network incidents throughout the business as appropriate and monitoring of real time impacts on the system | C74: NO | D74: NO | E74: NO | F74: YES | G74: NO | H74: NO | O74: 0 | Q74: NONE | R74: 0 | S74: FULL
A75: S39 | B75: Ensure interface arrangements and impact of embedded generation are considered where appropriate | C75: NO | D75: NO | E75: NO | F75: YES | G75: NO | H75: NO | O75: 0 | Q75: NONE | R75: 0 | S75: FULL
A76: S40 | B76: Gain appropriate Control Engineer Authorisation in-line with company requirements | C76: NO | D76: NO | E76: NO | F76: YES | G76: NO | H76: NO | O76: 0 | Q76: NONE | R76: 0 | S76: FULL
A77: S41 | B77: Project manage activities to ensure projects are delivered on time, meet stakeholder and budget requirements | C77: NO | D77: NO | E77: NO | F77: NO | G77: YES | H77: NO | O77: 0 | Q77: NONE | R77: 0 | S77: FULL
A78: S42 | B78: Understand and work to project designs and interpret requirements to fit the specific environment the project is being constructed in | C78: NO | D78: NO | E78: NO | F78: NO | G78: YES | H78: NO | O78: 0 | Q78: NONE | R78: 0 | S78: FULL
A79: S43 | B79: Manage stakeholder relations and produce final construction plans. | C79: NO | D79: NO | E79: NO | F79: NO | G79: YES | H79: NO | O79: 0 | Q79: NONE | R79: 0 | S79: FULL
A80: S44 | B80: Undertake contractor management of external parties, agreeing work specifications, variations and acceptance of work completion in-line with company processes and procedures | C80: NO | D80: NO | E80: NO | F80: NO | G80: YES | H80: NO | O80: 0 | Q80: PARTIAL | R80: =IF(P80=1,0.5,IF(P80=0.5,0.5,IF(P80=0,0))) -> 0 | S80: =IF(R80=0.5,"NONE",IF(R80=0,"PARTIAL")) -> PARTIAL
A81: S45 | B81: Be Authorised to work on the electricity network in-line with company/asset owner requirements | C81: NO | D81: NO | E81: NO | F81: NO | G81: YES | H81: NO | O81: 0 | Q81: NONE | R81: 0 | S81: FULL
A82: S46 | B82: Issue, review and communicate to all site personnel the agreed safe systems of works associated with the activities being carried out. | C82: NO | D82: NO | E82: NO | F82: NO | G82: YES | H82: NO | O82: 0 | Q82: NONE | R82: 0 | S82: FULL
A83: S47 | B83: Ensure the completion of final hand back documentation to the agreed specifications and timescales. | C83: NO | D83: NO | E83: NO | F83: NO | G83: YES | H83: NO | O83: 0 | Q83: NONE | R83: 0 | S83: FULL
A84: S48 | B84: Plan, manage and undertake a range of engineering activities and operations to the electricity network, to meet design, safety, time and commercial requirements | C84: NO | D84: NO | E84: NO | F84: NO | G84: NO | H84: YES | O84: 0 | Q84: NONE | R84: 0 | S84: FULL
A85: S49 | B85: Be Authorised to work on the electricity network in-line with company/asset owner requirements | C85: NO | D85: NO | E85: NO | F85: NO | G85: NO | H85: YES | O85: 0 | Q85: NONE | R85: 0 | S85: FULL
A86: S50 | B86: Understand and take control of reactive activities including testing, inspection and maintenance of appropriate plant and equipment to meet operational requirements | C86: NO | D86: NO | E86: NO | F86: NO | G86: NO | H86: YES | O86: 0 | Q86: NONE | R86: 0 | S86: FULL
A87: S51 | B87: Take responsibility for and control others who may be working on the network | C87: NO | D87: NO | E87: NO | F87: NO | G87: NO | H87: YES | O87: 0 | Q87: NONE | R87: 0 | S87: FULL
A88: S52 | B88: Issue, review and communicate to all site personnel the agreed safe systems of works associated with the activities being carried out | C88: NO | D88: NO | E88: NO | F88: NO | G88: NO | H88: YES | O88: 0 | Q88: NONE | R88: 0 | S88: FULL
A89: S53 | B89: Ensure the completion of final hand back documentation to the agreed specifications and timescales | C89: NO | D89: NO | E89: NO | F89: NO | G89: NO | H89: YES | O89: 0 | Q89: NONE | R89: 0 | S89: FULL
B90: Behaviours
A91: B1 | B91: Health, Safety & Environment – follows health, safety and environmental policies and procedures and is prepared to challenge unsafe behaviour using appropriate techniques to ensure the protection of people and property when working alone and/or with teams. Demonstrates high concentration and the desire to reduce risks through regular monitoring and checking information | C91: YES | D91: YES | E91: YES | F91: YES | G91: YES | H91: YES | O91: =IF(I91:I96 = "FULLY MET",1,IF(I91:I96 = "PARTIALLY MET",0.5,IF(I91:I96 = "NOT MET",0,))) -> 0 | Q91: NONE | R91: =IF(P91=1,1,IF(P91=0.5,0.5,IF(P91=0,0))) -> 0 | S91: =IF(R91=1,"NONE",IF(R91=0.5,"PARTIAL",IF(R91=0,"FULL"))) -> FULL
A92: B2 | B92: Stakeholder management – is proactive in identifying their stakeholders and managing their expectations, presenting appropriate information to them clearly and concisely. | C92: YES | D92: YES | E92: YES | F92: YES | G92: YES | H92: YES | O92: 0 | Q92: NONE | R92: 0 | S92: FULL
A93: B3 | B93: Interpersonal skills - works well with people from different disciplines, backgrounds and expertise. Takes others’ needs and concerns into account and supports them to accomplish an activity safely and on time. | C93: YES | D93: YES | E93: YES | F93: YES | G93: YES | H93: YES | O93: 0 | Q93: NONE | R93: 0 | S93: FULL
A94: B4 | B94: Analysing and solving problems – takes responsibility for solving problems by identifying and analysing the issues and drawing logical, sound solutions that benefit customers and the business. | C94: YES | D94: YES | E94: YES | F94: YES | G94: YES | H94: YES | O94: 0 | Q94: NONE | R94: 0 | S94: FULL
A95: B5 | B95: Risk awareness – has the embedded desire to reduce risks through systematic monitoring and checking of information identifying mitigation actions on an on- going basis to achieve safe systems of work | C95: YES | D95: YES | E95: YES | F95: YES | G95: YES | H95: YES | O95: 0 | Q95: NONE | R95: 0 | S95: FULL
A96: B6 | B96: Planning & organising – takes a forward looking perspective when considering the delivery of decisions, activities and projects and ensure plans are in place to manage anticipated issues, considers contingency planning | C96: YES | D96: YES | E96: YES | F96: YES | G96: YES | H96: YES | O96: 0 | Q96: NONE | R96: =IF(P96=1,1,IF(P96=0.5,0.5,IF(P96=0,0))) -> 0 | S96: =IF(R96=1,"NONE",IF(R96=0.5,"PARTIAL",IF(R96=0,"FULL"))) -> FULL
O99: Electrical power networks engineer (level 4) - Asset Management Engineer
O101: Gross score | P101: =SUM(P26:P35,P37:P55,P91:P96) -> 0 | Q101: Net Score | R101: =SUM(R26:R35,R37:R55,R91:R96) -> 0
O102: total KSB coverage | P102: =P101/R105 -> 0 | Q102: total CoE KSB coverage | R102: =R101/R108 -> 0
Q105: total KSBs | R105: 35
Q106: fully mitigated | R106: 0
Q107: partially mitigated | R107: 1
Q108: net KSB | R108: =R105-R106-(R107*0.5) -> 34.5
O111: Electrical power networks engineer (level 4) - Planning Engineer
O113: Gross score | P113: =SUM(P26:P35,P37:P47,P56:P62,P91:P96) -> 0 | Q113: Net Score | R113: =SUM(R26:R35,R37:R47,R56:R62,R91:R96) -> 0
O114: total KSB coverage | P114: =P113/R117 -> 0 | Q114: total CoE KSB coverage | R114: =R113/R120 -> 0
Q117: total KSBs | R117: 34
Q118: fully mitigated | R118: 0
Q119: partially mitigated | R119: 2
Q120: net KSB | R120: =R117-R118-(R119*0.5) -> 33
O123: Electrical power networks engineer (level 4) - Design Engineer
O125: Gross score | P125: =SUM(P26:P35,P37:P47,P63:P68,P91:P96) -> 0 | Q125: Net Score | R125: =SUM(R35:R38,R37:R47,R63:R68,R91:R96) -> 0
O126: total KSB coverage | P126: =P125/R129 -> 0 | Q126: total CoE KSB coverage | R126: =R125/R132 -> 0
Q129: total KSBs | R129: 33
Q130: fully mitigated | R130: 0
Q131: partially mitigated | R131: 2
Q132: net KSB | R132: =R129-R130-(R131*0.5) -> 32
O135: Electrical power networks engineer (level 4) - Control Engineer
O137: Gross score | P137: =SUM(P26:P35,P37:P47,P69:P76,P91:P96) -> 0 | Q137: Net Score | R137: =SUM(R26:R35,R37:R47,R69:R76,R91:R96) -> 0
O138: total KSB coverage | P138: =P137/R141 -> 0 | Q138: total CoE KSB coverage | R138: =R137/R144 -> 0
Q141: total KSBs | R141: 35
Q142: fully mitigated | R142: 0
Q143: partially mitigated | R143: 1
Q144: net KSB | R144: =R141-R142-(R143*0.5) -> 34.5
O147: Electrical power networks engineer (level 4) - Electrical Project Engineer
O149: Gross score | P149: =SUM(P26:P35,P37:P47,P77:P83,P91:P96) -> 0 | Q149: Net Score | R149: =SUM(R26:R35,R37:R47,R77:R83,R91:R96) -> 0
O150: total KSB coverage | P150: =P149/R153 -> 0 | Q150: total CoE KSB coverage | R150: =R149/R156 -> 0
Q153: total KSBs | R153: 34
Q154: fully mitigated | R154: 0
Q155: partially mitigated | R155: 2
Q156: net KSB | R156: =R153-R154-(R155*0.5) -> 33
O159: Electrical power networks engineer (level 4) - Operational Delivery Engineer
O161: Gross score | P161: =SUM(P26:P35,P37:P47,P84:P89,P91:P96) -> 0 | Q161: Net Score | R161: =SUM(R26:R35,R37:R47,R84:R89,R91:R96) -> 0
O162: total KSB coverage | P162: =P161/R165 -> 0 | Q162: total CoE KSB coverage | R162: =R161/R168 -> 0
Q165: total KSBs | R165: 33
Q166: fully mitigated | R166: 0
Q167: partially mitigated | R167: 1
Q168: net KSB | R168: =R165-R166-(R167*0.5) -> 32.5
O171: TOTAL FOR ALL KBSs
O173: Gross score | P173: =SUM(P26:P96) -> 0 | Q173: Net Score | R173: =SUM(R26:R96) -> 0
O174: total KSB coverage | P174: =P173/R177 -> 0 | Q174: total CoE KSB coverage | R174: =R173/R180 -> 0
Q177: total KSBs | R177: 69
Q178: fully mitigated | R178: 0
Q179: partially mitigated | R179: 4
Q180: net KSB | R180: =R177-R178-(R179*0.5) -> 67

Sheet ST0540
B1: START HERE
B2: Awarding body/Applicant:
B3: Please type the name of awarding body/applicant here
B4: Qualification name:
B5: Please type your qualification title here
B6: Programme title if applicable:
B7: Please type the programme title here
A10: EXAMPLE OF KSB MAPPING
A11: KSB | B11: KSB Statement | C11: KSB coverage Select the coverage provided by the qualification from the dropdown box | D11: Where in the qualification is the relevant content? Please reference precisely where the content you are citing as evidence is within the submitted documents - Document name/Module name/Specific page number | E11: Evidence Quote or copy & paste the relevant content from your referenced qualification documents. Please provide 1 - 3 references that best evidence the KSB and only refer to content that all students will cover regardless of option choice. The information you supply in this column, in conjunction with the Supporting Comments / Rationale column (Column F) should clearly and explicitly demonstrate the declared level of KSB coverage. | F11: Supporting Comments/Rationale Where the evidence in Column E does not clearly and explicitly provide the declared level of coverage or might not be obvious to someone who is not an expert in your qualification, use this space to explain how the level of KSB coverage is achieved by the qualification content - please be specific to the wording and meaning of the KSB statement. Where a KSB is not fully met, please provide the rationale for why you feel this is not achievable. | G11: Assessment method Provide information on the method(s) used to assess this KSB and relevant assessment materials.
A12: K7 | B12: Safe and professional working practices including health, safety, environment and legislative requirements relevant to the sector, the organisation and own role | C12: FULLY MET | D12: Qualification specification, pg 14-16 Module 2: Health, safety and professional working practices, pg 6 | E12: Module 2: LO1 - Understand the importance of health and safety in the workplace. LO2 - Understand the application of health and safety legislation in the workplace. LO3 - Understand how to apply safe working practices to work activities. Indicative content: local, regional, national health & safety regulations, codes of practice, site safety, health & safety promotion, health & safety measures, PPE, manual handling, equipment management, waste disposal, risk management, risk assessment | F12: Learners will be able to show a full understanding of Health & Safety and legislative requirements relevant to the role. The indicative content on Pg 16 of the qualification specification shows they will cover Health & Safety across the wider sector, and then identify some measures that may be specific to certain organisations. Learners will also analyse the role of the employer and the environment with regards to applying Health & Safety working practices and processes. | G12: Module 2 - students will produce a written report using a brief. There is also a short answer paper. Module 2 Assessment Brief pg 7-8 refers.
A13: S23 | B13: Communicate effectively (verbal, non-verbal, written, digital) in manner relevant to the target audience | C13: FULLY MET | D13: Qualification specification, pg 21-22 Module 6: The Fundamentals of Practice, pg 12 Module 9: Personal and Professional Development Skills, pg 11 | E13: Module 6: LO2 - Know how to use digital devices and databases relevant to your workplace. Module 9: LO1 - Understand the uses of different methods of communication. LO3 - Be able to communicate effectively with different audiences. Indicative content: verbal and non-verbal communication skills, presentation skills, academic and non-academic writing style, writing skills | F13: Learners will cover verbal, non-verbal, written and digital communications, and demonstrate practical skills by completing assessment tasks which will include simulated work environments and preparing presentations targeting different audiences. Learners will develop the skills to communicate with people in a professional capacity including co-workers, line managers, clients, contractors and the public. | G13: Module 6 - case study. Module 9 - scenarios in simulated work environment, students will produce presentation. Module 9 assessment pg 4.
B18: Fashion and textiles product technologist (level 4)
B19: Return to Guide
A20: KSB | B20: KSB Statement | C20: KSB coverage Select the coverage provided by the qualification from the dropdown box | D20: Where in the qualification is the relevant content? Please reference precisely where the content you are citing as evidence is within the submitted documents - Document name/Module name/Specific page number | E20: Evidence Quote or copy & paste the relevant content from your referenced qualification documents. Please provide 1 - 3 references that best evidence the KSB and only refer to content that all students will cover regardless of option choice. The information you supply in this column, in conjunction with the Supporting Comments / Rationale column (Column F) should clearly and explicitly demonstrate the declared level of KSB coverage. | F20: Supporting Comments/Rationale Where the evidence in Column E does not clearly and explicitly provide the declared level of coverage or might not be obvious to someone who is not an expert in your qualification, use this space to explain how the level of KSB coverage is achieved by the qualification content - please be specific to the wording and meaning of the KSB statement. Where a KSB is not fully met, please provide the rationale for why you feel this is not achievable. | G20: Assessment method Provide information on the method(s) used to assess this KSB and relevant assessment materials. | I20: AB Score | J20: IM Score | K20: Mitigations | L20: CoE Score | M20: Outstanding Requirement | N20: IM Comment | O20: IM moderation | P20: G7 QA | Q20: IM G7 Response | R20: Conclusion
B21: Knowledge
B22: Supply chain and customer base:
A23: K1 | B23: Different customer requirements e.g. quality standards, product finish, timescale | I23: =IF(C23:C25 = "FULLY MET",1,IF(C23:C25 = "PARTIALLY MET",0.5,IF(C23:C25 = "NOT MET",0,))) -> 0 | K23: NONE | L23: =IF(J23=1,1,IF(J23=0.5,0.5,IF(J23=0,0))) -> 0 | M23: =IF(L23=1,"NONE",IF(L23=0.5,"PARTIAL",IF(L23=0,"FULL"))) -> FULL
A24: K2 | B24: Brand standards and ethics | I24: 0 | K24: NONE | L24: 0 | M24: FULL
A25: K3 | B25: The supply chain; management systems and considerations e.g. sourcing methods service level agreements, problem solving, availability of materials, late deliveries, cost increases | I25: 0 | K25: NONE | L25: 0 | M25: FULL
B26: Materials used in production:
A27: K4 | B27: The properties, behaviour and characteristics of raw materials | I27: =IF(C27:C31 = "FULLY MET",1,IF(C27:C31 = "PARTIALLY MET",0.5,IF(C27:C31 = "NOT MET",0,))) -> 0 | K27: NONE | L27: =IF(J27=1,1,IF(J27=0.5,0.5,IF(J27=0,0))) -> 0 | M27: =IF(L27=1,"NONE",IF(L27=0.5,"PARTIAL",IF(L27=0,"FULL"))) -> FULL
A28: K5 | B28: Fabric and trim analysis to meet design briefs e.g. the function, performance, aesthetics | I28: 0 | K28: NONE | L28: 0 | M28: FULL
A29: K6 | B29: Contingency planning e.g. alternative materials, buttons, trim | I29: 0 | K29: NONE | L29: 0 | M29: FULL
A30: K7 | B30: Testing of materials for suitability in relation to design and function e.g. tension, compression, bending, durability, ductility, impact, creep, wash and fatigue tests | I30: 0 | K30: NONE | L30: 0 | M30: FULL
A31: K8 | B31: Product labelling e.g. regulations, care, size, fibre content | I31: 0 | K31: NONE | L31: 0 | M31: FULL
B32: The product and production process:
A33: K9 | B33: Production and material costs | I33: =IF(C33:C40= "FULLY MET",1,IF(C33:C40 = "PARTIALLY MET",0.5,IF(C33:C40 = "NOT MET",0,))) -> 0 | K33: NONE | L33: =IF(J33=1,1,IF(J33=0.5,0.5,IF(J33=0,0))) -> 0 | M33: =IF(L33=1,"NONE",IF(L33=0.5,"PARTIAL",IF(L33=0,"FULL"))) -> FULL
A34: K10 | B34: Industrial machines and other equipment relevant to the production of products including specialist machinery e.g. cover stitch machines, buttonholers, jigs, blind hemmers, | I34: 0 | K34: NONE | L34: 0 | M34: FULL
A35: K11 | B35: Different manufacturing, procurement and distribution methods | I35: 0 | K35: NONE | L35: 0 | M35: FULL
A36: K12 | B36: Plan production schedules and workloads to meet targets and deadlines | I36: 0 | K36: NONE | L36: 0 | M36: FULL
A37: K13 | B37: The end- to-end main product production process (pattern production, cutting, manufacturing, quality checking, packing and distribution | I37: 0 | K37: NONE | L37: 0 | M37: FULL
A38: K14 | B38: The product life cycle e.g. the period over which an item is developed, brought to market and eventually removed from the market | I38: 0 | K38: NONE | L38: 0 | M38: FULL
A39: K15 | B39: Continual improvement in relation to product and production processes | I39: 0 | K39: NONE | L39: 0 | M39: FULL
A40: K16 | B40: Critical path management processes relevant to product production | I40: 0 | K40: NONE | L40: 0 | M40: FULL
B41: Working practices:
A42: K17 | B42: Review and evaluation of product designs e.g. style, feasibility, cost, fit, size, body shape, foot mechanics | I42: =IF(C42:C54 = "FULLY MET",1,IF(C42:C54 = "PARTIALLY MET",0.5,IF(C42:C54 = "NOT MET",0,))) -> 0 | K42: NONE | L42: =IF(J42=1,1,IF(J42=0.5,0.5,IF(J42=0,0))) -> 0 | M42: =IF(L42=1,"NONE",IF(L42=0.5,"PARTIAL",IF(L42=0,"FULL"))) -> FULL
A43: K18 | B43: Product specifications, quality and compliance requirements | I43: 0 | K43: NONE | L43: 0 | M43: FULL
A44: K19 | B44: Pattern production, sizes, grading and cutting techniques e.g. pattern drafting, sizing, lay planning | I44: 0 | K44: NONE | L44: 0 | M44: FULL
A45: K20 | B45: Manufacturing techniques e.g. assembly sequence, construction methods | I45: 0 | K45: NONE | L45: 0 | M45: FULL
A46: K21 | B46: Different types of product samples e.g. fit, samples proto samples, production samples | I46: 0 | K46: NONE | L46: 0 | M46: FULL
A47: K22 | B47: The sample analysis and review process e.g. fit sessions, user trails, measurements, design and pattern assessment | I47: 0 | K47: NONE | L47: 0 | M47: FULL
A48: K23 | B48: Sample sealing systems e.g. blue, silver, gold seal | I48: 0 | K48: NONE | L48: 0 | M48: FULL
A49: K24 | B49: Risk assessment processes e.g. risk related to safety, colour, cost, time, process | I49: 0 | K49: NONE | L49: 0 | M49: FULL
A50: K25 | B50: Critical path management e.g. managing production deadlines, timescales and target setting | I50: 0 | K50: NONE | L50: 0 | M50: FULL
A51: K26 | B51: Overseas manufacturing implications e.g. lead times, minimum quotes, costs, legislation | I51: 0 | K51: NONE | L51: 0 | M51: FULL
A52: K27 | B52: Returns and faults analysis and the impact of faulty products on future business | I52: 0 | K52: NONE | L52: 0 | M52: FULL
A53: K28 | B53: Logistics and distribution systems e.g. costs, storage, shipping, legislation | I53: 0 | K53: NONE | L53: 0 | M53: FULL
A54: K29 | B54: Information Technology (IT) and administration systems used e.g. tracking systems, production management systems, CAD/CAM (Computer Aided Design/Computer Aided Manufacturing) | I54: 0 | K54: NONE | L54: 0 | M54: FULL
B55: Quality assurance procedures:
A56: K30 | B56: Quality standards and specifications for production e.g. seam types, stitch types, tolerances, product finish | I56: =IF(C56:C59 = "FULLY MET",1,IF(C56:C59 = "PARTIALLY MET",0.5,IF(C56:C59 = "NOT MET",0,))) -> 0 | K56: NONE | L56: =IF(J56=1,1,IF(J56=0.5,0.5,IF(J56=0,0))) -> 0 | M56: =IF(L56=1,"NONE",IF(L56=0.5,"PARTIAL",IF(L56=0,"FULL"))) -> FULL
A57: K31 | B57: Fault finding, diagnosis and rectification procedures e.g. poor fit, sizing, construction or finish | I57: 0 | K57: NONE | L57: 0 | M57: FULL
A58: K32 | B58: Quality approval systems and control processes e.g. Inspection of materials and products during production, checks against specifications, spot checks, end checks | I58: 0 | K58: NONE | L58: 0 | M58: FULL
A59: K33 | B59: International and British quality standards in relation to the manufacture of products e.g. British Standard Institute (BSI), International Organisation of Standardisation (ISO) | I59: 0 | K59: NONE | L59: 0 | M59: FULL
B60: Communication:
A61: K20 | B61: Communication techniques, across all levels and departments involved in the sales, manufacturing and distribution process | I61: =IF(C61:C62 = "FULLY MET",1,IF(C61:C62 = "PARTIALLY MET",0.5,IF(C61:C62 = "NOT MET",0,))) -> 0 | K61: NONE | L61: =IF(J61=1,1,IF(J61=0.5,0.5,IF(J61=0,0))) -> 0 | M61: =IF(L61=1,"NONE",IF(L61=0.5,"PARTIAL",IF(L61=0,"FULL"))) -> FULL
A62: K21 | B62: Technical documents/records and electronic systems and the consequence of incorrectly completed records e.g. tech-packs, specifications, tracking, review notes, product history | I62: 0 | K62: NONE | L62: 0 | M62: FULL
B63: Policies and procedures:
A64: K22 | B64: Health, safety, welfare and environmental policies, safe working practices and risks relevant to a sewn product working environment | I64: =IF(C64:C66 = "FULLY MET",1,IF(C64:C66 = "PARTIALLY MET",0.5,IF(C64:C66 = "NOT MET",0,))) -> 0 | K64: NONE | L64: =IF(J64=1,1,IF(J64=0.5,0.5,IF(J64=0,0))) -> 0 | M64: =IF(L64=1,"NONE",IF(L64=0.5,"PARTIAL",IF(L64=0,"FULL"))) -> FULL
A65: K23 | B65: Employer and employee legal obligations, employees’ rights and responsibilities, equality and diversity | I65: 0 | K65: NONE | L65: 0 | M65: FULL
A66: K24 | B66: Legislation and regulations import regulations, safety regulations, trade regulations, duties and tariffs | I66: 0 | K66: NONE | L66: 0 | M66: FULL
B67: Skills
B68: Develop and review samples:
A69: S1 | B69: Analyse, evaluate and cost the production of given designs and identify possible constraints | I69: =IF(C69:C75 = "FULLY MET",1,IF(C69:C75 = "PARTIALLY MET",0.5,IF(C69:C75 = "NOT MET",0,))) -> 0 | K69: NONE | L69: =IF(J69=1,1,IF(J69=0.5,0.5,IF(J69=0,0))) -> 0 | M69: =IF(L69=1,"NONE",IF(L69=0.5,"PARTIAL",IF(L69=0,"FULL"))) -> FULL
A70: S2 | B70: Develop samples that meets design, end use and specifications. | I70: 0 | K70: NONE | L70: 0 | M70: FULL
A71: S3 | B71: Contribute to fit sessions and production meetings | I71: 0 | K71: NONE | L71: 0 | M71: FULL
A72: S4 | B72: Analyse product samples with focus on quality, fit , risk and production processes e.g. size, shape, materials, timescales and costs | I72: 0 | K72: NONE | L72: 0 | M72: FULL
A73: S5 | B73: Carry out product risk assessments e.g. safety, colour, cost, time, fitness for purpose, production process | I73: 0 | K73: NONE | L73: 0 | M73: FULL
A74: S6 | B74: Approve samples and allocate sample seal if appropriate, maintaining a complete history of the sealing process | I74: 0 | K74: NONE | L74: 0 | M74: FULL
A75: S7 | B75: Oversee material and product tests and analyse test results e.g. performance, function, wash, wearer/user trials | I75: 0 | K75: NONE | L75: 0 | M75: FULL
B76: Support production:
A77: S8 | B77: Develop product tech-packs e.g. specifications, working drawings, measurements, labelling, quality standards, tolerances, materials | I77: =IF(C77:C78 = "FULLY MET",1,IF(C77:C78 = "PARTIALLY MET",0.5,IF(C77:C78 = "NOT MET",0,))) -> 0 | K77: NONE | L77: =IF(J77=1,1,IF(J77=0.5,0.5,IF(J77=0,0))) -> 0 | M77: =IF(L77=1,"NONE",IF(L77=0.5,"PARTIAL",IF(L77=0,"FULL"))) -> FULL
A78: S9 | B78: Ensure legislation and regulation requirements are met e.gimport regulations, safety regulations, trade regulations | I78: 0 | K78: NONE | L78: 0 | M78: FULL
B79: Deal with product faults and returns:
A80: S10 | B80: Conduct product reviews on returned products | I80: =IF(C80:C82 = "FULLY MET",1,IF(C80:C82 = "PARTIALLY MET",0.5,IF(C80:C82 = "NOT MET",0,))) -> 0 | K80: NONE | L80: =IF(J80=1,1,IF(J80=0.5,0.5,IF(J80=0,0))) -> 0 | M80: =IF(L80=1,"NONE",IF(L80=0.5,"PARTIAL",IF(L80=0,"FULL"))) -> FULL
A81: S11 | B81: Analyse product returns and identify potential solutions e.g. change materials, re-cut pattern | I81: 0 | K81: NONE | L81: 0 | M81: FULL
A82: S12 | B82: Complete analysis reports | I82: 0 | K82: NONE | L82: 0 | M82: FULL
B83: Quality Assurance:
A84: S13 | B84: Manage quality problems and eradicate potential issues e.g. fabric, trim, construction faults | I84: =IF(C84:C86 = "FULLY MET",1,IF(C84:C86 = "PARTIALLY MET",0.5,IF(C84:C86 = "NOT MET",0,))) -> 0 | K84: NONE | L84: =IF(J84=1,1,IF(J84=0.5,0.5,IF(J84=0,0))) -> 0 | M84: =IF(L84=1,"NONE",IF(L84=0.5,"PARTIAL",IF(L84=0,"FULL"))) -> FULL
A85: S14 | B85: Contribute to the solution of production issues e.g. thread breakage, missing components | I85: 0 | K85: NONE | L85: 0 | M85: FULL
A86: S15 | B86: Work with the warehouse and distribution systems and processes to ensure, safe, punctual delivery of products | I86: 0 | K86: PARTIAL | L86: =IF(J86=1,0.5,IF(J86=0.5,0.5,IF(J86=0,0))) -> 0 | M86: =IF(L86=0.5,"NONE",IF(L86=0,"PARTIAL")) -> PARTIAL
B87: Communicate effectively:
A88: S16 | B88: Use relevant communication systems and accurately complete work records | I88: =IF(C88 = "FULLY MET",1,IF(C88 = "PARTIALLY MET",0.5,IF(C88 = "NOT MET",0,))) -> 0 | K88: NONE | L88: =IF(J88=1,1,IF(J88=0.5,0.5,IF(J88=0,0))) -> 0 | M88: =IF(L88=1,"NONE",IF(L88=0.5,"PARTIAL",IF(L88=0,"FULL"))) -> FULL
B89: Behaviours
A90: B1 | B90: Take ownership and accept of responsibility for product technology work | I90: =IF(C90:C98 = "FULLY MET",1,IF(C90:C98 = "PARTIALLY MET",0.5,IF(C90:C98 = "NOT MET",0,))) -> 0 | K90: NONE | L90: =IF(J90=1,1,IF(J90=0.5,0.5,IF(J90=0,0))) -> 0 | M90: =IF(L90=1,"NONE",IF(L90=0.5,"PARTIAL",IF(L90=0,"FULL"))) -> FULL
A91: B2 | B91: Strive to improve product quality, production processes and production systems | I91: 0 | K91: NONE | L91: 0 | M91: FULL
A92: B3 | B92: Are responsive to changing priorities and requirements of the product industry, demonstrating initiative, confidence and self-motivation | I92: 0 | K92: NONE | L92: 0 | M92: FULL
A93: B4 | B93: Work positively as part of a team, taking account of equality and diversity | I93: 0 | K93: NONE | L93: 0 | M93: FULL
A94: B5 | B94: Build effective internal and external working relationships, networking across all levels and departments | I94: 0 | K94: NONE | L94: 0 | M94: FULL
A95: B6 | B95: Have a methodical and calm approach to workplace pressure, deadlines and production demands | I95: 0 | K95: NONE | L95: 0 | M95: FULL
A96: B7 | B96: Are assertive, resilient and confident when communicating views and ideas that will benefit the product design and manufacturing process | I96: 0 | K96: NONE | L96: 0 | M96: FULL
A97: B8 | B97: Are reflective on skills, knowledge and behaviours and seek opportunities to develop and advance skills in response to the evolving production environment and technologies | I97: 0 | K97: NONE | L97: 0 | M97: FULL
A98: B9 | B98: Have a safety first attitude, ensuring the safety of self and others as appropriate in a sewn product manufacturing environment | I98: 0 | K98: NONE | L98: 0 | M98: FULL
I101: Gross score | J101: =SUM(J23:J98) -> 0 | K101: Net Score | L101: =SUM(L23:L98) -> 0
I102: total KSB coverage | J102: =J101/L105 -> 0 | K102: total CoE KSB coverage | L102: =L101/L108 -> 0
K105: total KSBs | L105: 49
K106: fully mitigated | L106: 0
K107: partially mitigated | L107: 1
K108: net KSB | L108: =L105-L106-(L107*0.5) -> 48.5

Sheet ST0580
B1: START HERE
B2: Awarding body/Applicant:
B3: Please type the name of awarding body/applicant here
B4: Qualification name:
B5: Please type your qualification title here
B6: Programme title if applicable:
B7: Please type the programme title here
A10: EXAMPLE OF KSB MAPPING
A11: KSB | B11: KSB Statement | C11: KSB coverage Select the coverage provided by the qualification from the dropdown box | D11: Where in the qualification is the relevant content? Please reference precisely where the content you are citing as evidence is within the submitted documents - Document name/Module name/Specific page number | E11: Evidence Quote or copy & paste the relevant content from your referenced qualification documents. Please provide 1 - 3 references that best evidence the KSB and only refer to content that all students will cover regardless of option choice. The information you supply in this column, in conjunction with the Supporting Comments / Rationale column (Column F) should clearly and explicitly demonstrate the declared level of KSB coverage. | F11: Supporting Comments/Rationale Where the evidence in Column E does not clearly and explicitly provide the declared level of coverage or might not be obvious to someone who is not an expert in your qualification, use this space to explain how the level of KSB coverage is achieved by the qualification content - please be specific to the wording and meaning of the KSB statement. Where a KSB is not fully met, please provide the rationale for why you feel this is not achievable. | G11: Assessment method Provide information on the method(s) used to assess this KSB and relevant assessment materials.
A12: K7 | B12: Safe and professional working practices including health, safety, environment and legislative requirements relevant to the sector, the organisation and own role | C12: FULLY MET | D12: Qualification specification, pg 14-16 Module 2: Health, safety and professional working practices, pg 6 | E12: Module 2: LO1 - Understand the importance of health and safety in the workplace. LO2 - Understand the application of health and safety legislation in the workplace. LO3 - Understand how to apply safe working practices to work activities. Indicative content: local, regional, national health & safety regulations, codes of practice, site safety, health & safety promotion, health & safety measures, PPE, manual handling, equipment management, waste disposal, risk management, risk assessment | F12: Learners will be able to show a full understanding of Health & Safety and legislative requirements relevant to the role. The indicative content on Pg 16 of the qualification specification shows they will cover Health & Safety across the wider sector, and then identify some measures that may be specific to certain organisations. Learners will also analyse the role of the employer and the environment with regards to applying Health & Safety working practices and processes. | G12: Module 2 - students will produce a written report using a brief. There is also a short answer paper. Module 2 Assessment Brief pg 7-8 refers.
A13: S23 | B13: Communicate effectively (verbal, non-verbal, written, digital) in manner relevant to the target audience | C13: FULLY MET | D13: Qualification specification, pg 21-22 Module 6: The Fundamentals of Practice, pg 12 Module 9: Personal and Professional Development Skills, pg 11 | E13: Module 6: LO2 - Know how to use digital devices and databases relevant to your workplace. Module 9: LO1 - Understand the uses of different methods of communication. LO3 - Be able to communicate effectively with different audiences. Indicative content: verbal and non-verbal communication skills, presentation skills, academic and non-academic writing style, writing skills | F13: Learners will cover verbal, non-verbal, written and digital communications, and demonstrate practical skills by completing assessment tasks which will include simulated work environments and preparing presentations targeting different audiences. Learners will develop the skills to communicate with people in a professional capacity including co-workers, line managers, clients, contractors and the public. | G13: Module 6 - case study. Module 9 - scenarios in simulated work environment, students will produce presentation. Module 9 assessment pg 4.
B18: Brewer (level 4)
B19: Return to Guide
A20: KSB | B20: KSB Statement | C20: KSB coverage Select the coverage provided by the qualification from the dropdown box | D20: Where in the qualification is the relevant content? Please reference precisely where the content you are citing as evidence is within the submitted documents - Document name/Module name/Specific page number | E20: Evidence Quote or copy & paste the relevant content from your referenced qualification documents. Please provide 1 - 3 references that best evidence the KSB and only refer to content that all students will cover regardless of option choice. The information you supply in this column, in conjunction with the Supporting Comments / Rationale column (Column F) should clearly and explicitly demonstrate the declared level of KSB coverage. | F20: Supporting Comments/Rationale Where the evidence in Column E does not clearly and explicitly provide the declared level of coverage or might not be obvious to someone who is not an expert in your qualification, use this space to explain how the level of KSB coverage is achieved by the qualification content - please be specific to the wording and meaning of the KSB statement. Where a KSB is not fully met, please provide the rationale for why you feel this is not achievable. | G20: Assessment method Provide information on the method(s) used to assess this KSB and relevant assessment materials. | I20: AB Score | J20: IM Score | K20: Mitigations | L20: CoE Score | M20: Outstanding Requirement | N20: IM Comment | O20: IM moderation | P20: G7 QA | Q20: IM G7 Response | R20: Conclusion
B21: Knowledge
A22: K1 | B22: The provenance, quality and characteristics of principle ingredients used for beer production and their combined contribution to beer style and character. | I22: =IF(C22:C34 = "FULLY MET",1,IF(C22:C34 = "PARTIALLY MET",0.5,IF(C22:C34 = "NOT MET",0,))) -> 0 | K22: NONE | L22: =IF(J22=1,1,IF(J22=0.5,0.5,IF(J22=0,0))) -> 0 | M22: =IF(L22=1,"NONE",IF(L22=0.5,"PARTIAL",IF(L22=0,"FULL"))) -> FULL
A23: K2 | B23: Requirements for processing of ingredients prior to use in the brewery. | I23: 0 | K23: NONE | L23: 0 | M23: FULL
A24: K3 | B24: Importance of stock control, handling and storage of ingredients for use in the brewery to preserve ingredient quality and characteristics. | I24: 0 | K24: NONE | L24: 0 | M24: FULL
A25: K4 | B25: Principles of brewing, fermentation, yeast management, conditioning, maturation, stabilisation, clarification, processing and packaging, plant design, operation and the impact of processing conditions on the characteristics, quality and consistency of beer and beer style. | I25: 0 | K25: NONE | L25: 0 | M25: FULL
A26: K5 | B26: Principles and importance of plant hygiene and maintenance on production quality, safety and efficiency. | I26: 0 | K26: NONE | L26: 0 | M26: FULL
A27: K6 | B27: Transport and supply chain conditions, including beer dispense, required to ensure beer quality and consistency from brewery to glass. | I27: 0 | K27: NONE | L27: 0 | M27: FULL
A28: K7 | B28: Brewery monitoring systems to control the quality, consistency and safety of ingredients and raw materials as well as product within the process and at final package. | I28: 0 | K28: NONE | L28: 0 | M28: FULL
A29: K8 | B29: Drivers of brewery operation and performance, including costings, maintaining consistent, high quality and efficient output and process, responding to consumer expectations and developing market trends; financial and business pressures, meeting expectations of responsibility and sustainable production. | I29: 0 | K29: NONE | L29: 0 | M29: FULL
A30: K9 | B30: Commercial awareness of brewery operation and all brewery inputs and outputs. control of costs associated with production in response to drivers of brewery operation and performance, maintaining and upgrading brewery assets, plant and equipment as well as decisions on plant investment and improvements. | I30: 0 | K30: NONE | L30: 0 | M30: FULL
A31: K10 | B31: Sustainability factors and environmental considerations connected with beer production and the supply chain; management and control of waste and effluent throughout production. | I31: 0 | K31: NONE | L31: 0 | M31: FULL
A32: K11 | B32: Regulatory compliance and responsibility associated with beer production, logistics and retail operation. | I32: 0 | K32: NONE | L32: 0 | M32: FULL
A33: K12 | B33: Continuous Improvement (CI) processes, for example knowledge of 5 S, and Plan, Action, Review. | I33: 0 | K33: NONE | L33: 0 | M33: FULL
A34: K13 | B34: The heritage and structure of the beer industry, as well as the significance of changing market trends and drivers of consumer preferences. | I34: 0 | K34: NONE | L34: 0 | M34: FULL
B35: Skills
A36: S1 | B36: Control and safe operation of automated and/or manual plant and equipment required for brewing, fermentation, processing and packaging of beer taking appropriate personal and operational responsibility for health and safety to protect self and others at all times. | I36: =IF(C36:C46 = "FULLY MET",1,IF(C36:C46 = "PARTIALLY MET",0.5,IF(C36:C46 = "NOT MET",0,))) -> 0 | K36: NONE | L36: =IF(J36=1,1,IF(J36=0.5,0.5,IF(J36=0,0))) -> 0 | M36: =IF(L36=1,"NONE",IF(L36=0.5,"PARTIAL",IF(L36=0,"FULL"))) -> FULL
A37: S2 | B37: Maintains accurate records for existing beer recipes and as part of day to day brewhouse and production requirements. | I37: 0 | K37: NONE | L37: 0 | M37: FULL
A38: S3 | B38: Design and adjustment of beer recipes and specifications where necessary. | I38: 0 | K38: NONE | L38: 0 | M38: FULL
A39: S4 | B39: Planning to ensure production schedules are met, with adjustments made in a timely way where necessary. | I39: 0 | K39: NONE | L39: 0 | M39: FULL
A40: S5 | B40: Quality and safety control checks (microbiological, chemical, physical, sensory) and maintains records required for traceability. | I40: 0 | K40: NONE | L40: 0 | M40: FULL
A41: S6 | B41: Monitoring quality control and consistency of ingredients, raw materials and product within the process and at final package and to demonstrate compliance with specification and regulations. | I41: 0 | K41: NONE | L41: 0 | M41: FULL
A42: S7 | B42: Implementation and monitoring of cleaning and sanitation processes intended to ensure plant and process hygiene. | I42: 0 | K42: NONE | L42: 0 | M42: FULL
A43: S8 | B43: Monitoring and maintenance of yeast hygiene, vitality and viability. | I43: 0 | K43: NONE | L43: 0 | M43: FULL
A44: S9 | B44: Use of computer word processing and data manipulation packages. | I44: 0 | K44: NONE | L44: 0 | M44: FULL
A45: S10 | B45: Contribution to CI activities to improve and optimise production processes and troubleshoot/problem solve operational issues. | I45: 0 | K45: NONE | L45: 0 | M45: FULL
A46: S11 | B46: Promotion of the brewery and attributes and characteristics of key brands and styles, when hosting or attending private and/or public events. | I46: 0 | K46: PARTIAL | L46: =IF(J46=1,0.5,IF(J46=0.5,0.5,IF(J46=0,0))) -> 0 | M46: =IF(L46=0.5,"NONE",IF(L46=0,"PARTIAL")) -> PARTIAL
B47: Behaviours
A48: B1 | B48: Leads by example in behaviour and approach to working safely. | I48: =IF(C48:C57 = "FULLY MET",1,IF(C48:C57 = "PARTIALLY MET",0.5,IF(C48:C57 = "NOT MET",0,))) -> 0 | K48: NONE | L48: =IF(J48=1,1,IF(J48=0.5,0.5,IF(J48=0,0))) -> 0 | M48: =IF(L48=1,"NONE",IF(L48=0.5,"PARTIAL",IF(L48=0,"FULL"))) -> FULL
A49: B2 | B49: Passion for the industry and the product; acts as a role model and ambassador for brand and brewery. | I49: 0 | K49: PARTIAL | L49: =IF(J49=1,0.5,IF(J49=0.5,0.5,IF(J49=0,0))) -> 0 | M49: =IF(L49=0.5,"NONE",IF(L49=0,"PARTIAL")) -> PARTIAL
A50: B3 | B50: Demonstrates integrity and confidence in daily activities. | I50: 0 | K50: NONE | L50: =IF(J50=1,1,IF(J50=0.5,0.5,IF(J50=0,0))) -> 0 | M50: =IF(L50=1,"NONE",IF(L50=0.5,"PARTIAL",IF(L50=0,"FULL"))) -> FULL
A51: B4 | B51: Curiosity and desire to innovate and expand knowledge and experience of brewing. | I51: 0 | K51: NONE | L51: 0 | M51: FULL
A52: B5 | B52: Calmly and consistently reacts to information. | I52: 0 | K52: NONE | L52: 0 | M52: FULL
A53: B6 | B53: Committed to delivering and maintaining high-quality product and work place standards. | I53: 0 | K53: NONE | L53: 0 | M53: FULL
A54: B7 | B54: Demonstrates responsibility, personal accountability and professionalism in all aspects of the role. | I54: 0 | K54: NONE | L54: 0 | M54: FULL
A55: B8 | B55: Flexible and adaptable to working environment. | I55: 0 | K55: NONE | L55: 0 | M55: FULL
A56: B9 | B56: Confidently and competently communicates relevant information to team members and others in an appropriate manner. | I56: 0 | K56: NONE | L56: 0 | M56: FULL
A57: B10 | B57: Works collaboratively as part of a team. | I57: 0 | K57: NONE | L57: 0 | M57: FULL
I60: Gross score | J60: =SUM(J22:J57) -> 0 | K60: Net Score | L60: =SUM(L22:L57) -> 0
I61: total KSB coverage | J61: =J60/L64 -> 0 | K61: total CoE KSB coverage | L61: =L60/L67 -> 0
K64: total KSBs | L64: 34
K65: fully mitigated | L65: 0
K66: partially mitigated | L66: 2
K67: net KSB | L67: =L64-L65-(L66*0.5) -> 33

Sheet ST0588
B1: START HERE
B2: Awarding body/Applicant:
B3: Please type the name of awarding body/applicant here
B4: Qualification name:
B5: Please type your qualification title here
B6: Programme title if applicable:
B7: Please type the programme title here
A10: EXAMPLE OF KSB MAPPING
A11: KSB | B11: KSB Statement (this list contains the core KSBs for the Propulsion technician occupation, plus the specific KSBs for Propulsion test technician and Engine build and process technician options) | C11: Included in: | E11: KSB coverage Select the coverage provided by the qualification from the dropdown box | F11: Where in the qualification is the relevant content? Please reference precisely where the content you are citing as evidence is within the submitted documents - Document name/Module name/Specific page number | G11: Evidence Quote or copy & paste the relevant content from your referenced qualification documents. Please provide 1 - 3 references that best evidence the KSB and only refer to content that all students will cover regardless of option choice. The information you supply in this column, in conjunction with the Supporting Comments / Rationale column (Column H) should clearly and explicitly demonstrate the declared level of KSB coverage. | H11: Supporting Comments/Rationale Where the evidence in Column G does not clearly and explicitly provide the declared level of coverage or might not be obvious to someone who is not an expert in your qualification, use this space to explain how the level of KSB coverage is achieved by the qualification content - please be specific to the wording and meaning of the KSB statement. Where a KSB is not fully met, please provide the rationale for why you feel this is not achievable. | I11: Assessment method Provide information on the method(s) used to assess this KSB and relevant assessment materials.
C12: Propulsion technician (level 4) - Propulsion test technician | D12: Propulsion technician (level 4) - Engine build and process technician
A13: K7 | B13: Safe and professional working practices including health, safety, environment and legislative requirements relevant to the sector, the organisation and own role | C13: YES | D13: YES | E13: FULLY MET | F13: Qualification specification, pg 14-16 Module 2: Health, safety and professional working practices, pg 6 | G13: Module 2: LO1 - Understand the importance of health and safety in the workplace. LO2 - Understand the application of health and safety legislation in the workplace. LO3 - Understand how to apply safe working practices to work activities. Indicative content: local, regional, national health & safety regulations, codes of practice, site safety, health & safety promotion, health & safety measures, PPE, manual handling, equipment management, waste disposal, risk management, risk assessment | H13: Learners will be able to show a full understanding of Health & Safety and legislative requirements relevant to the role. The indicative content on Pg 16 of the qualification specification shows they will cover Health & Safety across the wider sector, and then identify some measures that may be specific to certain organisations. Learners will also analyse the role of the employer and the environment with regards to applying Health & Safety working practices and processes. | I13: Module 2 - students will produce a written report using a brief. There is also a short answer paper. Module 2 Assessment Brief pg 7-8 refers.
A14: S23 | B14: Communicate effectively (verbal, non-verbal, written, digital) in manner relevant to the target audience | C14: YES | D14: YES | E14: FULLY MET | F14: Qualification specification, pg 21-22 Module 6: The Fundamentals of Practice, pg 12 Module 9: Personal and Professional Development Skills, pg 11 | G14: Module 6: LO2 - Know how to use digital devices and databases relevant to your workplace. Module 9: LO1 - Understand the uses of different methods of communication. LO3 - Be able to communicate effectively with different audiences. Indicative content: verbal and non-verbal communication skills, presentation skills, academic and non-academic writing style, writing skills | H14: Learners will cover verbal, non-verbal, written and digital communications, and demonstrate practical skills by completing assessment tasks which will include simulated work environments and preparing presentations targeting different audiences. Learners will develop the skills to communicate with people in a professional capacity including co-workers, line managers, clients, contractors and the public. | I14: Module 6 - case study. Module 9 - scenarios in simulated work environment, students will produce presentation. Module 9 assessment pg 4.
B18: Propulsion technician (level 4)
B19: Return to Guide
B20: Two options are available (columns C-D). Please check if the KSB needs to be mapped against the option of your choice. If you map against two options and the evidence is different for each option please mark which evidence corresponds to which option.
A24: KSB | B24: KSB Statement (this list contains the core KSBs for the Propulsion technician occupation, plus the specific KSBs for Propulsion test technician and Engine build and process technician options) | C24: Included in: | E24: KSB coverage Select the coverage provided by the qualification from the dropdown box | F24: Where in the qualification is the relevant content? Please reference precisely where the content you are citing as evidence is within the submitted documents - Document name/Module name/Specific page number | G24: Evidence Quote or copy & paste the relevant content from your referenced qualification documents. Please provide 1 - 3 references that best evidence the KSB and only refer to content that all students will cover regardless of option choice. The information you supply in this column, in conjunction with the Supporting Comments / Rationale column (Column H) should clearly and explicitly demonstrate the declared level of KSB coverage. | H24: Supporting Comments/Rationale Where the evidence in Column G does not clearly and explicitly provide the declared level of coverage or might not be obvious to someone who is not an expert in your qualification, use this space to explain how the level of KSB coverage is achieved by the qualification content - please be specific to the wording and meaning of the KSB statement. Where a KSB is not fully met, please provide the rationale for why you feel this is not achievable. | I24: Assessment method Provide information on the method(s) used to assess this KSB and relevant assessment materials. | K24: AB Score | L24: IM Score | M24: Mitigations | N24: CoE Score | O24: Outstanding Requirement | P24: IM Comment | Q24: IM moderation | R24: G7 QA | S24: IM G7 Response | T24: Conclusion
B25: Knowledge | C25: Propulsion technician (level 4) - Propulsion test technician | D25: Propulsion technician (level 4) - Engine build and process technician
A26: K1 | B26: The statutory and organisation health and safety policies, procedures and regulations that must be adhered to in a propulsion environment | C26: YES | D26: YES | K26: =IF(E26:E51 = "FULLY MET",1,IF(E26:E51 = "PARTIALLY MET",0.5,IF(E26:E51 = "NOT MET",0,))) -> 0 | M26: NONE | N26: =IF(L26=1,1,IF(L26=0.5,0.5,IF(L26=0,0))) -> 0 | O26: =IF(N26=1,"NONE",IF(N26=0.5,"PARTIAL",IF(N26=0,"FULL"))) -> FULL
A27: K2 | B27: The risk assessment process, procedures and documentation used within their own area of responsibility. | C27: YES | D27: YES | K27: 0 | M27: NONE | N27: =IF(L27=1,1,IF(L27=0.5,0.5,IF(L27=0,0))) -> 0 | O27: =IF(N27=1,"NONE",IF(N27=0.5,"PARTIAL",IF(N27=0,"FULL"))) -> FULL
A28: K3 | B28: How to communicate effectively, listen, question, support and mentor others. | C28: YES | D28: YES | K28: 0 | M28: NONE | N28: 0 | O28: FULL
A29: K4 | B29: The relevant internal and external quality standards and procedures that apply to the design, development and manufacture of propulsion systems. | C29: YES | D29: YES | K29: 0 | M29: NONE | N29: 0 | O29: FULL
A30: K5 | B30: The principles and purpose of quality auditing. | C30: YES | D30: YES | K30: 0 | M30: NONE | N30: 0 | O30: FULL
A31: K6 | B31: The core engineering principles such as mathematics, science, mechanical and electrical/electronic applications relevant to their specialism | C31: YES | D31: YES | K31: 0 | M31: NONE | N31: 0 | O31: FULL
A32: K7 | B32: The importance of developing and maintaining Standard Operating Procedures (SOP’s) in order to meet all the relevant requirements, i.e. legal & code of practice. | C32: YES | D32: YES | K32: 0 | M32: NONE | N32: 0 | O32: FULL
A33: K8 | B33: How to prioritise their own and their/team’s workload to ensure that targets are met and to ensure effective use of resource/equipment | C33: YES | D33: YES | K33: 0 | M33: NONE | N33: 0 | O33: FULL
A34: K9 | B34: The various data collection systems used and their formats. | C34: YES | D34: YES | K34: 0 | M34: NONE | N34: 0 | O34: FULL
A35: K10 | B35: The principles and application of Measurement Systems Analysis methods and techniques. | C35: YES | D35: YES | K35: 0 | M35: NONE | N35: 0 | O35: FULL
A36: K11 | B36: How to analyse and interpret first line data accurately in order to, validate quality, draw conclusions, provide recommendations and communicate with others in a recognised format. | C36: YES | D36: YES | K36: 0 | M36: NONE | N36: 0 | O36: FULL
A37: K12 | B37: The use, benefits and applications of continuous improvement techniques and methods for engineering (such as Kaizen and Six Sigma). | C37: YES | D37: YES | K37: 0 | M37: NONE | N37: 0 | O37: FULL
A38: K13 | B38: The importance for organisations to manage and monitor supplier performance ensuring that cost, service, quality and sustainability objectives are being achieved and their responsibilities in that process | C38: YES | D38: YES | K38: 0 | M38: NONE | N38: 0 | O38: FULL
A39: K14 | B39: How to produce accurate, effective and concise plans, presentations and analysis of graphs/charts, process and lessons learnt documents. | C39: YES | D39: YES | K39: 0 | M39: NONE | N39: 0 | O39: FULL
A40: K15 | B40: The Internal and external audit compliance requirements (such as TS16949 and ISO 14001) | C40: YES | D40: YES | K40: 0 | M40: NONE | N40: 0 | O40: FULL
A41: K16 | B41: The criteria used to determine the testing method(s) and equipment to be used. | C41: YES | D41: NO | K41: 0 | M41: NONE | N41: 0 | O41: FULL
A42: K17 | B42: The principles of how to create and edit test scripts to ensure data obtained is valid and reliable | C42: YES | D42: NO | K42: 0 | M42: NONE | N42: 0 | O42: FULL
A43: K18 | B43: The preparation and set up requirements of testing and data collection equipment/ancillary systems. | C43: YES | D43: NO | K43: 0 | M43: NONE | N43: 0 | O43: FULL
A44: K19 | B44: The preparation and set up requirements of propulsion units to be tested. | C44: YES | D44: NO | K44: 0 | M44: NONE | N44: 0 | O44: FULL
A45: K20 | B45: How to run and operate propulsion testing equipment effectively to ensure quality and consistent outcomes including understanding limits of adjustment and parameters for safe running and standardisation. | C45: YES | D45: NO | K45: 0 | M45: NONE | N45: 0 | O45: FULL
A46: K21 | B46: The different types and purpose of the tests that can be carried out on propulsion units/systems being developed such as performance, emissions, climatic, noise, vibration, durability, mechanical, electrical and calibration | C46: YES | D46: NO | K46: 0 | M46: NONE | N46: 0 | O46: FULL
A47: K22 | B47: The importance of ensuring that engines are not contaminated during the build and the implications for the quality of the development programme data if this is not adhered to | C47: NO | D47: YES | K47: 0 | M47: NONE | N47: 0 | O47: FULL
A48: K23 | B48: The importance of adhering to the quality criteria such as setting working clearances and torque settings | C48: NO | D48: YES | K48: 0 | M48: NONE | N48: 0 | O48: FULL
A49: K24 | B49: The different fault diagnostic methods used, their application and selection | C49: NO | D49: YES | K49: 0 | M49: NONE | N49: 0 | O49: FULL
A50: K25 | B50: The methodologies used for part and product quality investigations | C50: NO | D50: YES | K50: 0 | M50: NONE | N50: 0 | O50: FULL
A51: K26 | B51: How to validate tooling and build deviations and associated equipment and instrumentation | C51: NO | D51: YES | K51: 0 | M51: NONE | N51: 0 | O51: FULL
B52: Skills
A53: S1 | B53: Manage risk and the application of Health and Safety within their area of responsibility | C53: YES | D53: YES | K53: =IF(E53:E79 = "FULLY MET",1,IF(E53:E79 = "PARTIALLY MET",0.5,IF(E53:E79 = "NOT MET",0,))) -> 0 | M53: NONE | N53: =IF(L53=1,1,IF(L53=0.5,0.5,IF(L53=0,0))) -> 0 | O53: =IF(N53=1,"NONE",IF(N53=0.5,"PARTIAL",IF(N53=0,"FULL"))) -> FULL
A54: S2 | B54: Communicate effectively, listen, question, support and mentor others, whilst promoting an attention to detail throughout the propulsion development process | C54: YES | D54: YES | K54: 0 | M54: NONE | N54: 0 | O54: FULL
A55: S3 | B55: Manage checks on test or build systems and problem solve where issues arise | C55: YES | D55: YES | K55: 0 | M55: NONE | N55: 0 | O55: FULL
A56: S4 | B56: Demonstrate critical and analytical reasoning, robust planning and task co-ordination | C56: YES | D56: YES | K56: 0 | M56: NONE | N56: 0 | O56: FULL
A57: S5 | B57: Lead the setting up of equipment and ancillary systems used for build or test and where applicable carry out any required modifications | C57: YES | D57: YES | K57: 0 | M57: NONE | N57: 0 | O57: FULL
A58: S6 | B58: Ensure instrumentation captures high quality data in a systematic and repeatable way | C58: YES | D58: YES | K58: 0 | M58: NONE | N58: 0 | O58: FULL
A59: S7 | B59: Carry out checks, measurement and calibration activities following approved procedures and processes | C59: YES | D59: YES | K59: 0 | M59: NONE | N59: 0 | O59: FULL
A60: S8 | B60: Comply with internal processes and procedures to ensure equipment is fit for purpose, maintained correctly and in calibration | C60: YES | D60: YES | K60: 0 | M60: NONE | N60: 0 | O60: FULL
A61: S9 | B61: Monitor and validate test or build data quality | C61: YES | D61: YES | K61: 0 | M61: NONE | N61: 0 | O61: FULL
A62: S10 | B62: Implement proposals for test or build plan modifications based on quality and quantitative data | C62: YES | D62: YES | K62: 0 | M62: NONE | N62: 0 | O62: FULL
A63: S11 | B63: Prioritise test or build output to maximise efficient use of specialist equipment | C63: YES | D63: YES | K63: 0 | M63: NONE | N63: 0 | O63: FULL
A64: S12 | B64: Manage all internal and external customer needs throughout test or build execution | C64: YES | D64: YES | K64: 0 | M64: NONE | N64: 0 | O64: FULL
A65: S13 | B65: Develop procedures and processes necessary to meet all relevant standards and requirements, i.e. legal & code of practice | C65: YES | D65: YES | K65: 0 | M65: NONE | N65: 0 | O65: FULL
A66: S14 | B66: Guide and develop other team members | C66: YES | D66: YES | K66: 0 | M66: NONE | N66: 0 | O66: FULL
A67: S15 | B67: Create internal test or build instructions and process documents. | C67: YES | D67: YES | K67: 0 | M67: NONE | N67: 0 | O67: FULL
A68: S16 | B68: Support the development of proposals to develop new/alternative technologies | C68: YES | D68: YES | K68: 0 | M68: NONE | N68: 0 | O68: FULL
A69: S17 | B69: Lead the preparation and installation activities for propulsion units under test | C69: YES | D69: NO | K69: 0 | M69: NONE | N69: 0 | O69: FULL
A70: S18 | B70: Lead the testing activity ensuring the test is carried out in line with manufacturer instructions and/or company standard operating procedures | C70: YES | D70: NO | K70: 0 | M70: NONE | N70: 0 | O70: FULL
A71: S19 | B71: Check and monitor the test to ensure that it is carried out under the specified conditions set out in the test script/specification | C71: YES | D71: NO | K71: 0 | M71: NONE | N71: 0 | O71: FULL
A72: S20 | B72: Ensure the servicing schedules and maintenance of propulsion testing equipment is carried out in line with manufacturer instructions and/or company standard operating procedures | C72: YES | D72: NO | K72: 0 | M72: NONE | N72: 0 | O72: FULL
A73: S21 | B73: Lead the diagnosis and analysis of any faults found on propulsion units under test | C73: YES | D73: NO | K73: 0 | M73: NONE | N73: 0 | O73: FULL
A74: S22 | B74: Check that all preparation activities to support the prototype engine build development programme have been carried out correctly | C74: NO | D74: YES | K74: 0 | M74: NONE | N74: 0 | O74: FULL
A75: S23 | B75: Ensure that the specified components are available for the build and that they are in a usable condition | C75: NO | D75: YES | K75: 0 | M75: NONE | N75: 0 | O75: FULL
A76: S24 | B76: Lead the build of the prototype/ development engine ensuring it has been built to the correct specification and is ready for testing | C76: NO | D76: YES | K76: 0 | M76: NONE | N76: =IF(L76=1,1,IF(L76=0.5,0.5,IF(L76=0,0))) -> 0 | O76: FULL
A77: S25 | B77: Lead the diagnosis and analysis of any faults identified during the development engine build | C77: NO | D77: YES | K77: 0 | M77: NONE | N77: 0 | O77: FULL
A78: S26 | B78: Lead and support modification activities to improve engine build reliability and performance | C78: NO | D78: YES | K78: 0 | M78: NONE | N78: 0 | O78: FULL
A79: S27 | B79: Lead the validation process for tooling and build deviations and associated equipment/instrumentation | C79: NO | D79: YES | K79: 0 | M79: NONE | N79: 0 | O79: FULL
B80: Behaviours
A81: B1 | B81: Personal Responsibility & Compliance: Complies with statutory and organisational health & safety regulations and policies at all times. Accepts responsibility for their work load with a responsible approach to risk. Continually demonstrates a high level of motivation and resilience when facing challenges | C81: YES | D81: YES | K81: =IF(E81:E85 = "FULLY MET",1,IF(E81:E85 = "PARTIALLY MET",0.5,IF(E81:E85 = "NOT MET",0,))) -> 0 | M81: NONE | N81: =IF(L81=1,1,IF(L81=0.5,0.5,IF(L81=0,0))) -> 0 | O81: =IF(N81=1,"NONE",IF(N81=0.5,"PARTIAL",IF(N81=0,"FULL"))) -> FULL
A82: B2 | B82: Working Effectively in Teams: Create and maintain positive, professional and trusting working relationships with the team and a wide range of internal, external and connected stakeholders. Maintains the highest standards of integrity and ethics in all business relationships. | C82: YES | D82: YES | K82: 0 | M82: NONE | N82: 0 | O82: FULL
A83: B3 | B83: Effective Communication & Interpersonal Skills: Maintain effective partnerships with suppliers and customers through the company processes to achieve sound objectives.Open and honest clear communication using appropriate methods. Always demonstrating a positive and respectful attitude. | C83: YES | D83: YES | K83: 0 | M83: NONE | N83: 0 | O83: FULL
A84: B4 | B84: Quality & Problem Solving: Strong desire to ensure that the root cause of a problem is identified and addressed, continually seeks opportunities to improve quality, speed and efficiency whilst also demonstrating technical leadership. | C84: YES | D84: YES | K84: 0 | M84: NONE | N84: 0 | O84: FULL
A85: B5 | B85: Continuous Personal Development. Reflect on skills, knowledge and behaviours and seeks opportunities to develop, adapt to different situations, environments or technologies and have a positive attitude to feedback and advice | C85: YES | D85: YES | K85: 0 | M85: NONE | N85: 0 | O85: FULL
K88: Propulsion technician (Level 4) - Propulsion test technician
K90: Gross score | L90: =SUM(L26:L46, L53:L73, L81:L85) -> 0 | M90: Net Score | N90: =SUM(N26:N46, N53:N73, N81:N85) -> 0
K91: total KSB coverage | L91: =L90/N94 -> 0 | M91: total CoE KSB coverage | N91: =N90/N97 -> 0
M94: total KSBs | N94: 47
M95: fully mitigated | N95: 0
M96: partially mitigated | N96: 0
M97: net KSB | N97: =N94-N95-(N96*0.5) -> 47
K100: Propulsion technician (Level 4) - Engine build and process technician
K102: Gross score | L102: =SUM(L26:L40, L47:L51, L53:L68, L74:L79, L81:L85) -> 0 | M102: Net Score | N102: =SUM(N26:N40, N47:N51, N53:N68, N74:N79, N81:N85) -> 0
K103: total KSB coverage | L103: =L102/N106 -> 0 | M103: total CoE KSB coverage | N103: =N102/N109 -> 0
M106: total KSBs | N106: 47
M107: fully mitigated | N107: 0
M108: partially mitigated | N108: 0
M109: net KSB | N109: =N106-N107-(N108*0.5) -> 47
K112: TOTAL FOR ALL KBSs
K114: Gross score | L114: =SUM(L26:L85) -> 0 | M114: Net Score | N114: =SUM(N26:N85) -> 0
K115: total KSB coverage | L115: =L114/N118 -> 0 | M115: total CoE KSB coverage | N115: =N114/N121 -> 0
M118: total KSBs | N118: 58
M119: fully mitigated | N119: 0
M120: partially mitigated | N120: 0
M121: net KSB | N121: =N118-N119-(N120*0.5) -> 58

Sheet ST0605
B1: START HERE
B2: Awarding body/Applicant:
B3: Please type the name of awarding body/applicant here
B4: Qualification name:
B5: Please type your qualification title here
B6: Programme title if applicable:
B7: Please type the programme title here
A10: EXAMPLE OF KSB MAPPING
A11: KSB | B11: KSB Statement (this list contains the core KSBs for the Mineral products technician occupation, plus the specific KSBs for Mineral Extraction, Concrete (Readymix and Precast/Prestressed), Cement and cementitious products, Asphalt & Pavements and Clays (Heavy and White) options) | C11: Included in: | H11: KSB coverage Select the coverage provided by the qualification from the dropdown box | I11: Where in the qualification is the relevant content? Please reference precisely where the content you are citing as evidence is within the submitted documents - Document name/Module name/Specific page number | J11: Evidence Quote or copy & paste the relevant content from your referenced qualification documents. Please provide 1 - 3 references that best evidence the KSB and only refer to content that all students will cover regardless of option choice. The information you supply in this column, in conjunction with the Supporting Comments / Rationale column (Column K) should clearly and explicitly demonstrate the declared level of KSB coverage. | K11: Supporting Comments/Rationale Where the evidence in Column J does not clearly and explicitly provide the declared level of coverage or might not be obvious to someone who is not an expert in your qualification, use this space to explain how the level of KSB coverage is achieved by the qualification content - please be specific to the wording and meaning of the KSB statement. Where a KSB is not fully met, please provide the rationale for why you feel this is not achievable. | L11: Assessment method Provide information on the method(s) used to assess this KSB and relevant assessment materials.
C12: Mineral products technician (level 5) - Mineral Extraction | D12: Mineral products technician (level 5) - Concrete (Readymix and Precast/Prestressed) | E12: Mineral products technician (level 5) - Cement and cementitious products | F12: Mineral products technician (level 5) - Asphalt & Pavements | G12: Mineral products technician (level 5) - Clays (Heavy and White)
A13: K7 | B13: Safe and professional working practices including health, safety, environment and legislative requirements relevant to the sector, the organisation and own role | C13: YES | D13: YES | E13: YES | F13: YES | G13: YES | H13: FULLY MET | I13: Qualification specification, pg 14-16 Module 2: Health, safety and professional working practices, pg 6 | J13: Module 2: LO1 - Understand the importance of health and safety in the workplace. LO2 - Understand the application of health and safety legislation in the workplace. LO3 - Understand how to apply safe working practices to work activities. Indicative content: local, regional, national health & safety regulations, codes of practice, site safety, health & safety promotion, health & safety measures, PPE, manual handling, equipment management, waste disposal, risk management, risk assessment | K13: Learners will be able to show a full understanding of Health & Safety and legislative requirements relevant to the role. The indicative content on Pg 16 of the qualification specification shows they will cover Health & Safety across the wider sector, and then identify some measures that may be specific to certain organisations. Learners will also analyse the role of the employer and the environment with regards to applying Health & Safety working practices and processes. | L13: Module 2 - students will produce a written report using a brief. There is also a short answer paper. Module 2 Assessment Brief pg 7-8 refers.
A14: S23 | B14: Communicate effectively (verbal, non-verbal, written, digital) in manner relevant to the target audience | C14: YES | D14: YES | E14: YES | F14: YES | G14: YES | H14: FULLY MET | I14: Qualification specification, pg 21-22 Module 6: The Fundamentals of Practice, pg 12 Module 9: Personal and Professional Development Skills, pg 11 | J14: Module 6: LO2 - Know how to use digital devices and databases relevant to your workplace. Module 9: LO1 - Understand the uses of different methods of communication. LO3 - Be able to communicate effectively with different audiences. Indicative content: verbal and non-verbal communication skills, presentation skills, academic and non-academic writing style, writing skills | K14: Learners will cover verbal, non-verbal, written and digital communications, and demonstrate practical skills by completing assessment tasks which will include simulated work environments and preparing presentations targeting different audiences. Learners will develop the skills to communicate with people in a professional capacity including co-workers, line managers, clients, contractors and the public. | L14: Module 6 - case study. Module 9 - scenarios in simulated work environment, students will produce presentation. Module 9 assessment pg 4.
B18: Mineral products technician (level 5)
B19: Return to Guide
B20: Five options are available (columns C-G). Please check if the KSB needs to be mapped against the option of your choice. If you map against two or more options and the evidence is different for each option please mark which evidence corresponds to which option.
A24: KSB | B24: KSB Statement (this list contains the core KSBs for the Mineral products technician occupation, plus the specific KSBs for Mineral Extraction, Concrete (Readymix and Precast/Prestressed), Cement and cementitious products, Asphalt & Pavements and Clays (Heavy and White) options) | C24: Included in: | H24: KSB coverage Select the coverage provided by the qualification from the dropdown box | I24: Where in the qualification is the relevant content? Please reference precisely where the content you are citing as evidence is within the submitted documents - Document name/Module name/Specific page number | J24: Evidence Quote or copy & paste the relevant content from your referenced qualification documents. Please provide 1 - 3 references that best evidence the KSB and only refer to content that all students will cover regardless of option choice. The information you supply in this column, in conjunction with the Supporting Comments / Rationale column (Column K) should clearly and explicitly demonstrate the declared level of KSB coverage. | K24: Supporting Comments/Rationale Where the evidence in Column J does not clearly and explicitly provide the declared level of coverage or might not be obvious to someone who is not an expert in your qualification, use this space to explain how the level of KSB coverage is achieved by the qualification content - please be specific to the wording and meaning of the KSB statement. Where a KSB is not fully met, please provide the rationale for why you feel this is not achievable. | L24: Assessment method Provide information on the method(s) used to assess this KSB and relevant assessment materials. | N24: AB Score | O24: IM Score | P24: Mitigations | Q24: CoE Score | R24: Outstanding Requirement | S24: IM Comment | T24: IM moderation | U24: G7 QA | V24: IM G7 Response | W24: Conclusion
B25: Knowledge | C25: Mineral products technician (level 5) - Mineral Extraction | D25: Mineral products technician (level 5) - Concrete (Readymix and Precast/Prestressed) | E25: Mineral products technician (level 5) - Cement and cementitious products | F25: Mineral products technician (level 5) - Asphalt & Pavements | G25: Mineral products technician (level 5) - Clays (Heavy and White)
A26: K1 | B26: Relevant Health, Safety Environmental Legislation relevant to their workplace. | C26: YES | D26: YES | E26: YES | F26: YES | G26: YES | N26: =IF(H26:H95 = "FULLY MET",1,IF(H26:H95 = "PARTIALLY MET",0.5,IF(H26:H95 = "NOT MET",0,))) -> 0 | P26: NONE | Q26: =IF(O26=1,1,IF(O26=0.5,0.5,IF(O26=0,0))) -> 0 | R26: =IF(Q26=1,"NONE",IF(Q26=0.5,"PARTIAL",IF(Q26=0,"FULL"))) -> FULL
A27: K2 | B27: The health and safety hazards, major hazards, environmental aspects and risks associated with the operation. | C27: YES | D27: YES | E27: YES | F27: YES | G27: YES | N27: 0 | P27: NONE | Q27: =IF(O27=1,1,IF(O27=0.5,0.5,IF(O27=0,0))) -> 0 | R27: =IF(Q27=1,"NONE",IF(Q27=0.5,"PARTIAL",IF(Q27=0,"FULL"))) -> FULL
A28: K3 | B28: Major hazards associated with the operational site. | C28: YES | D28: YES | E28: YES | F28: YES | G28: YES | N28: 0 | P28: NONE | Q28: 0 | R28: FULL
A29: K4 | B29: Emergency response, process and procedures. | C29: YES | D29: YES | E29: YES | F29: YES | G29: YES | N29: 0 | P29: NONE | Q29: 0 | R29: FULL
A30: K5 | B30: The concepts, theories and practicalities underpinning the safe, efficient operation of the production site | C30: YES | D30: YES | E30: YES | F30: YES | G30: YES | N30: 0 | P30: NONE | Q30: 0 | R30: FULL
A31: K6 | B31: The performance and competency requirements for all operational roles on site including contractors and sub-contractors." | C31: YES | D31: YES | E31: YES | F31: YES | G31: YES | N31: 0 | P31: NONE | Q31: 0 | R31: FULL
A32: K7 | B32: Problem solving tools and techniques. | C32: YES | D32: YES | E32: YES | F32: YES | G32: YES | N32: 0 | P32: NONE | Q32: 0 | R32: FULL
A33: K8 | B33: An understanding of dynamic work Method Statements and Risk Assessments. | C33: YES | D33: YES | E33: YES | F33: YES | G33: YES | N33: 0 | P33: NONE | Q33: 0 | R33: FULL
A34: K9 | B34: Understand the effect of production processes on the supply chain. | C34: YES | D34: YES | E34: YES | F34: YES | G34: YES | N34: 0 | P34: NONE | Q34: 0 | R34: FULL
A35: K10 | B35: Understand the impact of production processes on sustainability | C35: YES | D35: YES | E35: YES | F35: YES | G35: YES | N35: 0 | P35: NONE | Q35: 0 | R35: FULL
A36: K11 | B36: Foundation geo-sciences, such as understanding the geology and chemistry of the materials and its application relevant to the mineral products sector. | C36: YES | D36: YES | E36: YES | F36: YES | G36: YES | N36: 0 | P36: NONE | Q36: 0 | R36: FULL
A37: K12 | B37: The principles of operation of mobile and static plant equipment to produce and process a consistent product to customer and BS EN specifications minimising any waste. | C37: YES | D37: YES | E37: YES | F37: YES | G37: YES | N37: 0 | P37: NONE | Q37: 0 | R37: FULL
A38: K13 | B38: The principles of predictive and preventative maintenance of all mineral products equipment. | C38: YES | D38: YES | E38: YES | F38: YES | G38: YES | N38: 0 | P38: NONE | Q38: 0 | R38: FULL
A39: K14 | B39: Knowledge of relevant quality systems (such as ISO standards) | C39: YES | D39: YES | E39: YES | F39: YES | G39: YES | N39: 0 | P39: NONE | Q39: 0 | R39: FULL
A40: K15 | B40: An understanding of typical customer requirements and constraints | C40: YES | D40: YES | E40: YES | F40: YES | G40: YES | N40: 0 | P40: NONE | Q40: 0 | R40: FULL
A41: K16 | B41: How to establish site costs including cost benefit analysis | C41: YES | D41: YES | E41: YES | F41: YES | G41: YES | N41: 0 | P41: NONE | Q41: 0 | R41: FULL
A42: K17 | B42: Communication techniques, including report writing and methods of making written and oral presentations. | C42: YES | D42: YES | E42: YES | F42: YES | G42: YES | N42: 0 | P42: NONE | Q42: 0 | R42: FULL
A43: K18 | B43: The importance of communicating relevant information with the operational team, customers and all stakeholders. | C43: YES | D43: YES | E43: YES | F43: YES | G43: YES | N43: 0 | P43: NONE | Q43: 0 | R43: FULL
A44: K19 | B44: The importance of liaison with local communities, official bodies and other stakeholders associated with site operations and any impacts they may have. | C44: YES | D44: YES | E44: YES | F44: YES | G44: YES | N44: 0 | P44: NONE | Q44: 0 | R44: FULL
A45: K20 | B45: The minerals extraction processing operations that maximises the use of the resources, maximises products from raw materials, ensures availability of resources and restore spent or worked areas. | C45: YES | D45: NO | E45: NO | F45: NO | G45: NO | N45: 0 | P45: NONE | Q45: 0 | R45: FULL
A46: K21 | B46: The social and economic issues associated with the exploration, exploitation and development of a mineral extraction site. | C46: YES | D46: NO | E46: NO | F46: NO | G46: NO | N46: 0 | P46: NONE | Q46: 0 | R46: FULL
A47: K22 | B47: Different methods of winning and extracting raw material. | C47: YES | D47: NO | E47: NO | F47: NO | G47: NO | N47: 0 | P47: NONE | Q47: 0 | R47: FULL
A48: K23 | B48: Techniques employed to load extracted minerals and viable options to transport extracted minerals and its applications within the industry, including feeding, crushing, screening, washing, separation, classification and beneficiation techniques. | C48: YES | D48: NO | E48: NO | F48: NO | G48: NO | N48: 0 | P48: NONE | Q48: 0 | R48: FULL
A49: K24 | B49: Sustainable development, reclamation of mineral workings, minerals planning, managing waste and an understanding of environmental law and legislation and its implication for the minerals extractive industry. | C49: YES | D49: NO | E49: NO | F49: NO | G49: NO | N49: 0 | P49: NONE | Q49: 0 | R49: FULL
A50: K25 | B50: The requirements of blasting in a safe and environmentally conscious manner, without risk of causing injury or damage whilst optimising overall operating costs. | C50: YES | D50: NO | E50: NO | F50: NO | G50: NO | N50: 0 | P50: NONE | Q50: 0 | R50: FULL
A51: K26 | B51: An understanding of chemical and physical properties of aggregates - their specifications in order to produce aggregates that are fit for purpose and the full range of end uses such as concrete, asphalt or rail ballast. | C51: YES | D51: NO | E51: NO | F51: NO | G51: NO | N51: 0 | P51: NONE | Q51: 0 | R51: FULL
A52: K27 | B52: An in depth understanding of how to sample and test the aggregates, including typical standard deviations and implications of analysis of the final products in use this includes adjusting operations to achieve the required quality levels. | C52: YES | D52: NO | E52: NO | F52: NO | G52: NO | N52: 0 | P52: NONE | Q52: 0 | R52: FULL
A53: K28 | B53: Understand the maintenance processes required to maximise availability and cost base on the range of mobile and static plant including modes of failure, first line maintenance and specific maintenance activities. | C53: YES | D53: NO | E53: NO | F53: NO | G53: NO | N53: 0 | P53: NONE | Q53: 0 | R53: FULL
A54: K29 | B54: Understand the principles required and constraints around both new site planning requirements and planning permissions extensions. | C54: YES | D54: NO | E54: NO | F54: NO | G54: NO | N54: 0 | P54: NONE | Q54: 0 | R54: FULL
A55: K30 | B55: Deep understanding of the Quarry Regulations 1999. | C55: YES | D55: NO | E55: NO | F55: NO | G55: NO | N55: 0 | P55: NONE | Q55: 0 | R55: FULL
A56: K31 | B56: An understanding of fresh and hardened concrete, its constituents, specifications, mix design and its properties, in order to produce concrete that is fit for purpose and durable. | C56: NO | D56: YES | E56: NO | F56: NO | G56: NO | N56: 0 | P56: NONE | Q56: 0 | R56: FULL
A57: K32 | B57: An understanding of how to sample and test the end product in a fresh and hardened state. | C57: NO | D57: YES | E57: NO | F57: NO | G57: NO | N57: 0 | P57: NONE | Q57: 0 | R57: FULL
A58: K33 | B58: Sustainable use of concrete in durable structures and its environmental impact. | C58: NO | D58: YES | E58: NO | F58: NO | G58: NO | N58: 0 | P58: NONE | Q58: 0 | R58: FULL
A59: K34 | B59: Appropriate use of resources, admixtures, additives for constituent materials, and energy consumption. | C59: NO | D59: YES | E59: NO | F59: NO | G59: NO | N59: 0 | P59: NONE | Q59: 0 | R59: FULL
A60: K35 | B60: Cementitious materials including cement replacing materials; natural and recycled aggregates; admixtures; properties of fresh, hardening and hardened concrete for durable structures; standards, specifications and conformity control; production and placing. | C60: NO | D60: YES | E60: NO | F60: NO | G60: NO | N60: 0 | P60: NONE | Q60: 0 | R60: FULL
A61: K36 | B61: Properties of concretes and cementitious mortars used for specialist end uses - including self-compacting, precast and fibre reinforced concrete; and mortars for masonry, render and screed. | C61: NO | D61: YES | E61: NO | F61: NO | G61: NO | N61: 0 | P61: NONE | Q61: 0 | R61: FULL
A62: K37 | B62: Concrete in construction and a deep understanding of reinforced and pre-stressed concrete, including its use in concrete slabs, floors and external paving. | C62: NO | D62: YES | E62: NO | F62: NO | G62: NO | N62: 0 | P62: NONE | Q62: 0 | R62: FULL
A63: K38 | B63: The particular characteristics of fresh concrete required for specialist end uses such as pumped, sprayed, foamed and underwater concrete are also studied. Includes an understanding of the influence of formwork on the surface finish of hardened concrete. | C63: NO | D63: YES | E63: NO | F63: NO | G63: NO | N63: 0 | P63: NONE | Q63: 0 | R63: FULL
A64: K39 | B64: The factors that influence the long term durability of concrete used in structures, including the role of cracks. Compaction of placed product and impacts of the environmental conditions during placement | C64: NO | D64: YES | E64: NO | F64: NO | G64: NO | N64: 0 | P64: NONE | Q64: 0 | R64: FULL
A65: K40 | B65: Methods used to investigate and analyse the causes and extent of deterioration in a concrete structure and how to repair and protect reinforced and pre-stressed concrete structures. | C65: NO | D65: YES | E65: NO | F65: NO | G65: NO | N65: 0 | P65: NONE | Q65: 0 | R65: FULL
A66: K41 | B66: The importance and various methods for curing concrete. | C66: NO | D66: YES | E66: NO | F66: NO | G66: NO | N66: 0 | P66: NONE | Q66: 0 | R66: FULL
A67: K42 | B67: The sequence of activities required to produce cement, including how the raw materials are sourced and blended; the chemical processes in the cement kiln; and the processing and blending of clinker to give the range of cements required by customers. | C67: NO | D67: NO | E67: YES | F67: NO | G67: NO | N67: 0 | P67: NONE | Q67: 0 | R67: FULL
A68: K43 | B68: The complex range of activities and processes that are used in relation to the extracted raw materials and other components required to prepare the dry or semi-dry material known as 'kiln feed. | C68: NO | D68: NO | E68: YES | F68: NO | G68: NO | N68: 0 | P68: NONE | Q68: 0 | R68: FULL
A69: K44 | B69: The balanced and efficient use of different fuels (including waste fuels) and their contribution to the economic and sustainable operation of a Portland cement kiln. | C69: NO | D69: NO | E69: YES | F69: NO | G69: NO | N69: 0 | P69: NONE | Q69: 0 | R69: FULL
A70: K45 | B70: Clinker processing - the processes that grind and blend the output from the cement kiln into a cement that can be sold to the customer in bulk or in packaging. | C70: NO | D70: NO | E70: YES | F70: NO | G70: NO | N70: 0 | P70: NONE | Q70: 0 | R70: FULL
A71: K46 | B71: The safe processes and procedures for site shutdown in both routine and emergency situations. | C71: NO | D71: NO | E71: YES | F71: NO | G71: NO | N71: 0 | P71: NONE | Q71: 0 | R71: FULL
A72: K47 | B72: Effective environmental management in line with the Part A process at the clinker manufacturing facility and also local permits at associated depots, including monitoring and reporting of CO2 and improvements in emissions (such as fugitive or respirable dust and gaseous emissions). | C72: NO | D72: NO | E72: YES | F72: NO | G72: NO | N72: 0 | P72: NONE | Q72: 0 | R72: FULL
A73: K48 | B73: Quality control and end use of cement and cementitious products, including the correct use, maintenance and calibration of equipment, including XRF, chemical and physical testing equipment. | C73: NO | D73: NO | E73: YES | F73: NO | G73: NO | N73: 0 | P73: NONE | Q73: 0 | R73: FULL
A74: K49 | B74: Understand the end use of the cement, cementitious products and the properties which will impact on the final product, this covers conventional and special concretes such as self-compacting concrete. | C74: NO | D74: NO | E74: YES | F74: NO | G74: NO | N74: 0 | P74: NONE | Q74: 0 | R74: FULL
A75: K50 | B75: Correct dosing facilities and testing for Chromium(Cr)6+ in cement, reporting shelf life and testing required to confirm the suitability for use. Understand the health implications of Cr6+ in final product and COSHH of the chemicals used to reduce Cr6+ | C75: NO | D75: NO | E75: YES | F75: NO | G75: NO | N75: 0 | P75: NONE | Q75: 0 | R75: FULL
A76: K51 | B76: The technology, standards, specifications and other requirements that apply to bituminous products and asphalt mixtures. | C76: NO | D76: NO | E76: NO | F76: YES | G76: NO | N76: 0 | P76: NONE | Q76: 0 | R76: FULL
A77: K52 | B77: The technology and principles of designing bituminous mixtures including Recycled Asphalt Product (RAP), and of the specific processes and knowledge required to produce, transport and place the products. | C77: NO | D77: NO | E77: NO | F77: YES | G77: NO | N77: 0 | P77: NONE | Q77: 0 | R77: FULL
A78: K53 | B78: Techniques used to manage asphalt product quality so as to satisfy the needs of the customer and end use. | C78: NO | D78: NO | E78: NO | F78: YES | G78: NO | N78: 0 | P78: NONE | Q78: 0 | R78: FULL
A79: K54 | B79: Compaction of placed product and impacts of the environmental conditions during placement. | C79: NO | D79: NO | E79: NO | F79: YES | G79: NO | N79: 0 | P79: NONE | Q79: 0 | R79: FULL
A80: K55 | B80: Pavement products and how they work to protect the underlying substrates and the fundamental principles of pavement design. | C80: NO | D80: NO | E80: NO | F80: YES | G80: NO | N80: 0 | P80: NONE | Q80: 0 | R80: FULL
A81: K56 | B81: Pavement designed for lifespan and traffic predictions, design of treatments to maintain the structure. | C81: NO | D81: NO | E81: NO | F81: YES | G81: NO | N81: 0 | P81: NONE | Q81: 0 | R81: FULL
A82: K57 | B82: The ‘Asset Management’ approach to maintaining highways, and prioritisation of maintenance treatments. | C82: NO | D82: NO | E82: NO | F82: YES | G82: NO | N82: 0 | P82: NONE | Q82: 0 | R82: FULL
A83: K58 | B83: Fundamental properties of asphalt mixtures and their function in road pavements. The production of bitumen and special binders, such as emulsions and polymer modified binders. | C83: NO | D83: NO | E83: NO | F83: YES | G83: NO | N83: 0 | P83: NONE | Q83: 0 | R83: FULL
A84: K59 | B84: The fundamental requirements of an asphalt mix, durability, resistance to cracking and resistance to deformation. | C84: NO | D84: NO | E84: NO | F84: YES | G84: NO | N84: 0 | P84: NONE | Q84: 0 | R84: FULL
A85: K60 | B85: The major specialist treatments for the surface of roads, and their reinforcement. | C85: NO | D85: NO | E85: NO | F85: YES | G85: NO | N85: 0 | P85: NONE | Q85: 0 | R85: FULL
A86: K61 | B86: Sustainability through recycling and consideration of ‘alternatives aggregates’. | C86: NO | D86: NO | E86: NO | F86: YES | G86: NO | N86: 0 | P86: NONE | Q86: 0 | R86: FULL
A87: K62 | B87: The techniques used to identify potential sources of clay and their potential use in a range of clay products. | C87: NO | D87: NO | E87: NO | F87: NO | G87: YES | N87: 0 | P87: NONE | Q87: 0 | R87: FULL
A88: K63 | B88: The environmental and geological factors that can have an impact on the development of a clay extraction site. | C88: NO | D88: NO | E88: NO | F88: NO | G88: YES | N88: 0 | P88: NONE | Q88: 0 | R88: FULL
A89: K64 | B89: The methods and techniques used to investigate and evaluate a potential source of clay, including site survey and site investigation methods. | C89: NO | D89: NO | E89: NO | F89: NO | G89: YES | N89: 0 | P89: NONE | Q89: 0 | R89: FULL
A90: K65 | B90: Winning & Preparation - methods and techniques used to extract, stockpile and process clay so that it can be used for the production of clay products. | C90: NO | D90: NO | E90: NO | F90: NO | G90: YES | N90: 0 | P90: NONE | Q90: 0 | R90: FULL
A91: K66 | B91: The issues and constraints associated with crushing and size reduction of clay lumps and particles. | C91: NO | D91: NO | E91: NO | F91: NO | G91: YES | N91: 0 | P91: NONE | Q91: =IF(O91=1,1,IF(O91=0.5,0.5,IF(O91=0,0))) -> 0 | R91: =IF(Q91=1,"NONE",IF(Q91=0.5,"PARTIAL",IF(Q91=0,"FULL"))) -> FULL
A92: K67 | B92: Processes used to prepare clay so that it can be used to produce clay products in a safe way that also respects the environment. | C92: NO | D92: NO | E92: NO | F92: NO | G92: YES | N92: 0 | P92: NONE | Q92: 0 | R92: FULL
A93: K68 | B93: Forming - how the moulded clay can influence the dimensions and shape of the finished clay product. | C93: NO | D93: NO | E93: NO | F93: NO | G93: YES | N93: 0 | P93: NONE | Q93: 0 | R93: FULL
A94: K69 | B94: How surface treatments can be used to create particular surface characteristics and properties in the finished clay product and how surface finishes can be used to provide resistance to specified ground conditions and end-use environments. | C94: NO | D94: NO | E94: NO | F94: NO | G94: YES | N94: 0 | P94: NONE | Q94: 0 | R94: FULL
A95: K70 | B95: Techniques used to dry and then fire clay products. The drying and firing processes that produce different types of clay products and the influence of drying and firing techniques on their characteristics. | C95: NO | D95: NO | E95: NO | F95: NO | G95: YES | N95: 0 | P95: NONE | Q95: 0 | R95: FULL
B96: Skills
A97: S1 | B97: Work competently, safely and manage risks in accordance with HSE regulations. | C97: YES | D97: YES | E97: YES | F97: YES | G97: YES | N97: =IF(H97:H155 = "FULLY MET",1,IF(H97:H155 = "PARTIALLY MET",0.5,IF(H97:H155 = "NOT MET",0,))) -> 0 | P97: NONE | Q97: =IF(O97=1,1,IF(O97=0.5,0.5,IF(O97=0,0))) -> 0 | R97: =IF(Q97=1,"NONE",IF(Q97=0.5,"PARTIAL",IF(Q97=0,"FULL"))) -> FULL
A98: S2 | B98: Apply their knowledge of health and safety hazards, major hazards, environmental aspects and risks associated with the operation in order to train others to conduct full risk assessments, license to operate procedures and be able to fully investigate and evaluate health, safety and environmental accidents and incidents, report findings and implement improvements. | C98: YES | D98: YES | E98: YES | F98: YES | G98: YES | N98: 0 | P98: NONE | Q98: =IF(O98=1,1,IF(O98=0.5,0.5,IF(O98=0,0))) -> 0 | R98: =IF(Q98=1,"NONE",IF(Q98=0.5,"PARTIAL",IF(Q98=0,"FULL"))) -> FULL
A99: S3 | B99: Use their knowledge of emergency response processes and procedures to deal with emergency situations and ensure that in these circumstances the site is evacuated, secured and made safe as swiftly as possible. | C99: YES | D99: YES | E99: YES | F99: YES | G99: YES | N99: 0 | P99: NONE | Q99: 0 | R99: FULL
A100: S4 | B100: Recommend and support improvements to environmental, health and safety culture, procedures, process and systems across the operation. | C100: YES | D100: YES | E100: YES | F100: YES | G100: YES | N100: 0 | P100: NONE | Q100: 0 | R100: FULL
A101: S5 | B101: Obtain, evaluate and use information from the teams across the site to take critical operational decisions. This could include information on a range of matters such as the products, the equipment and the staffing levels. | C101: YES | D101: YES | E101: YES | F101: YES | G101: YES | N101: 0 | P101: NONE | Q101: 0 | R101: FULL
A102: S6 | B102: Utilise communications technology for performing and supporting the business processes including, communications, work co-ordination, task analysis and problem solving. | C102: YES | D102: YES | E102: YES | F102: YES | G102: YES | N102: 0 | P102: NONE | Q102: 0 | R102: FULL
A103: S7 | B103: Ensure that operational systems are adhered to by all employees in accordance with quality control plans and procedures. | C103: YES | D103: YES | E103: YES | F103: YES | G103: YES | N103: 0 | P103: NONE | Q103: 0 | R103: FULL
A104: S8 | B104: Use appropriate Personal Protective Equipment in order to meet employers and regulatory health and safety requirements. | C104: YES | D104: YES | E104: YES | F104: YES | G104: YES | N104: 0 | P104: NONE | Q104: 0 | R104: FULL
A105: S9 | B105: Apply root cause analysis | C105: YES | D105: YES | E105: YES | F105: YES | G105: YES | N105: 0 | P105: NONE | Q105: 0 | R105: FULL
A106: S10 | B106: Use the principles of predictive and preventative maintenance of all mineral products equipment in order to minimise downtime and costs. | C106: YES | D106: YES | E106: YES | F106: YES | G106: YES | N106: 0 | P106: NONE | Q106: 0 | R106: FULL
A107: S11 | B107: Develop & write technical reports that meet business requirements including the optimisation and continuous improvement of processes and services | C107: YES | D107: YES | E107: YES | F107: YES | G107: YES | N107: 0 | P107: NONE | Q107: 0 | R107: FULL
A108: S12 | B108: Maximise the use of the resources, maximise products from raw materials, ensuring sustainability of resources. | C108: YES | D108: YES | E108: YES | F108: YES | G108: YES | N108: 0 | P108: NONE | Q108: 0 | R108: FULL
A109: S13 | B109: Provide technical knowledge transfer to colleagues and continuous improvements in line with business requirements. | C109: YES | D109: YES | E109: YES | F109: YES | G109: YES | N109: 0 | P109: NONE | Q109: 0 | R109: FULL
A110: S14 | B110: Optimise processes & products re: cost and performance in line with budget requirements. | C110: YES | D110: YES | E110: YES | F110: YES | G110: YES | N110: 0 | P110: NONE | Q110: 0 | R110: FULL
A111: S15 | B111: Communicate all relevant information with the operational team, customers and all stakeholders by email, handheld radio, phone and face to face to keep them up to date with site production issues, ensuring information is passed clearly and promptly. | C111: YES | D111: YES | E111: YES | F111: YES | G111: YES | N111: 0 | P111: NONE | Q111: 0 | R111: FULL
A112: S16 | B112: Plan and implement plans for work activities and projects. | C112: YES | D112: YES | E112: YES | F112: YES | G112: YES | N112: 0 | P112: NONE | Q112: 0 | R112: FULL
A113: S17 | B113: Monitoring trends, interpreting results and making adjustments in production. | C113: YES | D113: YES | E113: YES | F113: YES | G113: YES | N113: 0 | P113: NONE | Q113: 0 | R113: FULL
A114: S18 | B114: Use knowledge of the local communities, official bodies and other stakeholders associated with Mineral Products and their interests in the industry to liaise and engage with them to ensure positive working relationships are established, minimising disputes. | C114: YES | D114: YES | E114: YES | F114: YES | G114: YES | N114: 0 | P114: NONE | Q114: 0 | R114: FULL
A115: S19 | B115: Ensure safe and effective utilisations of mineral extraction equipment and resources by following standard operating procedures and/or site rules. | C115: YES | D115: NO | E115: NO | F115: NO | G115: NO | N115: 0 | P115: NONE | Q115: 0 | R115: FULL
A116: S20 | B116: Maximise operational and resource efficiency in a mineral extraction environment, in accordance with the quarry/mine plan. | C116: YES | D116: NO | E116: NO | F116: NO | G116: NO | N116: 0 | P116: NONE | Q116: 0 | R116: FULL
A117: S21 | B117: Plans processes to win and extract mineral in a safe, efficient and environmentally sensitive manner applying blasting, digging or cutting techniques. | C117: YES | D117: NO | E117: NO | F117: NO | G117: NO | N117: 0 | P117: NONE | Q117: 0 | R117: FULL
A118: S22 | B118: Plan to use, select and utilise face loading machines, dumptrucks, conveyor systems, processing and benefication equipment by planning material flow and matching equipment. | C118: YES | D118: NO | E118: NO | F118: NO | G118: NO | N118: 0 | P118: NONE | Q118: 0 | R118: FULL
A119: S23 | B119: Use and apply the the quarry/mine plan to assess environmental impact, planning constraints, site restoration and the wider sustainability agenda. | C119: YES | D119: NO | E119: NO | F119: NO | G119: NO | N119: 0 | P119: NONE | Q119: 0 | R119: FULL
A120: S24 | B120: Achieve and verify product quality meets both European Standards and customer specifications and optimizes the production process to achieve these in a cost effective manner and whilst maintaining end use applications. | C120: YES | D120: NO | E120: NO | F120: NO | G120: NO | N120: 0 | P120: NONE | Q120: 0 | R120: FULL
A121: S25 | B121: Ensures all test equipment is maintained, used correctly and calibrated, retains appropriate records. Interprets all test results for accuracy, retesting as required, and taking appropriate actions and communications if results fall outside of specifications. | C121: YES | D121: NO | E121: NO | F121: NO | G121: NO | N121: 0 | P121: NONE | Q121: 0 | R121: FULL
A122: S26 | B122: Conduct the full range of legislative and procedural inspections required in the quarry, processing plant and associated locations, record, document findings and take appropriate action. For inspections conducted by specialist third parties – can interpret, prioritize and action the recommendations. | C122: YES | D122: NO | E122: NO | F122: NO | G122: NO | N122: 0 | P122: NONE | Q122: 0 | R122: FULL
A123: S27 | B123: Planning work activities and production schedule with customer requirements | C123: NO | D123: YES | E123: NO | F123: NO | G123: NO | N123: 0 | P123: NONE | Q123: 0 | R123: FULL
A124: S28 | B124: Sampling and testing of concrete products to the relevant European standards. | C124: NO | D124: YES | E124: NO | F124: NO | G124: NO | N124: 0 | P124: NONE | Q124: 0 | R124: FULL
A125: S29 | B125: Monitoring trends, interpreting results and making adjustments in concrete mix designs. | C125: NO | D125: YES | E125: NO | F125: NO | G125: NO | N125: 0 | P125: NONE | Q125: 0 | R125: FULL
A126: S30 | B126: Management of product constituents to include secondary, alternative and recycled materials. | C126: NO | D126: YES | E126: NO | F126: NO | G126: NO | N126: 0 | P126: NONE | Q126: 0 | R126: FULL
A127: S31 | B127: Demonstration of the selection and appropriate use of reinforcement materials in concrete applications. | C127: NO | D127: YES | E127: NO | F127: NO | G127: NO | N127: 0 | P127: NONE | Q127: 0 | R127: FULL
A128: S32 | B128: Planning the selection and utilisation of fresh concrete delivery systems by planning material flow and matching equipment. | C128: NO | D128: YES | E128: NO | F128: NO | G128: NO | N128: 0 | P128: NONE | Q128: 0 | R128: FULL
A129: S33 | B129: Able to apply different concrete batching techniques in the manufacture of concrete products. | C129: NO | D129: YES | E129: NO | F129: NO | G129: NO | N129: 0 | P129: NONE | Q129: 0 | R129: FULL
A130: S34 | B130: Undertaking of assessment, inspection and development of suitable repair strategies for existing concrete structures. | C130: NO | D130: YES | E130: NO | F130: NO | G130: NO | N130: 0 | P130: NONE | Q130: 0 | R130: FULL
A131: S35 | B131: Planning work activities and production schedule with customer and trend requirements. | C131: NO | D131: NO | E131: YES | F131: NO | G131: NO | N131: 0 | P131: NONE | Q131: 0 | R131: FULL
A132: S36 | B132: Managing risks specific to high energy and cost production processes. | C132: NO | D132: NO | E132: YES | F132: NO | G132: NO | N132: 0 | P132: NONE | Q132: 0 | R132: FULL
A133: S37 | B133: Sampling, testing and reporting of Cement, Lime and Cementitious products to the relevant European standards. | C133: NO | D133: NO | E133: YES | F133: NO | G133: NO | N133: 0 | P133: NONE | Q133: 0 | R133: FULL
A134: S38 | B134: Sampling, testing and reporting of incoming and intermediary materials supporting the adjustments in the cement manufacturing process. | C134: NO | D134: NO | E134: YES | F134: NO | G134: NO | N134: 0 | P134: NONE | Q134: 0 | R134: FULL
A135: S39 | B135: Management of product constituents to include secondary, alternative and recycled materials. | C135: NO | D135: NO | E135: YES | F135: NO | G135: NO | N135: 0 | P135: NONE | Q135: 0 | R135: FULL
A136: S40 | B136: Planning the selection and utilisation of milling, grinding and blending equipment by planning process flow and matching equipment | C136: NO | D136: NO | E136: YES | F136: NO | G136: NO | N136: 0 | P136: NONE | Q136: 0 | R136: FULL
A137: S41 | B137: Demonstrate an understanding of the selection and use of different fuel types in order to maximise thermal efficiencies and minimise environmental impacts. | C137: NO | D137: NO | E137: YES | F137: NO | G137: NO | N137: 0 | P137: NONE | Q137: 0 | R137: FULL
A138: S42 | B138: Planning the selection and utilisation of Cement, Lime and Cementitious Products delivery systems. | C138: NO | D138: NO | E138: YES | F138: NO | G138: NO | N138: 0 | P138: NONE | Q138: 0 | R138: FULL
A139: S43 | B139: Planning work activities, production schedules, transport and delivery in line with customer requirements. | C139: NO | D139: NO | E139: NO | F139: YES | G139: NO | N139: 0 | P139: NONE | Q139: 0 | R139: FULL
A140: S44 | B140: Sampling source materials, bitumens and asphalt products. | C140: NO | D140: NO | E140: NO | F140: YES | G140: NO | N140: 0 | P140: NONE | Q140: 0 | R140: FULL
A141: S45 | B141: Defining different asphalt production processes and ancillary equipment to maximise production. Inspecting and optimising asphalt production plant and equipment. | C141: NO | D141: NO | E141: NO | F141: YES | G141: NO | N141: 0 | P141: NONE | Q141: 0 | R141: FULL
A142: S46 | B142: Inspecting and optimising laying and compaction plant and equipment. | C142: NO | D142: NO | E142: NO | F142: YES | G142: NO | N142: 0 | P142: NONE | Q142: 0 | R142: FULL
A143: S47 | B143: Managing risks to health and safety and the environment associated with the production, transport and laying of asphalt mixtures. | C143: NO | D143: NO | E143: NO | F143: YES | G143: NO | N143: 0 | P143: NONE | Q143: 0 | R143: FULL
A144: S48 | B144: Application and on going management of assets both in terms of production and laying equipment and in pavements, foundations, drainage, skid resistance, embankments, bridges and street furniture. | C144: NO | D144: NO | E144: NO | F144: YES | G144: NO | N144: 0 | P144: NONE | Q144: 0 | R144: FULL
A145: S49 | B145: Application of pavement design according to design speciications. | C145: NO | D145: NO | E145: NO | F145: YES | G145: NO | N145: 0 | P145: NONE | Q145: 0 | R145: FULL
A146: S50 | B146: Identifying pavement failure modes and subsequent remedial options. | C146: NO | D146: NO | E146: NO | F146: YES | G146: NO | N146: 0 | P146: NONE | Q146: 0 | R146: FULL
A147: S51 | B147: Application of specialist road surface treatments and sustainable recycled aggregates and recycling processes. | C147: NO | D147: NO | E147: NO | F147: YES | G147: NO | N147: 0 | P147: NONE | Q147: 0 | R147: FULL
A148: S52 | B148: Apply understanding of the nature and formation processes of clay deposits to the manufacture of heavy clay construction products to ensure product quality. | C148: NO | D148: NO | E148: NO | F148: NO | G148: YES | N148: 0 | P148: NONE | Q148: 0 | R148: FULL
A149: S53 | B149: Maximise operational and resource efficiency by using and understanding the quarry/clay pit plan in and minimising environmental impacts. | C149: NO | D149: NO | E149: NO | F149: NO | G149: YES | N149: 0 | P149: NONE | Q149: 0 | R149: FULL
A150: S54 | B150: Supervision of methods of extraction, transportation and stockpiling of clay raw materials to industry standards. | C150: NO | D150: NO | E150: NO | F150: NO | G150: YES | N150: 0 | P150: NONE | Q150: 0 | R150: FULL
A151: S55 | B151: Effective management of raw material processing in relation to the manufacturing operation. | C151: NO | D151: NO | E151: NO | F151: NO | G151: YES | N151: 0 | P151: NONE | Q151: 0 | R151: FULL
A152: S56 | B152: Recognise the influence of raw material properties in the selection of the appropriate clay forming equipment and drying processes. | C152: NO | D152: NO | E152: NO | F152: NO | G152: YES | N152: 0 | P152: NONE | Q152: 0 | R152: FULL
A153: S57 | B153: Appropriate selection and use of different surface texturing and colouring processes. | C153: NO | D153: NO | E153: NO | F153: NO | G153: YES | N153: 0 | P153: NONE | Q153: 0 | R153: FULL
A154: S58 | B154: Planning and control of the appropriate drying and firing cycles for the production process. | C154: NO | D154: NO | E154: NO | F154: NO | G154: YES | N154: 0 | P154: NONE | Q154: 0 | R154: FULL
A155: S59 | B155: Sampling, testing and reporting of intermediary and final clay products supporting the adjustments in the process. | C155: NO | D155: NO | E155: NO | F155: NO | G155: YES | N155: 0 | P155: NONE | Q155: 0 | R155: FULL
B156: Behaviours
A157: B1 | B157: A strong personal commitment to health, mental wellbeing, safety and the environment. | C157: YES | D157: YES | E157: YES | F157: YES | G157: YES | N157: =IF(H157:H169 = "FULLY MET",1,IF(H157:H169 = "PARTIALLY MET",0.5,IF(H157:H169 = "NOT MET",0,))) -> 0 | P157: NONE | Q157: =IF(O157=1,1,IF(O157=0.5,0.5,IF(O157=0,0))) -> 0 | R157: =IF(Q157=1,"NONE",IF(Q157=0.5,"PARTIAL",IF(Q157=0,"FULL"))) -> FULL
A158: B2 | B158: Leads from the front setting a high example to all employees. | C158: YES | D158: YES | E158: YES | F158: YES | G158: YES | N158: 0 | P158: NONE | Q158: 0 | R158: FULL
A159: B3 | B159: Works within the company policies, procedures and regulations at all times. | C159: YES | D159: YES | E159: YES | F159: YES | G159: YES | N159: 0 | P159: PARTIAL | Q159: =IF(O159=1,0.5,IF(O159=0.5,0.5,IF(O159=0,0))) -> 0 | R159: =IF(Q159=0.5,"NONE",IF(Q159=0,"PARTIAL")) -> PARTIAL
A160: B4 | B160: Remains calm, composed and maintains accuracy of detail under pressure. | C160: YES | D160: YES | E160: YES | F160: YES | G160: YES | N160: 0 | P160: NONE | Q160: =IF(O160=1,1,IF(O160=0.5,0.5,IF(O160=0,0))) -> 0 | R160: =IF(Q160=1,"NONE",IF(Q160=0.5,"PARTIAL",IF(Q160=0,"FULL"))) -> FULL
A161: B5 | B161: Takes responsibility for own behaviours, actions and standards of work. | C161: YES | D161: YES | E161: YES | F161: YES | G161: YES | N161: 0 | P161: NONE | Q161: =IF(O161=1,1,IF(O161=0.5,0.5,IF(O161=0,0))) -> 0 | R161: =IF(Q161=1,"NONE",IF(Q161=0.5,"PARTIAL",IF(Q161=0,"FULL"))) -> FULL
A162: B6 | B162: Identifies improvements that could be made and contributes to implementing new procedures or ways of safe and effective working. | C162: YES | D162: YES | E162: YES | F162: YES | G162: YES | N162: 0 | P162: NONE | Q162: 0 | R162: FULL
A163: B7 | B163: Takes responsibility for on-going continuous professional development | C163: YES | D163: YES | E163: YES | F163: YES | G163: YES | N163: 0 | P163: NONE | Q163: 0 | R163: FULL
A164: B8 | B164: Ensures a customer focused approach and is an advocate for the business. | C164: YES | D164: YES | E164: YES | F164: YES | G164: YES | N164: 0 | P164: PARTIAL | Q164: =IF(O164=1,0.5,IF(O164=0.5,0.5,IF(O164=0,0))) -> 0 | R164: =IF(Q164=0.5,"NONE",IF(Q164=0,"PARTIAL")) -> PARTIAL
A165: B9 | B165: Promotes a collaborative team ethic as well as a supportive and positive culture. | C165: YES | D165: YES | E165: YES | F165: YES | G165: YES | N165: 0 | P165: NONE | Q165: =IF(O165=1,1,IF(O165=0.5,0.5,IF(O165=0,0))) -> 0 | R165: =IF(Q165=1,"NONE",IF(Q165=0.5,"PARTIAL",IF(Q165=0,"FULL"))) -> FULL
A166: B10 | B166: Encourages innovation and supports suggestions and feedback. | C166: YES | D166: YES | E166: YES | F166: YES | G166: YES | N166: 0 | P166: NONE | Q166: 0 | R166: FULL
A167: B11 | B167: Demonstrates a commitment to equality and diversity and manages/challenges others to meet the requirements of fairness at work. | C167: YES | D167: YES | E167: YES | F167: YES | G167: YES | N167: 0 | P167: NONE | Q167: 0 | R167: FULL
A168: B12 | B168: Maintains a professional, courteous, polite and friendly approach at all times. | C168: YES | D168: YES | E168: YES | F168: YES | G168: YES | N168: 0 | P168: NONE | Q168: 0 | R168: FULL
A169: B13 | B169: Identify own development needs and takes action to meet those needs. | C169: YES | D169: YES | E169: YES | F169: YES | G169: YES | N169: 0 | P169: NONE | Q169: 0 | R169: FULL
N172: Mineral products technician (level 5) - Mineral Extraction
N174: Gross score | O174: =SUM(O26:O55, O97:O122, O157:O169) -> 0 | P174: Net Score | Q174: =SUM(Q26:Q55, Q97:Q122, Q157:Q169) -> 0
N175: total KSB coverage | O175: =O174/Q178 -> 0 | P175: total CoE KSB coverage | Q175: =Q174/Q181 -> 0
P178: total KSBs | Q178: 69
P179: fully mitigated | Q179: 0
P180: partially mitigated | Q180: 2
P181: net KSB | Q181: =Q178-Q179-(Q180*0.5) -> 68
N184: Mineral products technician (level 5) - Concrete (Readymix and Precast/Prestressed)
N186: Gross score | O186: =SUM(O26:O44,O56:O66,O97:O114,O123:O130,O157:O169) -> 0 | P186: Net Score | Q186: =SUM(Q26:Q44,Q56:Q66,Q97:Q114,Q123:Q130,Q157:Q169) -> 0
N187: total KSB coverage | O187: =O186/Q190 -> 0 | P187: total CoE KSB coverage | Q187: =Q186/Q193 -> 0
P190: total KSBs | Q190: 69
P191: fully mitigated | Q191: 0
P192: partially mitigated | Q192: 2
P193: net KSB | Q193: =Q190-Q191-(Q192*0.5) -> 68
N196: Mineral products technician (level 5) - Cement and cementitious products
N198: Gross score | O198: =SUM(O26:O44,O67:O75,O97:O114,O131:O138,O157:O169) -> 0 | P198: Net Score | Q198: =SUM(Q26:Q44,Q67:Q75,Q97:Q114,Q131:Q138,Q157:Q169) -> 0
N199: total KSB coverage | O199: =O198/Q202 -> 0 | P199: total CoE KSB coverage | Q199: =Q198/Q205 -> 0
P202: total KSBs | Q202: 67
P203: fully mitigated | Q203: 0
P204: partially mitigated | Q204: 2
P205: net KSB | Q205: =Q202-Q203-(Q204*0.5) -> 66
N208: Mineral products technician (level 5) - Asphalt & Pavements
N210: Gross score | O210: =SUM(O26:O44,O76:O86,O97:O114,O139:O147:O157:O169) -> 0 | P210: Net Score | Q210: =SUM(Q26:Q44,Q76:Q86,Q97:Q114,Q139:Q147:Q157:Q169) -> 0
N211: total KSB coverage | O211: =O210/Q214 -> 0 | P211: total CoE KSB coverage | Q211: =Q210/Q217 -> 0
P214: total KSBs | Q214: 69
P215: fully mitigated | Q215: 0
P216: partially mitigated | Q216: 2
P217: net KSB | Q217: =Q214-Q215-(Q216*0.5) -> 68
N220: Mineral products technician (level 5) - Clays (Heavy and White)
N222: Gross score | O222: =SUM(O26:O44,O87:O95,O97:O114,O148:O155,O157:O169) -> 0 | P222: Net Score | Q222: =SUM(Q26:Q44,Q87:Q95,Q97:Q114,Q148:Q155,Q157:Q169) -> 0
N223: total KSB coverage | O223: =O222/Q226 -> 0 | P223: total CoE KSB coverage | Q223: =Q222/Q229 -> 0
P226: total KSBs | Q226: 67
P227: fully mitigated | Q227: 0
P228: partially mitigated | Q228: 2
P229: net KSB | Q229: =Q226-Q227-(Q228*0.5) -> 66
N232: TOTAL FOR ALL KBSs
N234: Gross score | O234: =SUM(O26:O169) -> 0 | P234: Net Score | Q234: =SUM(Q26:Q169) -> 0
N235: total KSB coverage | O235: =O234/Q238 -> 0 | P235: total CoE KSB coverage | Q235: =Q234/Q241 -> 0
P238: total KSBs | Q238: 142
... 3 more rows

Sheet ST0624
B1: START HERE
B2: Awarding body/Applicant:
B3: Please type the name of awarding body/applicant here
B4: Qualification name:
B5: Please type your qualification title here
B6: Programme title if applicable:
B7: Please type the programme title here
A10: EXAMPLE OF KSB MAPPING
A11: KSB | B11: KSB Statement (this list contains the core KSBs for the Food and drink Engineer occupation, plus the specific KSBs for Mechanical Food and Drink Engineer and Electrical Food and Drink Engineer options) | C11: Included in: | E11: KSB coverage Select the coverage provided by the qualification from the dropdown box | F11: Where in the qualification is the relevant content? Please reference precisely where the content you are citing as evidence is within the submitted documents - Document name/Module name/Specific page number | G11: Evidence Quote or copy & paste the relevant content from your referenced qualification documents. Please provide 1 - 3 references that best evidence the KSB and only refer to content that all students will cover regardless of option choice. The information you supply in this column, in conjunction with the Supporting Comments / Rationale column (Column H) should clearly and explicitly demonstrate the declared level of KSB coverage. | H11: Supporting Comments/Rationale Where the evidence in Column G does not clearly and explicitly provide the declared level of coverage or might not be obvious to someone who is not an expert in your qualification, use this space to explain how the level of KSB coverage is achieved by the qualification content - please be specific to the wording and meaning of the KSB statement. Where a KSB is not fully met, please provide the rationale for why you feel this is not achievable. | I11: Assessment method Provide information on the method(s) used to assess this KSB and relevant assessment materials.
C12: Food and drink Engineer (level 5) - Mechanical Food and Drink Engineer | D12: Food and drink Engineer (level 5) - Electrical Food and Drink Engineer
A13: K7 | B13: Safe and professional working practices including health, safety, environment and legislative requirements relevant to the sector, the organisation and own role | C13: Yes | D13: Yes | E13: FULLY MET | F13: Qualification specification, pg 14-16 Module 2: Health, safety and professional working practices, pg 6 | G13: Module 2: LO1 - Understand the importance of health and safety in the workplace. LO2 - Understand the application of health and safety legislation in the workplace. LO3 - Understand how to apply safe working practices to work activities. Indicative content: local, regional, national health & safety regulations, codes of practice, site safety, health & safety promotion, health & safety measures, PPE, manual handling, equipment management, waste disposal, risk management, risk assessment | H13: Learners will be able to show a full understanding of Health & Safety and legislative requirements relevant to the role. The indicative content on Pg 16 of the qualification specification shows they will cover Health & Safety across the wider sector, and then identify some measures that may be specific to certain organisations. Learners will also analyse the role of the employer and the environment with regards to applying Health & Safety working practices and processes. | I13: Module 2 - students will produce a written report using a brief. There is also a short answer paper. Module 2 Assessment Brief pg 7-8 refers.
A14: S23 | B14: Communicate effectively (verbal, non-verbal, written, digital) in manner relevant to the target audience | C14: Yes | D14: Yes | E14: FULLY MET | F14: Qualification specification, pg 21-22 Module 6: The Fundamentals of Practice, pg 12 Module 9: Personal and Professional Development Skills, pg 11 | G14: Module 6: LO2 - Know how to use digital devices and databases relevant to your workplace. Module 9: LO1 - Understand the uses of different methods of communication. LO3 - Be able to communicate effectively with different audiences. Indicative content: verbal and non-verbal communication skills, presentation skills, academic and non-academic writing style, writing skills | H14: Learners will cover verbal, non-verbal, written and digital communications, and demonstrate practical skills by completing assessment tasks which will include simulated work environments and preparing presentations targeting different audiences. Learners will develop the skills to communicate with people in a professional capacity including co-workers, line managers, clients, contractors and the public. | I14: Module 6 - case study. Module 9 - scenarios in simulated work environment, students will produce presentation. Module 9 assessment pg 4.
B19: Food and drink engineer (level 5)
B20: Return to Guide
B21: Two options are available (columns C-D). Please check if the KSB needs to be mapped against the option of your choice. If you map against two options and the evidence is different for each option please mark which evidence corresponds to which option.
A24: KSB | B24: KSB Statement (this list contains the core KSBs for the Food and drink Engineer occupation, plus the specific KSBs for Mechanical Food and Drink Engineer and Electrical Food and Drink Engineer options) | C24: Included in: | E24: KSB coverage Select the coverage provided by the qualification from the dropdown box | F24: Where in the qualification is the relevant content? Please reference precisely where the content you are citing as evidence is within the submitted documents - Document name/Module name/Specific page number | G24: Evidence Quote or copy & paste the relevant content from your referenced qualification documents. Please provide 1 - 3 references that best evidence the KSB and only refer to content that all students will cover regardless of option choice. The information you supply in this column, in conjunction with the Supporting Comments / Rationale column (Column H) should clearly and explicitly demonstrate the declared level of KSB coverage. | H24: Supporting Comments/Rationale Where the evidence in Column G does not clearly and explicitly provide the declared level of coverage or might not be obvious to someone who is not an expert in your qualification, use this space to explain how the level of KSB coverage is achieved by the qualification content - please be specific to the wording and meaning of the KSB statement. Where a KSB is not fully met, please provide the rationale for why you feel this is not achievable. | I24: Assessment method Provide information on the method(s) used to assess this KSB and relevant assessment materials. | K24: AB Score | L24: IM Score | M24: Mitigations | N24: CoE Score | O24: Outstanding Requirement | P24: IM Comment | Q24: IM moderation | R24: G7 QA | S24: IM G7 Response | T24: Conclusion
B25: Knowledge | C25: Food and drink Engineer (level 5) - Mechanical Food and Drink Engineer | D25: Food and drink Engineer (level 5) - Electrical Food and Drink Engineer
A26: K1 | B26: Legislative, regulatory and ethical requirements, such as Dangerous Substances and Explosive Atmospheres (DSEAR) and Atmospheres and Explosives (ATEX) regulations, and their application to food engineering processes; food safety, hazard analysis and critical control points (HACCP), health & safety and environmental considerations | C26: YES | D26: YES | K26: =IF(E26:E54 = "FULLY MET",1,IF(E26:E54 = "PARTIALLY MET",0.5,IF(E26:E54 = "NOT MET",0,))) -> 0 | M26: NONE | N26: =IF(L26=1,1,IF(L26=0.5,0.5,IF(L26=0,0))) -> 0 | O26: =IF(N26=1,"NONE",IF(N26=0.5,"PARTIAL",IF(N26=0,"FULL"))) -> FULL
A27: K2 | B27: Food science and technology; how engineering is used in food and drink production: heating processing, packaging, modified atmosphere packaging (MAP), preservation, chilling, freezing, sterilisation | C27: YES | D27: YES | K27: 0 | M27: NONE | N27: 0 | O27: FULL
A28: K3 | B28: Engineering processes and equipment including automation and controls to make and deliver products to market: shaping forming equipment, ovens, chillers, freezers, sterilisers, MAP packing machines, check weighers, temperers, washing/cleaning, fillers, extruders, bulk solid handling & distribution and liquid systems process validation, sieving, filtration, metal detection, bar code verification metal detection wrapping and palletising | C28: YES | D28: YES | K28: 0 | M28: NONE | N28: 0 | O28: FULL
A29: K4 | B29: Engineering theory and techniques to develop processes i.e. thermodynamic and thermo-fluid analysis heat transfer can be applied to design of baking, cooling, preserving, freezing, chilling systems | C29: YES | D29: YES | K29: 0 | M29: NONE | N29: 0 | O29: FULL
A30: K5 | B30: Hygienic engineering principles relating to type of material, machine assembly, design and practice; and their importance to delivering food hygiene and safety and employee health and safety requirements in a food and drink process | C30: YES | D30: YES | K30: 0 | M30: NONE | N30: 0 | O30: FULL
A31: K6 | B31: Packing materials in food; inter-relationships with food ingredients, final product and their effects on safety, quality and performance through the supply chain i.e. how to engineer correct seals on film, cardboard, tins, stable transportation, moisture barriers | C31: YES | D31: YES | K31: 0 | M31: NONE | N31: 0 | O31: FULL
A32: K7 | B32: Problem solving tools to analyse e.g. Define, Measure, Analyse, Improve Control (DMAIC) principles | C32: YES | D32: YES | K32: 0 | M32: NONE | N32: 0 | O32: FULL
A33: K8 | B33: Interpretation and evaluation techniques | C33: YES | D33: YES | K33: 0 | M33: NONE | N33: 0 | O33: FULL
A34: K9 | B34: Overall Equipment Efficiencies (OEE), for example Smart Reliability Driven Maintenance approaches including Reliability Centred Maintenance (RCM)/ Failure mode, effects, and critical analysis (FMECA), Condition Monitoring Techniques and applications, Single minute change of Die (SMED), Line balance | C34: YES | D34: YES | K34: 0 | M34: NONE | N34: 0 | O34: FULL
A35: K10 | B35: Risk management techniques, reliability/criticality tools and how they are used to reduce operational losses/wastage operations | C35: YES | D35: YES | K35: 0 | M35: NONE | N35: 0 | O35: FULL
A36: K11 | B36: Life Cycle Asset Management (LCAM), Criticality Analysis & Technology Selection (CATS), Intelligent Maintenance, Repair and Operations (inventory) (MRO) Optimisation | C36: YES | D36: YES | K36: 0 | M36: NONE | N36: 0 | O36: FULL
A37: K12 | B37: Product, machinery specifications: how they are used to set capability measurement, performance testing and maintenance requirements to deliver a standard set of operating conditions for consistent product delivery | C37: YES | D37: YES | K37: 0 | M37: NONE | N37: 0 | O37: FULL
A38: K13 | B38: Effective planning and scheduling, including effective communication, team working and project management techniques | C38: YES | D38: YES | K38: 0 | M38: NONE | N38: 0 | O38: FULL
A39: K14 | B39: Customer/food trade association standards, such as British Retail Consortium, Retailer and Engineering standards | C39: YES | D39: YES | K39: 0 | M39: NONE | N39: 0 | O39: FULL
A40: K15 | B40: General manufacturing services: steam, pneumatics and hydraulics, electrical supply, refrigeration, water supply and effluent | C40: YES | D40: YES | K40: 0 | M40: NONE | N40: 0 | O40: FULL
A41: K16 | B41: Manufacturing services specific to food: air filtration, oil free compressors, cleanliness of steam for food, sieving of materials, use of food grade lubricant, primary secondary cooling chemicals for food, MAP gases and generation i.e. Nitrogen | C41: YES | D41: YES | K41: 0 | M41: NONE | N41: 0 | O41: FULL
A42: K17 | B42: Factory digitisation/optimisation (Iot, Factory 2020 principles), for example principles of control engineering, logic controllers and data communication systems, sensors and devices, drives and transmissions, pumps and distribution systems, safety circuit systems, computer aided design, shop floor data gathering, PC use and computerised maintenance | C42: YES | D42: YES | K42: 0 | M42: NONE | N42: 0 | O42: FULL
A43: K18 | B43: Digitisation: 4.0, modelling of lines/process, 3d modelling scanning and printing, product dimensional measurement, rheology measurement | C43: YES | D43: YES | K43: 0 | M43: NONE | N43: 0 | O43: FULL
A44: K19 | B44: Mechanical design, mechanical analysis (static) performance of components, mechanisms and systems; study of friction wear; the science of interacting surfaces in relative motion (tribology) | C44: YES | D44: NO | K44: 0 | M44: NONE | N44: 0 | O44: FULL
A45: K20 | B45: Laws of thermodynamics and its applications within a hygienic food and drink environment: the fundamentals of heat transfer, thermo-fluid analysis, entropy, energy efficiency; conservation and sustainability | C45: YES | D45: NO | K45: 0 | M45: NONE | N45: 0 | O45: FULL
A46: K21 | B46: Steam fundamentals such as fuel types, combustion, feedwater, boiler controls and instrumentation, operation of boilers, safety and legal requirements and boiler efficiency | C46: YES | D46: NO | K46: 0 | M46: NONE | N46: 0 | O46: FULL
A47: K22 | B47: Heat recovery systems and energy management including the requirements of efficient best practice | C47: YES | D47: NO | K47: 0 | M47: NONE | N47: 0 | O47: FULL
A48: K23 | B48: Electrical and electronic systems, design techniques and their applications to British Standards | C48: NO | D48: YES | K48: 0 | M48: NONE | N48: 0 | O48: FULL
A49: K24 | B49: Installation of systems and supply systems following food safety standards e.g. tray work | C49: NO | D49: YES | K49: 0 | M49: NONE | N49: 0 | O49: FULL
A50: K25 | B50: Advanced electrical principles (low voltage (LV) to high voltage (HV)) | C50: NO | D50: YES | K50: 0 | M50: NONE | N50: 0 | O50: FULL
A51: K26 | B51: Instrumentation and calibration techniques for systems, for example thermo, weights and flow | C51: NO | D51: YES | K51: 0 | M51: NONE | N51: 0 | O51: FULL
A52: K27 | B52: Automation and control systems primarily with the following low voltage systems, i.e. building automation systems, heating, ventilation and air conditioning (HVAC) controls, access control systems, data cabling and fiber optic cable installation and termination | C52: NO | D52: YES | K52: 0 | M52: NONE | N52: 0 | O52: FULL
A53: K28 | B53: Supervisory control and data acquisition (SCADA) and network systems | C53: NO | D53: YES | K53: 0 | M53: NONE | N53: 0 | O53: FULL
A54: K29 | B54: Electrical safety systems and smart solutions | C54: NO | D54: YES | K54: 0 | M54: NONE | N54: 0 | O54: FULL
B55: Skills
A56: S1 | B56: Use engineering principles to deliver products/packaged food | C56: YES | D56: YES | K56: =IF(E56:E76 = "FULLY MET",1,IF(E56:E76 = "PARTIALLY MET",0.5,IF(E56:E76 = "NOT MET",0,))) -> 0 | M56: NONE | N56: =IF(L56=1,1,IF(L56=0.5,0.5,IF(L56=0,0))) -> 0 | O56: =IF(N56=1,"NONE",IF(N56=0.5,"PARTIAL",IF(N56=0,"FULL"))) -> FULL
A57: S2 | B57: Comply with standard operating procedures, company, legal and regulatory requirements and customer/consumer and engineering standards | C57: YES | D57: YES | K57: 0 | M57: NONE | N57: 0 | O57: FULL
A58: S3 | B58: Plan, for example labour and engineering materials | C58: YES | D58: YES | K58: 0 | M58: NONE | N58: 0 | O58: FULL
A59: S4 | B59: Influence and communicate with colleagues and others, such as engineers, other functions and teams | C59: YES | D59: YES | K59: 0 | M59: PARTIAL | N59: =IF(L59=1,0.5,IF(L59=0.5,0.5,IF(L59=0,0))) -> 0 | O59: =IF(N59=0.5,"NONE",IF(N59=0,"PARTIAL")) -> PARTIAL
A60: S5 | B60: Assess team and individual performance, provide feedback to improve; coach and mentor | C60: YES | D60: YES | K60: 0 | M60: PARTIAL | N60: =IF(L60=1,0.5,IF(L60=0.5,0.5,IF(L60=0,0))) -> 0 | O60: PARTIAL
A61: S6 | B61: Use continuous improvement techniques, for example apply quality management principles, participate in failure investigations and contribute to and implement practical engineering solutions for efficiency and/or profitability | C61: YES | D61: YES | K61: 0 | M61: NONE | N61: =IF(L61=1,1,IF(L61=0.5,0.5,IF(L61=0,0))) -> 0 | O61: =IF(N61=1,"NONE",IF(N61=0.5,"PARTIAL",IF(N61=0,"FULL"))) -> FULL
A62: S7 | B62: Use IT, digitisation and manual methods to collect data from systems to support engineering activity within the business | C62: YES | D62: YES | K62: 0 | M62: NONE | N62: 0 | O62: FULL
A63: S8 | B63: Use and develop planned preventative maintenance (PPM) strategies, incorporate appropriate proactive maintenance routines, such as vibration analysis, thermography, simple visual/part measurement | C63: YES | D63: YES | K63: 0 | M63: NONE | N63: 0 | O63: FULL
A64: S9 | B64: Analyse operational performance, specification and data | C64: YES | D64: YES | K64: 0 | M64: NONE | N64: 0 | O64: FULL
A65: S10 | B65: Evaluate possible failure modes and identify strategy, for example technical risk assessment methods, PPM to RCM techniques | C65: YES | D65: YES | K65: 0 | M65: NONE | N65: 0 | O65: FULL
A66: S11 | B66: Contribute to the construction and commissioning of equipment and machinery used for producing preserved/fresh and safe food and drink products | C66: YES | D66: YES | K66: 0 | M66: PARTIAL | N66: =IF(L66=1,0.5,IF(L66=0.5,0.5,IF(L66=0,0))) -> 0 | O66: =IF(N66=0.5,"NONE",IF(N66=0,"PARTIAL")) -> PARTIAL
A67: S12 | B67: Design, produce, and operate mechanical machinery | C67: YES | D67: NO | K67: 0 | M67: PARTIAL | N67: =IF(L67=1,0.5,IF(L67=0.5,0.5,IF(L67=0,0))) -> 0 | O67: PARTIAL
A68: S13 | B68: Design power circuits, utilising software and calculation | C68: YES | D68: NO | K68: 0 | M68: NONE | N68: =IF(L68=1,1,IF(L68=0.5,0.5,IF(L68=0,0))) -> 0 | O68: =IF(N68=1,"NONE",IF(N68=0.5,"PARTIAL",IF(N68=0,"FULL"))) -> FULL
A69: S14 | B69: Apply specialist reliability engineering techniques to prevent or reduce the likelihood or frequency of failures i.e. vibration analysis, oil sampling, heat mapping, non-destructive testing | C69: YES | D69: NO | K69: 0 | M69: NONE | N69: 0 | O69: FULL
A70: S15 | B70: Apply thermodynamic theory to more complex engineering systems, for example tempering chocolate, cleaning systems, sterilisation, vacuum cooling | C70: YES | D70: NO | K70: 0 | M70: NONE | N70: 0 | O70: FULL
A71: S16 | B71: Design and improve systems, for example steam, water or air | C71: YES | D71: NO | K71: 0 | M71: NONE | N71: 0 | O71: FULL
A72: S17 | B72: Design and configure electrical systems i.e. add distribution boards to circuits | C72: NO | D72: YES | K72: 0 | M72: NONE | N72: 0 | O72: FULL
A73: S18 | B73: Modell dynamic systems utilising software tools | C73: NO | D73: YES | K73: 0 | M73: NONE | N73: 0 | O73: FULL
A74: S19 | B74: Design and modify electrical control engineering systems i.e.: Engineering LAN/ network | C74: NO | D74: YES | K74: 0 | M74: NONE | N74: 0 | O74: FULL
A75: S20 | B75: Diagnose faults on complex control systems | C75: NO | D75: YES | K75: 0 | M75: NONE | N75: 0 | O75: FULL
A76: S21 | B76: Decipher complex programme sequences in higher and lower level languages | C76: NO | D76: YES | K76: 0 | M76: NONE | N76: 0 | O76: FULL
B77: Behaviours
A78: B1 | B78: Safe working, for example promotes a culture of food safety and safe working practices | C78: YES | D78: YES | K78: =IF(E78:E85 = "FULLY MET",1,IF(E78:E85 = "PARTIALLY MET",0.5,IF(E78:E85 = "NOT MET",0,))) -> 0 | M78: NONE | N78: =IF(L78=1,1,IF(L78=0.5,0.5,IF(L78=0,0))) -> 0 | O78: =IF(N78=1,"NONE",IF(N78=0.5,"PARTIAL",IF(N78=0,"FULL"))) -> FULL
A79: B2 | B79: Takes ownership of work, for example takes responsibility and ownership of decision making for good food practice; is proactive, and demonstrates initiative; plans work: dependable; works autonomously within own sphere of responsibility | C79: YES | D79: YES | K79: 0 | M79: NONE | N79: 0 | O79: FULL
A80: B3 | B80: Shows pride in work, for example strong work ethic; displays a positive mind set; pays attention to detail; looks for new ways of working that improve outcomes and results | C80: YES | D80: YES | K80: 0 | M80: NONE | N80: 0 | O80: FULL
A81: B4 | B81: Committed to self-development, for example seeks learning, drives the development of self and others; maintains and enhances own practice through continuing professional development activity | C81: YES | D81: YES | K81: 0 | M81: PARTIAL | N81: =IF(L81=1,0.5,IF(L81=0.5,0.5,IF(L81=0,0))) -> 0 | O81: =IF(N81=0.5,"NONE",IF(N81=0,"PARTIAL")) -> PARTIAL
A82: B5 | B82: Shows integrity and respect, for example promotes integrity in process and site standards, respects others, promotes good communication at all levels, adapts personal style to meet work needs | C82: YES | D82: YES | K82: 0 | M82: NONE | N82: =IF(L82=1,1,IF(L82=0.5,0.5,IF(L82=0,0))) -> 0 | O82: =IF(N82=1,"NONE",IF(N82=0.5,"PARTIAL",IF(N82=0,"FULL"))) -> FULL
A83: B6 | B83: Team player, for example drives good relationships with others, works collaboratively, contributes ideas and challenges appropriately | C83: YES | D83: YES | K83: 0 | M83: NONE | N83: 0 | O83: FULL
A84: B7 | B84: Responsive to change, for example flexible to changing working environment and demands; resilient under pressure | C84: YES | D84: YES | K84: 0 | M84: NONE | N84: 0 | O84: FULL
A85: B8 | B85: Shows company/industry perspective, for example promotes the position of the business in relation to market and competition, keeps up to date with industry and market advancement, commercially aware | C85: YES | D85: YES | K85: 0 | M85: PARTIAL | N85: =IF(L85=1,0.5,IF(L85=0.5,0.5,IF(L85=0,0))) -> 0 | O85: =IF(N85=0.5,"NONE",IF(N85=0,"PARTIAL")) -> PARTIAL
K88: Food and Drink Engineer (level 5) (ST0624) - Mechanical Food and Drink Engineer
K90: Gross score | L90: =SUM(L26:L47, L56:L71, L78:L85) -> 0 | M90: Net Score | N90: =SUM(N26:N47, N56:N71, N78:N85) -> 0
K91: total KSB coverage | L91: =L90/N94 -> 0 | M91: total CoE KSB coverage | N91: =N90/N97 -> 0
M94: total KSBs | N94: 46
M95: fully mitigated | N95: 0
M96: partially mitigated | N96: 6
M97: net KSB | N97: =N94-N95-(N96*0.5) -> 43
K100: Food and Drink Engineer (level 5) (ST0624) - Electrical Food and Drink Engineer
K102: Gross score | L102: =SUM(L26:L43, L47:L54, L56:L66, L72:L76, L78:L85) -> 0 | M102: Net Score | N102: =SUM(N26:N43, N47:N54, N56:N66, N72:N76, N78:N85) -> 0
K103: total KSB coverage | L103: =L102/N106 -> 0 | M103: total CoE KSB coverage | N103: =N102/N109 -> 0
M106: total KSBs | N106: 49
M107: fully mitigated | N107: 0
M108: partially mitigated | N108: 5
M109: net KSB | N109: =N106-N107-(N108*0.5) -> 46.5
K112: TOTAL FOR ALL KBSs
K114: Gross score | L114: =SUM(L26:L85) -> 0 | M114: Net Score | N114: =SUM(N26:N85) -> 0
K115: total KSB coverage | L115: =L114/N118 -> 0 | M115: total CoE KSB coverage | N115: =N114/N121 -> 0
M118: total KSBs | N118: 58
M119: fully mitigated | N119: 0
M120: partially mitigated | N120: 6
M121: net KSB | N121: =N118-N119-(N120*0.5) -> 55

Sheet ST0662
B1: START HERE
B2: Awarding body/Applicant:
B3: Please type the name of awarding body/applicant here
B4: Qualification name:
B5: Please type your qualification title here
B6: Programme title if applicable:
B7: Please type the programme title here
A10: EXAMPLE OF KSB MAPPING
A11: KSB | B11: KSB Statement | C11: KSB coverage Select the coverage provided by the qualification from the dropdown box | D11: Where in the qualification is the relevant content? Please reference precisely where the content you are citing as evidence is within the submitted documents - Document name/Module name/Specific page number | E11: Evidence Quote or copy & paste the relevant content from your referenced qualification documents. Please provide 1 - 3 references that best evidence the KSB and only refer to content that all students will cover regardless of option choice. The information you supply in this column, in conjunction with the Supporting Comments / Rationale column (Column F) should clearly and explicitly demonstrate the declared level of KSB coverage. | F11: Supporting Comments/Rationale Where the evidence in Column E does not clearly and explicitly provide the declared level of coverage or might not be obvious to someone who is not an expert in your qualification, use this space to explain how the level of KSB coverage is achieved by the qualification content - please be specific to the wording and meaning of the KSB statement. Where a KSB is not fully met, please provide the rationale for why you feel this is not achievable. | G11: Assessment method Provide information on the method(s) used to assess this KSB and relevant assessment materials.
A12: K7 | B12: Safe and professional working practices including health, safety, environment and legislative requirements relevant to the sector, the organisation and own role | C12: FULLY MET | D12: Qualification specification, pg 14-16 Module 2: Health, safety and professional working practices, pg 6 | E12: Module 2: LO1 - Understand the importance of health and safety in the workplace. LO2 - Understand the application of health and safety legislation in the workplace. LO3 - Understand how to apply safe working practices to work activities. Indicative content: local, regional, national health & safety regulations, codes of practice, site safety, health & safety promotion, health & safety measures, PPE, manual handling, equipment management, waste disposal, risk management, risk assessment | F12: Learners will be able to show a full understanding of Health & Safety and legislative requirements relevant to the role. The indicative content on Pg 16 of the qualification specification shows they will cover Health & Safety across the wider sector, and then identify some measures that may be specific to certain organisations. Learners will also analyse the role of the employer and the environment with regards to applying Health & Safety working practices and processes. | G12: Module 2 - students will produce a written report using a brief. There is also a short answer paper. Module 2 Assessment Brief pg 7-8 refers.
A13: S23 | B13: Communicate effectively (verbal, non-verbal, written, digital) in manner relevant to the target audience | C13: FULLY MET | D13: Qualification specification, pg 21-22 Module 6: The Fundamentals of Practice, pg 12 Module 9: Personal and Professional Development Skills, pg 11 | E13: Module 6: LO2 - Know how to use digital devices and databases relevant to your workplace. Module 9: LO1 - Understand the uses of different methods of communication. LO3 - Be able to communicate effectively with different audiences. Indicative content: verbal and non-verbal communication skills, presentation skills, academic and non-academic writing style, writing skills | F13: Learners will cover verbal, non-verbal, written and digital communications, and demonstrate practical skills by completing assessment tasks which will include simulated work environments and preparing presentations targeting different audiences. Learners will develop the skills to communicate with people in a professional capacity including co-workers, line managers, clients, contractors and the public. | G13: Module 6 - case study. Module 9 - scenarios in simulated work environment, students will produce presentation. Module 9 assessment pg 4.
B18: Automation and controls engineering technician (level 4)
B19: Return to Guide
A20: KSB | B20: KSB Statement | C20: KSB coverage Select the coverage provided by the qualification from the dropdown box | D20: Where in the qualification is the relevant content? Please reference precisely where the content you are citing as evidence is within the submitted documents - Document name/Module name/Specific page number | E20: Evidence Quote or copy & paste the relevant content from your referenced qualification documents. Please provide 1 - 3 references that best evidence the KSB and only refer to content that all students will cover regardless of option choice. The information you supply in this column, in conjunction with the Supporting Comments / Rationale column (Column F) should clearly and explicitly demonstrate the declared level of KSB coverage. | F20: Supporting Comments/Rationale Where the evidence in Column E does not clearly and explicitly provide the declared level of coverage or might not be obvious to someone who is not an expert in your qualification, use this space to explain how the level of KSB coverage is achieved by the qualification content - please be specific to the wording and meaning of the KSB statement. Where a KSB is not fully met, please provide the rationale for why you feel this is not achievable. | G20: Assessment method Provide information on the method(s) used to assess this KSB and relevant assessment materials. | I20: AB Score | J20: IM Score | K20: Mitigations | L20: CoE Score | M20: Outstanding Requirement | N20: IM Comment | O20: IM moderation | P20: G7 QA | Q20: IM G7 Response | R20: Conclusion
B21: Knowledge
A22: K1 | B22: Engineering maths - mathematical principles and theories that underpin engineering | I22: =IF(C22:C34 = "FULLY MET",1,IF(C22:C34 = "PARTIALLY MET",0.5,IF(C22:C34 = "NOT MET",0,))) -> 0 | K22: NONE | L22: =IF(J22=1,1,IF(J22=0.5,0.5,IF(J22=0,0))) -> 0 | M22: =IF(L22=1,"NONE",IF(L22=0.5,"PARTIAL",IF(L22=0,"FULL"))) -> FULL
A23: K2 | B23: Engineering principles - the underlying principles of electrical and electronic circuits and devices | I23: 0 | K23: NONE | L23: 0 | M23: FULL
A24: K3 | B24: Functional solutions - Create functional solutions; identifying and justifying a solution to a given engineering need | I24: 0 | K24: NONE | L24: 0 | M24: FULL
A25: K4 | B25: Safety procedures - relevant safety procedures required to operate on automation equipment in an industrial environment | I25: 0 | K25: NONE | L25: 0 | M25: FULL
A26: K5 | B26: Single and three phase circuits - single phase and three phase supplies on AC and DC motor and control circuits | I26: 0 | K26: NONE | L26: 0 | M26: FULL
A27: K6 | B27: Automation knowledge - Programmable Logic Controllers (PLC), Variable Speed Drives (VSD), Human Machine Interface (HMI) & Supervisory Control and Data Acquisition (SCADA), robotics hardware and software tools to carry out configuration, programming and fault finding duties | I27: 0 | K27: NONE | L27: 0 | M27: FULL
A28: K7 | B28: Instrumentation knowledge - instrumentation used to measure flow, temperature, pressure etc and the means by which they transmit measurement data | I28: 0 | K28: NONE | L28: 0 | M28: FULL
A29: K8 | B29: Use of software tools - Justification in the utilisation of software tools would be for but not limited to the changing of hardware configurations, firmware updates, software modifications and commissioning | I29: 0 | K29: NONE | L29: 0 | M29: FULL
A30: K9 | B30: Industrial networking knowledge - the application, installation and operational characteristics of industrial communication networks at Supervisory (e.g. Ethernet), Cell (e.g. PROFINET/PROFIBUS) and Field (e.g. AS-Interface) levels | I30: 0 | K30: NONE | L30: 0 | M30: FULL
A31: K10 | B31: Use of diagnostic tools - diagnostic tools and equipment including web-based diagnostics incorporated into network devices and other software tools (e.g. PROFITrace) | I31: 0 | K31: NONE | L31: 0 | M31: FULL
A32: K11 | B32: Understand technical documents - Ability to follow electrical system circuit diagrams, understand the operation of the various components that make up an automation system | I32: 0 | K32: NONE | L32: 0 | M32: FULL
A33: K12 | B33: Safety legislation and responsibilities - electrical safety system legislation & directives | I33: 0 | K33: NONE | L33: 0 | M33: FULL
A34: K13 | B34: Quality systems - quality assurance principles to ensure operation, consistency and quantification of enhancement of manufacturing and process applications | I34: 0 | K34: NONE | L34: 0 | M34: FULL
B35: Skills
A36: S1 | B36: Safety Effective - The ability to work safely in an industrial environment and where required, produce risk assessment/method statement documentation. Be able to apply the principles of functional machinery and/or process safety including SIL (Safety Integrated Level) and PL (Performance Level) terminology | I36: =IF(C36:C43 = "FULLY MET",1,IF(C36:C43 = "PARTIALLY MET",0.5,IF(C36:C43 = "NOT MET",0,))) -> 0 | K36: NONE | L36: =IF(J36=1,1,IF(J36=0.5,0.5,IF(J36=0,0))) -> 0 | M36: =IF(L36=1,"NONE",IF(L36=0.5,"PARTIAL",IF(L36=0,"FULL"))) -> FULL
A37: S2 | B37: Engineering documentation - Production and interpretation of a range of technical documentation (device manuals, operating procedures, schematics, fault reports etc), and working with company documentation systems | I37: 0 | K37: NONE | L37: 0 | M37: FULL
A38: S3 | B38: Project engineering capabilities - Support of installation, commissioning, shut-down, start-up and maintenance/service/support of a wide range of systems and devices | I38: 0 | K38: NONE | L38: 0 | M38: FULL
A39: S4 | B39: Diagnostic capabilities - Fault finding, diagnosis, rectification and reporting of automation control systems and controls applications via the utilisation of formal problem solving methods and diagnostic tools/software | I39: 0 | K39: NONE | L39: 0 | M39: FULL
A40: S5 | B40: Instrumentation configuration and calibration - Set-up, calibrate and commission a wide variety of field level instrumentation that interfaces to automation & control systems | I40: 0 | K40: NONE | L40: 0 | M40: FULL
A41: S6 | B41: Industrial Networks configuration and support - configure, assist commissioning and continued support of industrial network solutions at all hierarchical levels of control system integration using the requisite tools and or software | I41: 0 | K41: NONE | L41: 0 | M41: FULL
A42: S7 | B42: HMI & SCADA configuration and programming - Make changes to existing systems or implement new configurations | I42: 0 | K42: NONE | L42: 0 | M42: FULL
A43: S8 | B43: PLC/Robot configuration and programming - Implement complex PLC/Robot program content and configurations to affect changes to increase availability and or efficiency of automation controlled machinery and the ability to configure PLC and or Robot hardware and program a wide variety of PLC’s and or Robot’s | I43: 0 | K43: NONE | L43: 0 | M43: FULL
B44: Behaviours
A45: B1 | B45: Zero Harm - Always prioritise on Health and Safety best practice | I45: =IF(C45:C55 = "FULLY MET",1,IF(C45:C55 = "PARTIALLY MET",0.5,IF(C45:C55 = "NOT MET",0,))) -> 0 | K45: NONE | L45: =IF(J45=1,1,IF(J45=0.5,0.5,IF(J45=0,0))) -> 0 | M45: =IF(L45=1,"NONE",IF(L45=0.5,"PARTIAL",IF(L45=0,"FULL"))) -> FULL
A46: B2 | B46: Resilience - Sound and established ability to work effectively both in a team and alone | I46: 0 | K46: NONE | L46: 0 | M46: FULL
A47: B3 | B47: Personal excellence - Interact professionally with clients and stakeholders | I47: 0 | K47: NONE | L47: 0 | M47: FULL
A48: B4 | B48: Communicative - High quality communication skills | I48: 0 | K48: NONE | L48: 0 | M48: FULL
A49: B5 | B49: Ethical - Strong professional and business ethics | I49: 0 | K49: NONE | L49: 0 | M49: FULL
A50: B6 | B50: Commitment - A focus on quality in all the tasks assigned | I50: 0 | K50: NONE | L50: 0 | M50: FULL
A51: B7 | B51: Continual development - Willingness to learn new processes, methods and technologies | I51: 0 | K51: NONE | L51: 0 | M51: FULL
A52: B8 | B52: Responsibility - Strong commitment and accountability and ability to apply independent judgement | I52: 0 | K52: NONE | L52: 0 | M52: FULL
A53: B9 | B53: Personal Values - Respect and tolerance of others | I53: 0 | K53: NONE | L53: 0 | M53: FULL
A54: B10 | B54: Ambassadorial - To be a role model of engineering practice and to promote engineering in order to sustain a pipeline of future talent | I54: 0 | K54: PARTIAL | L54: =IF(J54=1,0.5,IF(J54=0.5,0.5,IF(J54=0,0))) -> 0 | M54: =IF(L54=0.5,"NONE",IF(L54=0,"PARTIAL")) -> PARTIAL
A55: B11 | B55: Reflection - Evaluate outcomes of own performance across all duties | I55: 0 | K55: NONE | L55: =IF(J55=1,1,IF(J55=0.5,0.5,IF(J55=0,0))) -> 0 | M55: =IF(L55=1,"NONE",IF(L55=0.5,"PARTIAL",IF(L55=0,"FULL"))) -> FULL
I58: Gross score | J58: =SUM(J22:J55) -> 0 | K58: Net Score | L58: =SUM(L22:L55) -> 0
I59: total KSB coverage | J59: =J58/L62 -> 0 | K59: total CoE KSB coverage | L59: =L58/L65 -> 0
K62: total KSBs | L62: 32
K63: fully mitigated | L63: 0
K64: partially mitigated | L64: 1
K65: net KSB | L65: =L62-L63-(L64*0.5) -> 31.5

Sheet ST0841
B1: START HERE
B2: Awarding body/Applicant:
B3: Please type the name of awarding body/applicant here
B4: Qualification name:
B5: Please type your qualification title here
B6: Programme title if applicable:
B7: Please type the programme title here
A10: EXAMPLE OF KSB MAPPING
A11: KSB | B11: KSB Statement | C11: KSB coverage Select the coverage provided by the qualification from the dropdown box | D11: Where in the qualification is the relevant content? Please reference precisely where the content you are citing as evidence is within the submitted documents - Document name/Module name/Specific page number | E11: Evidence Quote or copy & paste the relevant content from your referenced qualification documents. Please provide 1 - 3 references that best evidence the KSB and only refer to content that all students will cover regardless of option choice. The information you supply in this column, in conjunction with the Supporting Comments / Rationale column (Column F) should clearly and explicitly demonstrate the declared level of KSB coverage. | F11: Supporting Comments/Rationale Where the evidence in Column E does not clearly and explicitly provide the declared level of coverage or might not be obvious to someone who is not an expert in your qualification, use this space to explain how the level of KSB coverage is achieved by the qualification content - please be specific to the wording and meaning of the KSB statement. Where a KSB is not fully met, please provide the rationale for why you feel this is not achievable. | G11: Assessment method Provide information on the method(s) used to assess this KSB and relevant assessment materials.
A12: K7 | B12: Safe and professional working practices including health, safety, environment and legislative requirements relevant to the sector, the organisation and own role | C12: FULLY MET | D12: Qualification specification, pg 14-16 Module 2: Health, safety and professional working practices, pg 6 | E12: Module 2: LO1 - Understand the importance of health and safety in the workplace. LO2 - Understand the application of health and safety legislation in the workplace. LO3 - Understand how to apply safe working practices to work activities. Indicative content: local, regional, national health & safety regulations, codes of practice, site safety, health & safety promotion, health & safety measures, PPE, manual handling, equipment management, waste disposal, risk management, risk assessment | F12: Learners will be able to show a full understanding of Health & Safety and legislative requirements relevant to the role. The indicative content on Pg 16 of the qualification specification shows they will cover Health & Safety across the wider sector, and then identify some measures that may be specific to certain organisations. Learners will also analyse the role of the employer and the environment with regards to applying Health & Safety working practices and processes. | G12: Module 2 - students will produce a written report using a brief. There is also a short answer paper. Module 2 Assessment Brief pg 7-8 refers.
A13: S23 | B13: Communicate effectively (verbal, non-verbal, written, digital) in manner relevant to the target audience | C13: FULLY MET | D13: Qualification specification, pg 21-22 Module 6: The Fundamentals of Practice, pg 12 Module 9: Personal and Professional Development Skills, pg 11 | E13: Module 6: LO2 - Know how to use digital devices and databases relevant to your workplace. Module 9: LO1 - Understand the uses of different methods of communication. LO3 - Be able to communicate effectively with different audiences. Indicative content: verbal and non-verbal communication skills, presentation skills, academic and non-academic writing style, writing skills | F13: Learners will cover verbal, non-verbal, written and digital communications, and demonstrate practical skills by completing assessment tasks which will include simulated work environments and preparing presentations targeting different audiences. Learners will develop the skills to communicate with people in a professional capacity including co-workers, line managers, clients, contractors and the public. | G13: Module 6 - case study. Module 9 - scenarios in simulated work environment, students will produce presentation. Module 9 assessment pg 4.
B18: Engineering manufacturing technician (level 4)
B19: Return to Guide
A20: KSB | B20: KSB Statement | C20: KSB coverage Select the coverage provided by the qualification from the dropdown box | D20: Where in the qualification is the relevant content? Please reference precisely where the content you are citing as evidence is within the submitted documents - Document name/Module name/Specific page number | E20: Evidence Quote or copy & paste the relevant content from your referenced qualification documents. Please provide 1 - 3 references that best evidence the KSB and only refer to content that all students will cover regardless of option choice. The information you supply in this column, in conjunction with the Supporting Comments / Rationale column (Column F) should clearly and explicitly demonstrate the declared level of KSB coverage. | F20: Supporting Comments/Rationale Where the evidence in Column E does not clearly and explicitly provide the declared level of coverage or might not be obvious to someone who is not an expert in your qualification, use this space to explain how the level of KSB coverage is achieved by the qualification content - please be specific to the wording and meaning of the KSB statement. Where a KSB is not fully met, please provide the rationale for why you feel this is not achievable. | G20: Assessment method Provide information on the method(s) used to assess this KSB and relevant assessment materials. | I20: AB Score | J20: IM Score | K20: Mitigations | L20: CoE Score | M20: Outstanding Requirement | N20: IM Comment | O20: IM moderation | P20: G7 QA | Q20: IM G7 Response | R20: Conclusion
B21: Knowledge
A22: K1 | B22: Problem solving tools/techniques. Such as practical problem solving (PPS), root cause analysis (RCA) and process failure mode effects analysis (PFMEA). | I22: =IF(C22:C44 = "FULLY MET",1,IF(C22:C44 = "PARTIALLY MET",0.5,IF(C22:C44 = "NOT MET",0,))) -> 0 | K22: NONE | L22: =IF(J22=1,1,IF(J22=0.5,0.5,IF(J22=0,0))) -> 0 | M22: =IF(L22=1,"NONE",IF(L22=0.5,"PARTIAL",IF(L22=0,"FULL"))) -> FULL
A23: K2 | B23: Effective communication techniques including listening, questioning and support of others. | I23: 0 | K23: NONE | L23: 0 | M23: FULL
A24: K3 | B24: Use, benefits and applications of lean methods and tools used in manufacturing and engineering (such as Kaizen, Six Sigma and 8 wastes). | I24: 0 | K24: NONE | L24: 0 | M24: FULL
A25: K4 | B25: How Industry 4.0 will impact organisations, including the integration of automation, digital systems and manufacturing engineering systems. | I25: 0 | K25: NONE | L25: 0 | M25: FULL
A26: K5 | B26: Quality management systems used such as ISO9001, AS9100, ISO 14001 and TS16949, its purpose and internal governance arrangements to ensure compliance. | I26: 0 | K26: NONE | L26: 0 | M26: FULL
A27: K6 | B27: Different manufacturing methods used, their applications, such as machining, joining, forming, assembling, shaping, processing, printing, moulding, extruding and casting. | I27: 0 | K27: NONE | L27: 0 | M27: FULL
A28: K7 | B28: Principles of quality control and quality assurance in a manufacturing and engineering environment. | I28: 0 | K28: NONE | L28: 0 | M28: FULL
A29: K8 | B29: Team integration techniques, including conflict resolution and managing difficult conversations (team working). | I29: 0 | K29: NONE | L29: 0 | M29: FULL
A30: K9 | B30: Core engineering principles such as mathematics, science, mechanical and electrical/electronic applications relevant to manufacturing and engineering activity undertaken. | I30: 0 | K30: NONE | L30: 0 | M30: FULL
A31: K10 | B31: Importance for individuals to use and follow the organisations approved Standard Operating Procedures (SOP’s) and documentation recording systems and the potential implications on safety, quality and delivery if they are not adhered to. | I31: 0 | K31: NONE | L31: 0 | M31: FULL
A32: K11 | B32: Statutory and organisation health and safety policies, procedures and regulations that must be adhered to in a manufacturing and engineering environment including the risk assessment process, procedures and documentation used within the work area. | I32: 0 | K32: NONE | L32: 0 | M32: FULL
A33: K12 | B33: Project management techniques, such as Strengths, Weaknesses, Opportunities, Threats (SWOT), stakeholder matrices, risk mapping, radar chart and summary risk profiles. | I33: 0 | K33: NONE | L33: 0 | M33: FULL
A34: K13 | B34: How human factors (organisational, environment and job factors) can influence and impact individual characteristics, performance and behaviours in the workplace. | I34: 0 | K34: NONE | L34: 0 | M34: FULL
A35: K14 | B35: Engineering and manufacturing related documentation used such as job cards / build records, 2D & 3D drawing/models, Bill of Materials (BOM), Cost Analysis Reports, Compliance Report, Standard Operating Instructions (SOI's), Standard Process Instructions (POI's), Engineering Query Notifications (EQN's) and Drawing Query Notifications (DQN's). | I35: 0 | K35: NONE | L35: 0 | M35: FULL
A36: K15 | B36: Prioritisation of workload/time management techniques to ensure that personal and team objectives are achieved effectively. | I36: 0 | K36: NONE | L36: 0 | M36: FULL
A37: K16 | B37: Engineering and manufacturing data collection systems used, their format and content. | I37: 0 | K37: NONE | L37: 0 | M37: FULL
A38: K17 | B38: How organisations manage and monitor internal and or supplier performance to ensure that cost, quality, delivery and sustainability objectives are being delivered. | I38: 0 | K38: NONE | L38: 0 | M38: FULL
A39: K18 | B39: Use and applications of common metallic and non – metallic materials used in manufacturing and engineering. | I39: 0 | K39: NONE | L39: 0 | M39: FULL
A40: K19 | B40: Different production methods used and their applications such as single, batch, flow and mass. | I40: 0 | K40: NONE | L40: 0 | M40: FULL
A41: K20 | B41: Different methods, tools and frequency used to check quality in manufacturing and engineering including measurements such as (dimensions, weight, signal, temperature, time,) and testing (such as non-destructive and destructive). | I41: 0 | K41: NONE | L41: 0 | M41: FULL
A42: K21 | B42: Departmental process used to create, record and review financial data and information. | I42: 0 | K42: NONE | L42: 0 | M42: FULL
A43: K22 | B43: The different applications and limitations of computer based software system/packages used such as Computer Aided Design (CAD), Data Analytics and Databases. | I43: 0 | K43: NONE | L43: 0 | M43: FULL
A44: K23 | B44: The impact of sustainability and environmental efficiency and how such matters influence manufacturing decisions. | I44: 0 | K44: NONE | L44: 0 | M44: FULL
B45: Skills
A46: S1 | B46: Read and extract relevant engineering and manufacturing related data and information (such as workplans/project plans ,schedules, drawings, specifications, production data, quality reports, costing data, statistical information) drawing accurate conclusions and making informed decisions. | I46: =IF(C46:C55 = "FULLY MET",1,IF(C46:C55 = "PARTIALLY MET",0.5,IF(C46:C55 = "NOT MET",0,))) -> 0 | K46: NONE | L46: =IF(J46=1,1,IF(J46=0.5,0.5,IF(J46=0,0))) -> 0 | M46: =IF(L46=1,"NONE",IF(L46=0.5,"PARTIAL",IF(L46=0,"FULL"))) -> FULL
A47: S2 | B47: Use project management tools, such as Strengths, Weaknesses, Opportunities, Threats (SWOT), stakeholder matrices, risk mapping, radar chart and summary risk profiles. | I47: 0 | K47: NONE | L47: 0 | M47: FULL
A48: S3 | B48: Use problem solving tools such as Root Cause Analysis (RCA) Process Failure Modes Effects Analysis (PFMEA), Fishbone, Practical Problem Solving (PPS) and Advanced Product Quality Planning (APQP). | I48: 0 | K48: NONE | L48: 0 | M48: FULL
A49: S4 | B49: Analyse and interpret data and information in order to generate manufacturing engineering documentation such as Parts Per Million (PPM) quality adherence, cost analysis and test data. | I49: 0 | K49: NONE | L49: 0 | M49: FULL
A50: S5 | B50: Communicate using the appropriate method for the audience such as, formal and informal presentations, written reports, verbal, electronic, social media and incorporating relevant and appropriate data and/or metrics. | I50: 0 | K50: NONE | L50: 0 | M50: FULL
A51: S6 | B51: Use the approved process and quality compliance procedure to create or amend engineering and/or manufacturing documentation. | I51: 0 | K51: NONE | L51: 0 | M51: FULL
A52: S7 | B52: Use lean tools and techniques, such as Six Sigma, 8 Wastes, Workplace organisation such as 5S's (sort, set in order, shine, standardise and sustain), Kaizen and Poka-Yoke (Error proofing). | I52: 0 | K52: NONE | L52: 0 | M52: FULL
A53: S8 | B53: Apply documentation control processes and procedures such as format, location, access, authorisation. | I53: 0 | K53: NONE | L53: 0 | M53: FULL
A54: S9 | B54: Use financial planning, recording and review processes and documentation such as departmental budgets, estimating, cost control, cost forecasting, and investment appraisal. | I54: 0 | K54: NONE | L54: 0 | M54: FULL
A55: S10 | B55: Use computer based software system/packages such as Computer Aided Design (CAD), Data Analytics and Databases. | I55: 0 | K55: NONE | L55: 0 | M55: FULL
B56: Behaviours
A57: B1 | B57: Champions the importance of adherence to the organisation’s Environmental, Health and Safety management systems:- actively displays and promotes a safety first culture within the organisation. | I57: =IF(C57:C63 = "FULLY MET",1,IF(C57:C63 = "PARTIALLY MET",0.5,IF(C57:C63 = "NOT MET",0,))) -> 0 | K57: PARTIAL | L57: =IF(J57=1,0.5,IF(J57=0.5,0.5,IF(J57=0,0))) -> 0 | M57: =IF(L57=0.5,"NONE",IF(L57=0,"PARTIAL")) -> PARTIAL
A58: B2 | B58: Operates in a systematic, proactive and transparent way. | I58: 0 | K58: NONE | L58: =IF(J58=1,1,IF(J58=0.5,0.5,IF(J58=0,0))) -> 0 | M58: =IF(L58=1,"NONE",IF(L58=0.5,"PARTIAL",IF(L58=0,"FULL"))) -> FULL
A59: B3 | B59: Actively promotes the case for the adoption of emerging and advanced engineering and manufacturing technologies to optimise performance. | I59: 0 | K59: PARTIAL | L59: =IF(J59=1,0.5,IF(J59=0.5,0.5,IF(J59=0,0))) -> 0 | M59: =IF(L59=0.5,"NONE",IF(L59=0,"PARTIAL")) -> PARTIAL
A60: B4 | B60: Takes full responsibility for own professional development, seeking opportunities to enhance knowledge, skills and experience. Keeping abreast of developments in engineering processes manufacturing and emerging technologies. | I60: 0 | K60: NONE | L60: =IF(J60=1,1,IF(J60=0.5,0.5,IF(J60=0,0))) -> 0 | M60: =IF(L60=1,"NONE",IF(L60=0.5,"PARTIAL",IF(L60=0,"FULL"))) -> FULL
A61: B5 | B61: Complies with statutory and organisational health & safety regulations and policies at all times. Accepts responsibility for their workload with a responsible approach to risk. Demonstrates a high level of motivation and resilience when facing challenge. | I61: 0 | K61: NONE | L61: 0 | M61: FULL
A62: B6 | B62: Creates and maintains positive, professional, trusting and ethical working relationships with their team and the wider range of internal, external and connected stakeholders. | I62: 0 | K62: PARTIAL | L62: =IF(J62=1,0.5,IF(J62=0.5,0.5,IF(J62=0,0))) -> 0 | M62: =IF(L62=0.5,"NONE",IF(L62=0,"PARTIAL")) -> PARTIAL
A63: B7 | B63: Acts professionally with a positive and respectful attitude. | I63: 0 | K63: NONE | L63: =IF(J63=1,1,IF(J63=0.5,0.5,IF(J63=0,0))) -> 0 | M63: =IF(L63=1,"NONE",IF(L63=0.5,"PARTIAL",IF(L63=0,"FULL"))) -> FULL
I66: Gross score | J66: =SUM(J22:J63) -> 0 | K66: Net Score | L66: =SUM(L22:L63) -> 0
I67: total KSB coverage | J67: =J66/L70 -> 0 | K67: total CoE KSB coverage | L67: =L66/L73 -> 0
K70: total KSBs | L70: 40
K71: fully mitigated | L71: 0
K72: partially mitigated | L72: 3
K73: net KSB | L73: =L70-L71-(L72*0.5) -> 38.5

Sheet ST0847
B1: START HERE
B2: Awarding body/Applicant:
B3: Please type the name of awarding body/applicant here
B4: Qualification name:
B5: Please type your qualification title here
B6: Programme title if applicable:
B7: Please type the programme title here
A10: EXAMPLE OF KSB MAPPING
A11: KSB | B11: KSB Statement (this list contains the core KSBs for the Engineer Surveyor occupation, plus the specific KSBs for Engineer Surveyor (Mechanical) and Engineer Surveyor (Electrical) options) | C11: Included in: | E11: KSB coverage Select the coverage provided by the qualification from the dropdown box | F11: Where in the qualification is the relevant content? Please reference precisely where the content you are citing as evidence is within the submitted documents - Document name/Module name/Specific page number | G11: Evidence Quote or copy & paste the relevant content from your referenced qualification documents. Please provide 1 - 3 references that best evidence the KSB and only refer to content that all students will cover regardless of option choice. The information you supply in this column, in conjunction with the Supporting Comments / Rationale column (Column H) should clearly and explicitly demonstrate the declared level of KSB coverage. | H11: Supporting Comments/Rationale Where the evidence in Column G does not clearly and explicitly provide the declared level of coverage or might not be obvious to someone who is not an expert in your qualification, use this space to explain how the level of KSB coverage is achieved by the qualification content - please be specific to the wording and meaning of the KSB statement. Where a KSB is not fully met, please provide the rationale for why you feel this is not achievable. | I11: Assessment method Provide information on the method(s) used to assess this KSB and relevant assessment materials.
C12: Engineer surveyor (level 4) - Engineer Surveyor (Mechanical) | D12: Engineer surveyor (level 4) - Engineer Surveyor (Electrical)
A13: K7 | B13: Safe and professional working practices including health, safety, environment and legislative requirements relevant to the sector, the organisation and own role | C13: Yes | D13: Yes | E13: FULLY MET | F13: Qualification specification, pg 14-16 Module 2: Health, safety and professional working practices, pg 6 | G13: Module 2: LO1 - Understand the importance of health and safety in the workplace. LO2 - Understand the application of health and safety legislation in the workplace. LO3 - Understand how to apply safe working practices to work activities. Indicative content: local, regional, national health & safety regulations, codes of practice, site safety, health & safety promotion, health & safety measures, PPE, manual handling, equipment management, waste disposal, risk management, risk assessment | H13: Learners will be able to show a full understanding of Health & Safety and legislative requirements relevant to the role. The indicative content on Pg 16 of the qualification specification shows they will cover Health & Safety across the wider sector, and then identify some measures that may be specific to certain organisations. Learners will also analyse the role of the employer and the environment with regards to applying Health & Safety working practices and processes. | I13: Module 2 - students will produce a written report using a brief. There is also a short answer paper. Module 2 Assessment Brief pg 7-8 refers.
A14: S23 | B14: Communicate effectively (verbal, non-verbal, written, digital) in manner relevant to the target audience | C14: Yes | D14: Yes | E14: FULLY MET | F14: Qualification specification, pg 21-22 Module 6: The Fundamentals of Practice, pg 12 Module 9: Personal and Professional Development Skills, pg 11 | G14: Module 6: LO2 - Know how to use digital devices and databases relevant to your workplace. Module 9: LO1 - Understand the uses of different methods of communication. LO3 - Be able to communicate effectively with different audiences. Indicative content: verbal and non-verbal communication skills, presentation skills, academic and non-academic writing style, writing skills | H14: Learners will cover verbal, non-verbal, written and digital communications, and demonstrate practical skills by completing assessment tasks which will include simulated work environments and preparing presentations targeting different audiences. Learners will develop the skills to communicate with people in a professional capacity including co-workers, line managers, clients, contractors and the public. | I14: Module 6 - case study. Module 9 - scenarios in simulated work environment, students will produce presentation. Module 9 assessment pg 4.
B19: Engineer surveyor (level 4)
B20: Return to Guide
B21: Two options are available (columns C-D). Please check if the KSB needs to be mapped against the option of your choice. If you map against two options and the evidence is different for each option please mark which evidence corresponds to which option.
A24: KSB | B24: KSB Statement (this list contains the core KSBs for the Engineer Surveyor occupation, plus the specific KSBs for Engineer Surveyor (Mechanical) and Engineer Surveyor (Electrical) options) | C24: Included in: | E24: KSB coverage Select the coverage provided by the qualification from the dropdown box | F24: Where in the qualification is the relevant content? Please reference precisely where the content you are citing as evidence is within the submitted documents - Document name/Module name/Specific page number | G24: Evidence Quote or copy & paste the relevant content from your referenced qualification documents. Please provide 1 - 3 references that best evidence the KSB and only refer to content that all students will cover regardless of option choice. The information you supply in this column, in conjunction with the Supporting Comments / Rationale column (Column H) should clearly and explicitly demonstrate the declared level of KSB coverage. | H24: Supporting Comments/Rationale Where the evidence in Column G does not clearly and explicitly provide the declared level of coverage or might not be obvious to someone who is not an expert in your qualification, use this space to explain how the level of KSB coverage is achieved by the qualification content - please be specific to the wording and meaning of the KSB statement. Where a KSB is not fully met, please provide the rationale for why you feel this is not achievable. | I24: Assessment method Provide information on the method(s) used to assess this KSB and relevant assessment materials. | K24: AB Score | L24: IM Score | M24: Mitigations | N24: CoE Score | O24: Outstanding Requirement | P24: IM Comment | Q24: IM moderation | R24: G7 QA | S24: IM G7 Response | T24: Conclusion
B25: Knowledge | C25: Engineer surveyor (level 4) - Engineer Surveyor (Mechanical) | D25: Engineer surveyor (level 4) - Engineer Surveyor (Electrical)
A26: K1 | B26: Company inspection procedures and processes | C26: YES | D26: YES | K26: =IF(E26:E46 = "FULLY MET",1,IF(E26:E46 = "PARTIALLY MET",0.5,IF(E26:E46 = "NOT MET",0,))) -> 0 | M26: NONE | N26: =IF(L26=1,1,IF(L26=0.5,0.5,IF(L26=0,0))) -> 0 | O26: =IF(N26=1,"NONE",IF(N26=0.5,"PARTIAL",IF(N26=0,"FULL"))) -> FULL
A27: K2 | B27: The equipment being inspected and how it is used | C27: YES | D27: YES | K27: 0 | M27: NONE | N27: 0 | O27: FULL
A28: K3 | B28: Use a range of measurement tools and equipment to carry out inspections such as Vernier Calipers, Pressure Gauges, electrical test equipment, flow meters - where appropriate | C28: YES | D28: YES | K28: 0 | M28: NONE | N28: 0 | O28: FULL
A29: K4 | B29: Management techniques including customer relationship management, negotiating and influencing techniques, commercial awareness, conflict management and assertiveness techniques | C29: YES | D29: YES | K29: 0 | M29: NONE | N29: 0 | O29: FULL
A30: K5 | B30: Roles and responsibilities within the organisation, team dynamics and their own boundaries of authority | C30: YES | D30: YES | K30: 0 | M30: NONE | N30: 0 | O30: FULL
A31: K6 | B31: Report writing tools and note taking techniques and correct use of Systems International (SI) units of abbreviations | C31: YES | D31: YES | K31: 0 | M31: NONE | N31: 0 | O31: FULL
A32: K7 | B32: Risk assessment methodology and appropriate control measures | C32: YES | D32: YES | K32: 0 | M32: NONE | N32: 0 | O32: FULL
A33: K8 | B33: How and when to use appropriate IT tools, including spreadsheets and word processing packages | C33: YES | D33: YES | K33: 0 | M33: NONE | N33: 0 | O33: FULL
A34: K9 | B34: Appropriate legislation and standards including all relevant Health and Safety requirements | C34: YES | D34: YES | K34: 0 | M34: NONE | N34: 0 | O34: FULL
A35: K10 | B35: Appropriate mathematical problem solving tools including engineering mathematics such as calculus, algebraic transformation techniques ,logarithmic and exponential functions and algebraic methods, trigonometric functions, the radian measure, trigonometric identities and graphs | C35: YES | D35: YES | K35: 0 | M35: NONE | N35: 0 | O35: FULL
A36: K11 | B36: Engineering science, including the behavioural characteristics of elements of static engineering systems, the behavioural characteristics of elements of dynamic engineering systems | C36: YES | D36: YES | K36: 0 | M36: NONE | N36: 0 | O36: FULL
A37: K12 | B37: Mechanical Materials science, including the properties, characteristics and selection criteria of materials from tests and data sources including, metallic, ceramic, polymer and composite material | C37: YES | D37: NO | K37: 0 | M37: NONE | N37: 0 | O37: FULL
A38: K13 | B38: Principles of electrical engineering, including technical drawings, circuits, distribution boards, wiring, measurement and testing of electrical circuits | C38: NO | D38: YES | K38: 0 | M38: NONE | N38: 0 | O38: FULL
A39: K14 | B39: A detailed technical awareness of the equipment being inspected | C39: YES | D39: YES | K39: 0 | M39: NONE | N39: 0 | O39: FULL
A40: K15 | B40: Safe access and egress | C40: YES | D40: YES | K40: 0 | M40: NONE | N40: 0 | O40: FULL
A41: K16 | B41: Effective oral and written communication strategies, the terminology used in this occupation and the appropriate format of inspection reports | C41: YES | D41: YES | K41: 0 | M41: NONE | N41: 0 | O41: FULL
A42: K17 | B42: Installation methods and practices | C42: YES | D42: YES | K42: 0 | M42: NONE | N42: 0 | O42: FULL
A43: K18 | B43: AC and DC theory and how this can be used to solve electrical and electronic engineering problems | C43: NO | D43: YES | K43: 0 | M43: NONE | N43: 0 | O43: FULL
A44: K19 | B44: Principles of materials engineering, including the relationships between manufacturing processes and material behaviour, the impact of heat treatment, liquid processing and mechanical processing methods | C44: YES | D44: NO | K44: 0 | M44: NONE | N44: 0 | O44: FULL
A45: K20 | B45: The in-service causes of failure of engineering materials, including the most common causes of in-service failure and appropriate remedial action | C45: YES | D45: NO | K45: 0 | M45: NONE | N45: 0 | O45: FULL
A46: K21 | B46: Health and safety requirements which apply when inspecting, testing and commissioning principles of electrical installations. (Requirements for inspecting and testing electrical installations, requirements for the safe inspection of electrical installations, requirements for the safe testing of electrical installations, inspection and testing procedures of electrical installations.) | C46: NO | D46: YES | K46: 0 | M46: NONE | N46: 0 | O46: FULL
B47: Skills
A48: S1 | B48: Carry out inspections of engineering equipment in accordance with company policies, relevant legislation and standards | C48: YES | D48: YES | K48: =IF(E48:E65 = "FULLY MET",1,IF(E48:E65 = "PARTIALLY MET",0.5,IF(E48:E65 = "NOT MET",0,))) -> 0 | M48: NONE | N48: =IF(L48=1,1,IF(L48=0.5,0.5,IF(L48=0,0))) -> 0 | O48: =IF(N48=1,"NONE",IF(N48=0.5,"PARTIAL",IF(N48=0,"FULL"))) -> FULL
A49: S2 | B49: Identify equipment defects - both common and complex - and take appropriate action to advise a compliant outcome | C49: YES | D49: YES | K49: 0 | M49: NONE | N49: 0 | O49: FULL
A50: S3 | B50: Use appropriate inspection equipment | C50: YES | D50: YES | K50: 0 | M50: NONE | N50: 0 | O50: FULL
A51: S4 | B51: Use negotiating and influencing techniques to build and maintain customer relationships | C51: YES | D51: YES | K51: 0 | M51: NONE | N51: 0 | O51: FULL
A52: S5 | B52: Prepare succinct inspection reports using appropriate IT systems | C52: YES | D52: YES | K52: 0 | M52: NONE | N52: 0 | O52: FULL
A53: S6 | B53: Use engineering principles to reach an overall conclusion about the condition of the equipment | C53: YES | D53: YES | K53: 0 | M53: NONE | N53: 0 | O53: FULL
A54: S7 | B54: Prepare Risk Assessments and apply Safe Systems of Work | C54: YES | D54: YES | K54: 0 | M54: NONE | N54: 0 | O54: FULL
A55: S8 | B55: Identify and manage risks of health, safety and welfare | C55: YES | D55: YES | K55: 0 | M55: NONE | N55: 0 | O55: FULL
A56: S9 | B56: Communicate professionally, effectively and appropriately - both verbally and in writing - with all stakeholders | C56: YES | D56: YES | K56: 0 | M56: NONE | N56: 0 | O56: FULL
A57: S10 | B57: Manage own time and tasks | C57: YES | D57: YES | K57: 0 | M57: NONE | N57: 0 | O57: FULL
A58: S11 | B58: Apply engineering science, to identify the behavioural characteristics of elements of static engineering systems, the behavioural characteristics of elements of dynamic engineering systems and AC and DC theory and use this knowledge to identify equipment defects and suggest solutions | C58: YES | D58: YES | K58: 0 | M58: NONE | N58: 0 | O58: FULL
A59: S12 | B59: Apply the appropriate electrical engineering science principles when inspecting, testing and commissioning an electrical installation, to reach overall conclusions | C59: NO | D59: YES | K59: 0 | M59: NONE | N59: 0 | O59: FULL
A60: S13 | B60: Apply the appropriate mechanical engineering science principles when inspecting a mechanical installation, to reach overall conclusions | C60: YES | D60: NO | K60: 0 | M60: NONE | N60: 0 | O60: FULL
A61: S14 | B61: Manage and diffuse potential conflicts | C61: YES | D61: YES | K61: 0 | M61: NONE | N61: 0 | O61: FULL
A62: S15 | B62: Work safely at height | C62: YES | D62: YES | K62: 0 | M62: NONE | N62: =IF(L62=1,1,IF(L62=0.5,0.5,IF(L62=0,0))) -> 0 | O62: =IF(N62=1,"NONE",IF(N62=0.5,"PARTIAL",IF(N62=0,"FULL"))) -> FULL
A63: S16 | B63: Read and interpret drawings, data and other relevant information | C63: YES | D63: YES | K63: 0 | M63: NONE | N63: =IF(L63=1,1,IF(L63=0.5,0.5,IF(L63=0,0))) -> 0 | O63: =IF(N63=1,"NONE",IF(N63=0.5,"PARTIAL",IF(N63=0,"FULL"))) -> FULL
A64: S17 | B64: Interpret appropriate engineering mathematical formulae and compare results with actual on-board readings, data/calculations and inspection findings | C64: YES | D64: YES | K64: 0 | M64: NONE | N64: 0 | O64: FULL
A65: S18 | B65: Work competently and safely in the workplace to meet regulatory and legislative requirements | C65: YES | D65: YES | K65: 0 | M65: NONE | N65: 0 | O65: FULL
B66: Behaviours
A67: B1 | B67: Strong work ethic: Positive attitude, motivated by engineering, dependable, ethical, responsible and reliable | C67: YES | D67: YES | K67: =IF(E67:E79 = "FULLY MET",1,IF(E67:E79 = "PARTIALLY MET",0.5,IF(E67:E79 = "NOT MET",0,))) -> 0 | M67: NONE | N67: =IF(L67=1,1,IF(L67=0.5,0.5,IF(L67=0,0))) -> 0 | O67: =IF(N67=1,"NONE",IF(N67=0.5,"PARTIAL",IF(N67=0,"FULL"))) -> FULL
A68: B2 | B68: Logical approach: Able to structure a plan and develop activities following a logical thought process, but also able to quickly "think on feet" when working through them | C68: YES | D68: YES | K68: 0 | M68: NONE | N68: 0 | O68: FULL
A69: B3 | B69: Problem solving orientation: Identifies issues quickly, enjoys solving complex problems and applies appropriate solutions. Has a strong desire to push to ensure the true root cause of any problem is found and a solution is identifies which prevents recurrence | C69: YES | D69: YES | K69: 0 | M69: NONE | N69: 0 | O69: FULL
A70: B4 | B70: Quality focus: Follows rules, procedures and principles in ensuring work completed is fit for purpose and pays attention to detail. Checks for errors | C70: YES | D70: YES | K70: 0 | M70: NONE | N70: 0 | O70: FULL
A71: B5 | B71: Personal responsibility and resilience: Motivated to succeed. Accountable and persistent to complete task | C71: YES | D71: YES | K71: 0 | M71: NONE | N71: 0 | O71: FULL
A72: B6 | B72: Clear communicator: Uses a variety of communication methods to give and receive information accurately and in a positive manner | C72: YES | D72: YES | K72: 0 | M72: NONE | N72: 0 | O72: FULL
A73: B7 | B73: Team player: Not only plays own part but able to work and communicate clearly and effectively within a team and interacts with and helps others when required. Does so in a respectful manner | C73: YES | D73: YES | K73: 0 | M73: NONE | N73: 0 | O73: FULL
A74: B8 | B74: Maintains competence and keeps pace with change: Continuous improvement in driving effectiveness and efficiency and maintenance of regulations and rules | C74: YES | D74: YES | K74: 0 | M74: PARTIAL | N74: =IF(L74=1,0.5,IF(L74=0.5,0.5,IF(L74=0,0))) -> 0 | O74: =IF(N74=0.5,"NONE",IF(N74=0,"PARTIAL")) -> PARTIAL
A75: B9 | B75: Adaptability: Able to adjust to different conditions, technologies, situations and environments | C75: YES | D75: YES | K75: 0 | M75: NONE | N75: =IF(L75=1,1,IF(L75=0.5,0.5,IF(L75=0,0))) -> 0 | O75: =IF(N75=1,"NONE",IF(N75=0.5,"PARTIAL",IF(N75=0,"FULL"))) -> FULL
A76: B10 | B76: Self-motivation: A "self-starter" who wants to give their best, sets themselves challenging targets and can make their own decisions | C76: YES | D76: YES | K76: 0 | M76: NONE | N76: 0 | O76: FULL
A77: B11 | B77: Commitment: Able to commit to beliefs, goals and standards of their own employer and to the wider industry and its professional standards | C77: YES | D77: YES | K77: 0 | M77: NONE | N77: 0 | O77: FULL
A78: B12 | B78: Independence and impartiality: Maintains independence and impartiality at all times | C78: YES | D78: YES | K78: 0 | M78: NONE | N78: 0 | O78: FULL
A79: B13 | B79: Health and Safety: Maintains a health and safety focus at all times, challenging unacceptable behaviour | C79: YES | D79: YES | K79: 0 | M79: NONE | N79: 0 | O79: FULL
K83: Engineer Surveyor (level 4) - Engineer Surveyor (Mechanical)
K85: Gross score | L85: =SUM(L26:L37, L39:L42, L44:L45, L48:L58, L60:L65, L67:L80) -> 0 | M85: Net Score | N85: =SUM(N26:N37, N39:N42, N44:N45, N48:N58, N60:N65, N67:N80) -> 0
K86: total KSB coverage | L86: =L85/N89 -> 0 | M86: total CoE KSB coverage | N86: =N85/N92 -> 0
M89: total KSBs | N89: 48
M90: fully mitigated | N90: 0
M91: partially mitigated | N91: 1
M92: net KSB | N92: =N89-N90-(N91*0.5) -> 47.5
K95: Engineer Surveyor (level 4) - Engineer Surveyor (Electrical)
K97: Gross score | L97: =SUM(L26:L36, L38:L43, L46, L48:L59, L61:L65, L67:L79) -> 0 | M97: Net Score | N97: =SUM(N26:N36, N38:N43, N46, N48:N59, N61:N65, N67:N79) -> 0
K98: total KSB coverage | L98: =L97/N101 -> 0 | M98: total CoE KSB coverage | N98: =N97/N104 -> 0
M101: total KSBs | N101: 48
M102: fully mitigated | N102: 0
M103: partially mitigated | N103: 1
M104: net KSB | N104: =N101-N102-(N103*0.5) -> 47.5
K107: TOTAL FOR ALL KBSs
K109: Gross score | L109: =SUM(L26:L80) -> 0 | M109: Net Score | N109: =SUM(N26:N80) -> 0
K110: total KSB coverage | L110: =L109/N113 -> 0 | M110: total CoE KSB coverage | N110: =N109/N116 -> 0
M113: total KSBs | N113: 52
M114: fully mitigated | N114: 0
M115: partially mitigated | N115: 1
M116: net KSB | N116: =N113-N114-(N115*0.5) -> 51.5

Sheet ST0855
B1: START HERE
B2: Awarding body/Applicant:
B3: Please type the name of awarding body/applicant here
B4: Qualification name:
B5: Please type your qualification title here
B6: Programme title if applicable:
B7: Please type the programme title here
A10: EXAMPLE OF KSB MAPPING
A11: KSB | B11: KSB Statement | C11: KSB coverage Select the coverage provided by the qualification from the dropdown box | D11: Where in the qualification is the relevant content? Please reference precisely where the content you are citing as evidence is within the submitted documents - Document name/Module name/Specific page number | E11: Evidence Quote or copy & paste the relevant content from your referenced qualification documents. Please provide 1 - 3 references that best evidence the KSB and only refer to content that all students will cover regardless of option choice. The information you supply in this column, in conjunction with the Supporting Comments / Rationale column (Column F) should clearly and explicitly demonstrate the declared level of KSB coverage. | F11: Supporting Comments/Rationale Where the evidence in Column E does not clearly and explicitly provide the declared level of coverage or might not be obvious to someone who is not an expert in your qualification, use this space to explain how the level of KSB coverage is achieved by the qualification content - please be specific to the wording and meaning of the KSB statement. Where a KSB is not fully met, please provide the rationale for why you feel this is not achievable. | G11: Assessment method Provide information on the method(s) used to assess this KSB and relevant assessment materials.
A12: K7 | B12: Safe and professional working practices including health, safety, environment and legislative requirements relevant to the sector, the organisation and own role | C12: FULLY MET | D12: Qualification specification, pg 14-16 Module 2: Health, safety and professional working practices, pg 6 | E12: Module 2: LO1 - Understand the importance of health and safety in the workplace. LO2 - Understand the application of health and safety legislation in the workplace. LO3 - Understand how to apply safe working practices to work activities. Indicative content: local, regional, national health & safety regulations, codes of practice, site safety, health & safety promotion, health & safety measures, PPE, manual handling, equipment management, waste disposal, risk management, risk assessment | F12: Learners will be able to show a full understanding of Health & Safety and legislative requirements relevant to the role. The indicative content on Pg 16 of the qualification specification shows they will cover Health & Safety across the wider sector, and then identify some measures that may be specific to certain organisations. Learners will also analyse the role of the employer and the environment with regards to applying Health & Safety working practices and processes. | G12: Module 2 - students will produce a written report using a brief. There is also a short answer paper. Module 2 Assessment Brief pg 7-8 refers.
A13: S23 | B13: Communicate effectively (verbal, non-verbal, written, digital) in manner relevant to the target audience | C13: FULLY MET | D13: Qualification specification, pg 21-22 Module 6: The Fundamentals of Practice, pg 12 Module 9: Personal and Professional Development Skills, pg 11 | E13: Module 6: LO2 - Know how to use digital devices and databases relevant to your workplace. Module 9: LO1 - Understand the uses of different methods of communication. LO3 - Be able to communicate effectively with different audiences. Indicative content: verbal and non-verbal communication skills, presentation skills, academic and non-academic writing style, writing skills | F13: Learners will cover verbal, non-verbal, written and digital communications, and demonstrate practical skills by completing assessment tasks which will include simulated work environments and preparing presentations targeting different audiences. Learners will develop the skills to communicate with people in a professional capacity including co-workers, line managers, clients, contractors and the public. | G13: Module 6 - case study. Module 9 - scenarios in simulated work environment, students will produce presentation. Module 9 assessment pg 4.
B18: Space engineering technician (level 4)
B19: Return to Guide
A20: KSB | B20: KSB Statement | C20: KSB coverage Select the coverage provided by the qualification from the dropdown box | D20: Where in the qualification is the relevant content? Please reference precisely where the content you are citing as evidence is within the submitted documents - Document name/Module name/Specific page number | E20: Evidence Quote or copy & paste the relevant content from your referenced qualification documents. Please provide 1 - 3 references that best evidence the KSB and only refer to content that all students will cover regardless of option choice. The information you supply in this column, in conjunction with the Supporting Comments / Rationale column (Column F) should clearly and explicitly demonstrate the declared level of KSB coverage. | F20: Supporting Comments/Rationale Where the evidence in Column E does not clearly and explicitly provide the declared level of coverage or might not be obvious to someone who is not an expert in your qualification, use this space to explain how the level of KSB coverage is achieved by the qualification content - please be specific to the wording and meaning of the KSB statement. Where a KSB is not fully met, please provide the rationale for why you feel this is not achievable. | G20: Assessment method Provide information on the method(s) used to assess this KSB and relevant assessment materials. | I20: AB Score | J20: IM Score | K20: Mitigations | L20: CoE Score | M20: Outstanding Requirement | N20: IM Comment | O20: IM moderation | P20: G7 QA | Q20: IM G7 Response | R20: Conclusion
B21: Knowledge
A22: K1 | B22: Spacecraft Systems including power, attitude control, thermal, communications, data handling and propulsion. | I22: =IF(C22:C39 = "FULLY MET",1,IF(C22:C39 = "PARTIALLY MET",0.5,IF(C22:C39 = "NOT MET",0,))) -> 0 | K22: NONE | L22: =IF(J22=1,1,IF(J22=0.5,0.5,IF(J22=0,0))) -> 0 | M22: =IF(L22=1,"NONE",IF(L22=0.5,"PARTIAL",IF(L22=0,"FULL"))) -> FULL
A23: K2 | B23: Engineering mathematical and scientific principles, methods, techniques, graphical expressions, symbols, formulae and calculations including: reference frame definitions, tolerancing, torque settings. | I23: 0 | K23: NONE | L23: 0 | M23: FULL
A24: K3 | B24: Relationships between customers, partners & suppliers in the international space engineering and manufacturing sector. | I24: 0 | K24: NONE | L24: 0 | M24: FULL
A25: K4 | B25: Space system assembly, integration and test procedures, processes, techniques and tools such as vibration, thermal-vacuum, electromagnetic compatibility. | I25: 0 | K25: NONE | L25: 0 | M25: FULL
A26: K5 | B26: Purpose of approved processes, components, parts and materials lists and verification control documentation. | I26: 0 | K26: NONE | L26: 0 | M26: FULL
A27: K6 | B27: Ground Support Equipment and Systems including electrical/electronic test equipment and mechanical handling equipment. | I27: 0 | K27: NONE | L27: 0 | M27: FULL
A28: K7 | B28: Mechanical, Electrical and Electronic Analysis & Testing principles, including space industry-specific test standards. | I28: 0 | K28: NONE | L28: 0 | M28: FULL
A29: K8 | B29: Properties, handling and application of space qualified materials including Electrostatic Discharge (ESD) precautions. | I29: 0 | K29: NONE | L29: 0 | M29: FULL
A30: K9 | B30: Quality and Product Assurance principles in space projects. | I30: 0 | K30: NONE | L30: 0 | M30: FULL
A31: K10 | B31: Principles, processes and techniques for thermal-vacuum, electromagnetic compatibility, shock, vibration and acoustic testing. | I31: 0 | K31: NONE | L31: 0 | M31: FULL
A32: K11 | B32: Principles of Additive Manufacturing for application in space including powder quality and repeatability of build. | I32: 0 | K32: NONE | L32: 0 | M32: FULL
A33: K12 | B33: Configuration and Document Management Control Processes including issue control, incorporation of change and End Item Data Pack. | I33: 0 | K33: NONE | L33: 0 | M33: FULL
A34: K13 | B34: Adhesives, bonding, soldering and fastening techniques required to meet space qualification standards. | I34: 0 | K34: NONE | L34: 0 | M34: FULL
A35: K14 | B35: The space environment including thermal, vacuum, radiation, atomic oxygen and launch operations. | I35: 0 | K35: NONE | L35: 0 | M35: FULL
A36: K15 | B36: Precision and uncertainty in measurement systems, including limitations and appropriate use. | I36: 0 | K36: NONE | L36: 0 | M36: FULL
A37: K16 | B37: Vacuum and pressurised systems and measurement. | I37: 0 | K37: NONE | L37: 0 | M37: FULL
A38: K17 | B38: Disciplines and handling in cleanliness and contamination-controlled environments. | I38: 0 | K38: NONE | L38: 0 | M38: FULL
A39: K18 | B39: Application of Risk Assessment at point of work. | I39: 0 | K39: NONE | L39: 0 | M39: FULL
B40: Skills
A41: S1 | B41: Prepare and complete documentation including work instruction, build and change records, risk assessments and non-conformance reports in compliance with applicable space industry processes and standards. | I41: =IF(C41:C59 = "FULLY MET",1,IF(C41:C59 = "PARTIALLY MET",0.5,IF(C41:C59 = "NOT MET",0,))) -> 0 | K41: NONE | L41: =IF(J41=1,1,IF(J41=0.5,0.5,IF(J41=0,0))) -> 0 | M41: =IF(L41=1,"NONE",IF(L41=0.5,"PARTIAL",IF(L41=0,"FULL"))) -> FULL
A42: S2 | B42: Contribute to technical reviews such as assembly, integration and test readiness, and non-conformance reviews. | I42: 0 | K42: NONE | L42: 0 | M42: FULL
A43: S3 | B43: Assemble, integrate and test at equipment, subsystem and system level. | I43: 0 | K43: NONE | L43: =IF(J43=1,1,IF(J43=0.5,0.5,IF(J43=0,0))) -> 0 | M43: =IF(L43=1,"NONE",IF(L43=0.5,"PARTIAL",IF(L43=0,"FULL"))) -> FULL
A44: S4 | B44: Support and maintain ground support systems for spacecraft and subsystems. | I44: 0 | K44: NONE | L44: 0 | M44: FULL
A45: S5 | B45: Interpret outputs from manufacturing software such as Computer Aided Design (CAD) / Computer Aided Manufacture (CAM) and Product Data Management / Product Lifecycle Management (PDM/PLM). | I45: 0 | K45: NONE | L45: =IF(J45=1,1,IF(J45=0.5,0.5,IF(J45=0,0))) -> 0 | M45: =IF(L45=1,"NONE",IF(L45=0.5,"PARTIAL",IF(L45=0,"FULL"))) -> FULL
A46: S6 | B46: Solve problems using procedures and methodologies commonly applied in the space engineering sector, such as Failure Mode and Effects Analysis (FMEA), Plan-Do-Check-Act (PDCA) Cycle, 8-Disciplines (8D), Ishikawa/Fishbone Diagrams. | I46: 0 | K46: NONE | L46: 0 | M46: FULL
A47: S7 | B47: Contribute to the definition of space engineering process improvement plans. | I47: 0 | K47: NONE | L47: 0 | M47: FULL
A48: S8 | B48: Use internal and external Quality Management Systems including Non-Conformance Reports (NCRs), Production Documentation, and published standards applicable to space engineering and manufacture such as EN9100, ISO9001. | I48: 0 | K48: NONE | L48: 0 | M48: FULL
A49: S9 | B49: Read, extract and interpret technical documentation (such as workplans/project plans, schedules, drawings, test plans, specifications, production data, quality reports, costing data, statistical information, assembly instructions and requirements) drawing accurate conclusions and making informed decisions, seeking clarification where required. | I49: 0 | K49: NONE | L49: 0 | M49: FULL
A50: S10 | B50: Perform electrical and electronic measurement and testing using equipment such as voltmeters, spectrum analysers, oscilloscopes. | I50: 0 | K50: NONE | L50: 0 | M50: FULL
A51: S11 | B51: Perform appropriate joining techniques for example using adhesives, bonding, plating, soldering and fastening, following procedures for space quality standards. | I51: 0 | K51: NONE | L51: 0 | M51: FULL
A52: S12 | B52: Carry out assembly and functional testing of products such as electronics boards and mechanical assemblies, to design specifications and space industry standards. | I52: 0 | K52: NONE | L52: 0 | M52: FULL
A53: S13 | B53: Inspect electrical, mechanical or electronic equipment for quality assurance purposes. | I53: 0 | K53: NONE | L53: 0 | M53: FULL
A54: S14 | B54: Use CAD software to create 3D models and part drawings to enable manufacture of components for spacecraft systems and ground support equipment. | I54: 0 | K54: NONE | L54: 0 | M54: FULL
A55: S15 | B55: Apply space industry procedures in facilities such as cleanrooms, workshops and testing facilities (for example, ECSS-Q-ST-70-50C: Particles contamination monitoring for spacecraft systems and cleanrooms) in compliance with legislative and company Health, Safety and Environment requirements. | I55: 0 | K55: NONE | L55: =IF(J55=1,1,IF(J55=0.5,0.5,IF(J55=0,0))) -> 0 | M55: =IF(L55=1,"NONE",IF(L55=0.5,"PARTIAL",IF(L55=0,"FULL"))) -> FULL
A56: S16 | B56: Measure, test and analyse, using instruments such as pressure gauges, micrometers, balances and non-contact approaches. | I56: 0 | K56: NONE | L56: =IF(J56=1,1,IF(J56=0.5,0.5,IF(J56=0,0))) -> 0 | M56: =IF(L56=1,"NONE",IF(L56=0.5,"PARTIAL",IF(L56=0,"FULL"))) -> FULL
A57: S17 | B57: Use and maintain vacuum and pressure systems for space applications (such as environmental test chambers, pressure-fed propulsion systems, and gas supply lines for manufacturing & testing) including associated processes and documentation such as Piping & Instrumentation Diagrams. | I57: 0 | K57: NONE | L57: 0 | M57: FULL
A58: S18 | B58: Use and maintain cryogenic systems for space applications (such as propulsion, subsystem thermal control and ground support activities) including associated processes and documentation, in compliance with legislative and company Health, Safety and Environment requirements. | I58: 0 | K58: PARTIAL | L58: =IF(J58=1,0.5,IF(J58=0.5,0.5,IF(J58=0,0))) -> 0 | M58: =IF(L58=0.5,"NONE",IF(L58=0,"PARTIAL")) -> PARTIAL
A59: S19 | B59: Communicate using verbal and written methods such as for formal and informal presentations, written reports and electronic dissemination, adjusting approach to take account of equality and diversity considerations, and listen to others. | I59: 0 | K59: NONE | L59: =IF(J59=1,1,IF(J59=0.5,0.5,IF(J59=0,0))) -> 0 | M59: =IF(L59=1,"NONE",IF(L59=0.5,"PARTIAL",IF(L59=0,"FULL"))) -> FULL
B60: Behaviours
A61: B1 | B61: Takes personal responsibility and is resilient. For example, disciplined and responsible approach to risk, works diligently regardless of how much they are being supervised, accepts responsibility for managing their own time and workload and stays motivated and committed when facing challenges. | I61: =IF(C61:C67 = "FULLY MET",1,IF(C61:C67 = "PARTIALLY MET",0.5,IF(C61:C67 = "NOT MET",0,))) -> 0 | K61: NONE | L61: =IF(J61=1,1,IF(J61=0.5,0.5,IF(J61=0,0))) -> 0 | M61: =IF(L61=1,"NONE",IF(L61=0.5,"PARTIAL",IF(L61=0,"FULL"))) -> FULL
A62: B2 | B62: Focuses on quality and problem solving. For example, demonstrates attention to detail and seeks opportunities to improve quality, speed and efficiency. | I62: 0 | K62: NONE | L62: =IF(J62=1,1,IF(J62=0.5,0.5,IF(J62=0,0))) -> 0 | M62: =IF(L62=1,"NONE",IF(L62=0.5,"PARTIAL",IF(L62=0,"FULL"))) -> FULL
A63: B3 | B63: Committed to continuous personal improvement. For example, reflects on skills, knowledge and behaviours and seeks opportunities to develop, adapts to different situations, environments or technologies and has a positive attitude to feedback and advice. | I63: 0 | K63: NONE | L63: 0 | M63: FULL
A64: B4 | B64: Is responsible and accountable. For example, is present in the workplace at the required times, completes all assigned tasks and takes responsibility for the duties assigned to the role. Shows a desire to succeed, approaches difficult or challenging problems with enthusiasm, shows initiative and supports the success of the team/organisation. | I64: 0 | K64: NONE | L64: 0 | M64: FULL
A65: B5 | B65: Performs through co-operation and works effectively in teams. For example, has a clear understanding of role; voluntarily engages in open communication with team colleagues and line management; identifies individual contributions that can be made to reach collective goals; supports meetings and work sessions on request. Adopts a positive attitude to working with others, and supports discussion with facts and logic, and considers implications of their actions on other people and the business. | I65: 0 | K65: NONE | L65: =IF(J65=1,1,IF(J65=0.5,0.5,IF(J65=0,0))) -> 0 | M65: =IF(L65=1,"NONE",IF(L65=0.5,"PARTIAL",IF(L65=0,"FULL"))) -> FULL
A66: B6 | B66: Interacts appropriately with stakeholders. For example, works to understand stakeholder requirements and perspectives, and can present work positively and with confidence. | I66: 0 | K66: NONE | L66: 0 | M66: FULL
A67: B7 | B67: Uses a safety-first approach in order to comply with legislative and company Health, Safety and Environment requirements. | I67: 0 | K67: NONE | L67: =IF(J67=1,1,IF(J67=0.5,0.5,IF(J67=0,0))) -> 0 | M67: =IF(L67=1,"NONE",IF(L67=0.5,"PARTIAL",IF(L67=0,"FULL"))) -> FULL
I70: Gross score | J70: =SUM(J22:J67) -> 0 | K70: Net Score | L70: =SUM(L22:L67) -> 0
I71: total KSB coverage | J71: =J70/L74 -> 0 | K71: total CoE KSB coverage | L71: =L70/L77 -> 0
K74: total KSBs | L74: 44
K75: fully mitigated | L75: 0
K76: partially mitigated | L76: 1
K77: net KSB | L77: =L74-L75-(L76*0.5) -> 43.5

Sheet ST0861
B1: START HERE
B2: Awarding body/Applicant:
B3: Please type the name of awarding body/applicant here
B4: Qualification name:
B5: Please type your qualification title here
B6: Programme title if applicable:
B7: Please type the programme title here
A10: EXAMPLE OF KSB MAPPING
A11: KSB | B11: KSB Statement | C11: KSB coverage Select the coverage provided by the qualification from the dropdown box | D11: Where in the qualification is the relevant content? Please reference precisely where the content you are citing as evidence is within the submitted documents - Document name/Module name/Specific page number | E11: Evidence Quote or copy & paste the relevant content from your referenced qualification documents. Please provide 1 - 3 references that best evidence the KSB and only refer to content that all students will cover regardless of option choice. The information you supply in this column, in conjunction with the Supporting Comments / Rationale column (Column F) should clearly and explicitly demonstrate the declared level of KSB coverage. | F11: Supporting Comments/Rationale Where the evidence in Column E does not clearly and explicitly provide the declared level of coverage or might not be obvious to someone who is not an expert in your qualification, use this space to explain how the level of KSB coverage is achieved by the qualification content - please be specific to the wording and meaning of the KSB statement. Where a KSB is not fully met, please provide the rationale for why you feel this is not achievable. | G11: Assessment method Provide information on the method(s) used to assess this KSB and relevant assessment materials.
A12: K7 | B12: Safe and professional working practices including health, safety, environment and legislative requirements relevant to the sector, the organisation and own role | C12: FULLY MET | D12: Qualification specification, pg 14-16 Module 2: Health, safety and professional working practices, pg 6 | E12: Module 2: LO1 - Understand the importance of health and safety in the workplace. LO2 - Understand the application of health and safety legislation in the workplace. LO3 - Understand how to apply safe working practices to work activities. Indicative content: local, regional, national health & safety regulations, codes of practice, site safety, health & safety promotion, health & safety measures, PPE, manual handling, equipment management, waste disposal, risk management, risk assessment | F12: Learners will be able to show a full understanding of Health & Safety and legislative requirements relevant to the role. The indicative content on Pg 16 of the qualification specification shows they will cover Health & Safety across the wider sector, and then identify some measures that may be specific to certain organisations. Learners will also analyse the role of the employer and the environment with regards to applying Health & Safety working practices and processes. | G12: Module 2 - students will produce a written report using a brief. There is also a short answer paper. Module 2 Assessment Brief pg 7-8 refers.
A13: S23 | B13: Communicate effectively (verbal, non-verbal, written, digital) in manner relevant to the target audience | C13: FULLY MET | D13: Qualification specification, pg 21-22 Module 6: The Fundamentals of Practice, pg 12 Module 9: Personal and Professional Development Skills, pg 11 | E13: Module 6: LO2 - Know how to use digital devices and databases relevant to your workplace. Module 9: LO1 - Understand the uses of different methods of communication. LO3 - Be able to communicate effectively with different audiences. Indicative content: verbal and non-verbal communication skills, presentation skills, academic and non-academic writing style, writing skills | F13: Learners will cover verbal, non-verbal, written and digital communications, and demonstrate practical skills by completing assessment tasks which will include simulated work environments and preparing presentations targeting different audiences. Learners will develop the skills to communicate with people in a professional capacity including co-workers, line managers, clients, contractors and the public. | G13: Module 6 - case study. Module 9 - scenarios in simulated work environment, students will produce presentation. Module 9 assessment pg 4.
B18: Asset manager (level 4)
B19: Return to Guide
A20: KSB | B20: KSB Statement | C20: KSB coverage Select the coverage provided by the qualification from the dropdown box | D20: Where in the qualification is the relevant content? Please reference precisely where the content you are citing as evidence is within the submitted documents - Document name/Module name/Specific page number | E20: Evidence Quote or copy & paste the relevant content from your referenced qualification documents. Please provide 1 - 3 references that best evidence the KSB and only refer to content that all students will cover regardless of option choice. The information you supply in this column, in conjunction with the Supporting Comments / Rationale column (Column F) should clearly and explicitly demonstrate the declared level of KSB coverage. | F20: Supporting Comments/Rationale Where the evidence in Column E does not clearly and explicitly provide the declared level of coverage or might not be obvious to someone who is not an expert in your qualification, use this space to explain how the level of KSB coverage is achieved by the qualification content - please be specific to the wording and meaning of the KSB statement. Where a KSB is not fully met, please provide the rationale for why you feel this is not achievable. | G20: Assessment method Provide information on the method(s) used to assess this KSB and relevant assessment materials. | I20: AB Score | J20: IM Score | K20: Mitigations | L20: CoE Score | M20: Outstanding Requirement | N20: IM Comment | O20: IM moderation | P20: G7 QA | Q20: IM G7 Response | R20: Conclusion
B21: Knowledge
A22: K1 | B22: Asset management standards: ISO55000, British Standard Institute (BSI) Publicly Available Specification (PAS) 55. | I22: =IF(C22:C47 = "FULLY MET",1,IF(C22:C47 = "PARTIALLY MET",0.5,IF(C22:C47 = "NOT MET",0,))) -> 0 | K22: NONE | L22: =IF(J22=1,1,IF(J22=0.5,0.5,IF(J22=0,0))) -> 0 | M22: =IF(L22=1,"NONE",IF(L22=0.5,"PARTIAL",IF(L22=0,"FULL"))) -> FULL
A23: K2 | B23: Management systems for asset management: policy, strategy, objectives, plans and continual improvement. | I23: 0 | K23: NONE | L23: 0 | M23: FULL
A24: K3 | B24: Impact of organisational context on asset management: regulatory frameworks, stakeholders, governance and asset management policy, objectives strategy and plan. | I24: 0 | K24: NONE | L24: 0 | M24: FULL
A25: K4 | B25: Different types of assets and classification approaches; hierarchy, function and value. | I25: 0 | K25: NONE | L25: 0 | M25: FULL
A26: K5 | B26: Asset systems; effect of each asset on the system and impact of external factors. | I26: 0 | K26: NONE | L26: 0 | M26: FULL
A27: K6 | B27: Asset/system service and performance requirements; service level. | I27: 0 | K27: NONE | L27: 0 | M27: FULL
A28: K7 | B28: Continuous improvement techniques. | I28: 0 | K28: NONE | L28: 0 | M28: FULL
A29: K8 | B29: Asset costing and valuation techniques; cost estimation (maintenance, operation, renewal), depreciation, whole life costing, and social, environmental, safety and reputational cost. | I29: 0 | K29: NONE | L29: 0 | M29: FULL
A30: K9 | B30: Optioneering, cost benefit analysis; asset management multi-criteria decision making (cost, risk, performance, sustainability, compliance and intangibles). | I30: 0 | K30: NONE | L30: 0 | M30: FULL
A31: K10 | B31: Creative thinking and problem-solving techniques. | I31: 0 | K31: NONE | L31: 0 | M31: FULL
A32: K11 | B32: Asset life cycle activities: demand analysis and future requirements, creation and acquisition or rationalisation, operation, resilience, redundancy, shutdown, obsolescence, outage management, future asset capability. | I32: 0 | K32: NONE | L32: 0 | M32: FULL
A33: K12 | B33: Performance monitoring of asset life cycle activities. | I33: 0 | K33: NONE | L33: 0 | M33: FULL
A34: K13 | B34: Asset and asset systems health, condition and performance assessment methods. | I34: 0 | K34: NONE | L34: 0 | M34: FULL
A35: K14 | B35: Project management, resource and time management techniques. | I35: 0 | K35: NONE | L35: 0 | M35: FULL
A36: K15 | B36: Types of asset maintenance: preventive, predictive, corrective. | I36: 0 | K36: NONE | L36: 0 | M36: FULL
A37: K16 | B37: Risk management and its application to asset management: risk assessment, quantification, mitigation and impact. | I37: 0 | K37: NONE | L37: 0 | M37: FULL
A38: K17 | B38: Techniques to assess asset risk; causes and effects: Failure Mode Event/Effects Critically Analysis (FMEA/FMECA), Root cause analysis and Bow Tie analysis. | I38: 0 | K38: NONE | L38: 0 | M38: FULL
A39: K18 | B39: Legislation: Health and Safety at Work, Environmental Protection. | I39: 0 | K39: NONE | L39: 0 | M39: FULL
A40: K19 | B40: Sustainable development; impact on environment of asset management and asset management activities. | I40: 0 | K40: NONE | L40: =IF(J40=1,1,IF(J40=0.5,0.5,IF(J40=0,0))) -> 0 | M40: =IF(L40=1,"NONE",IF(L40=0.5,"PARTIAL",IF(L40=0,"FULL"))) -> FULL
A41: K20 | B41: Supply chain; types of suppliers, their role and contractual relationships. | I41: 0 | K41: NONE | L41: 0 | M41: FULL
A42: K21 | B42: Collaborative working techniques: personality types, influencing, negotiating, networking, and equality, diversity and inclusion. | I42: 0 | K42: NONE | L42: 0 | M42: FULL
A43: K22 | B43: Communication techniques including plain English – verbal, written and presentation. | I43: 0 | K43: NONE | L43: 0 | M43: FULL
A44: K23 | B44: Business ethics including corporate governance, bribery, discrimination, socially responsible organisations. | I44: 0 | K44: NONE | L44: 0 | M44: FULL
A45: K24 | B45: Data analysis and interpretation techniques; data presentation techniques (charts, diagrams and tables). | I45: 0 | K45: NONE | L45: 0 | M45: FULL
A46: K25 | B46: Information technology (IT) systems and processes: asset registers, work management systems, word processing, spreadsheets, email, presentation. | I46: 0 | K46: NONE | L46: 0 | M46: FULL
A47: K26 | B47: Information and data security/management requirements; cyber security, General Data Protection Regulations (GDPR), data protection and integrity. | I47: 0 | K47: NONE | L47: 0 | M47: FULL
B48: Skills
A49: S1 | B49: Identify the organisation’s context and constraints that affect asset management. | I49: =IF(C49:C66 = "FULLY MET",1,IF(C49:C66 = "PARTIALLY MET",0.5,IF(C49:C66 = "NOT MET",0,))) -> 0 | K49: PARTIAL | L49: =IF(J49=1,0.5,IF(J49=0.5,0.5,IF(J49=0,0))) -> 0 | M49: =IF(L49=0.5,"NONE",IF(L49=0,"PARTIAL")) -> PARTIAL
A50: S2 | B50: Identify asset service and performance requirements. | I50: 0 | K50: NONE | L50: =IF(J50=1,1,IF(J50=0.5,0.5,IF(J50=0,0))) -> 0 | M50: =IF(L50=1,"NONE",IF(L50=0.5,"PARTIAL",IF(L50=0,"FULL"))) -> FULL
A51: S3 | B51: Estimate and calculate Life Cycle Cost (LCC) or Total Cost of Ownership (TCO) for assets/asset systems. | I51: 0 | K51: NONE | L51: =IF(J51=1,1,IF(J51=0.5,0.5,IF(J51=0,0))) -> 0 | M51: =IF(L51=1,"NONE",IF(L51=0.5,"PARTIAL",IF(L51=0,"FULL"))) -> FULL
A52: S4 | B52: Use techniques to identify interventions for assets/asset system and estimate benefits. | I52: 0 | K52: NONE | L52: 0 | M52: FULL
A53: S5 | B53: Apply multi criteria decision making methods to proposed intervention options. | I53: 0 | K53: NONE | L53: 0 | M53: FULL
A54: S6 | B54: Select and use decision support tools to make asset management recommendations. | I54: 0 | K54: NONE | L54: 0 | M54: FULL
A55: S7 | B55: Develop asset life-cycle plans including performance monitoring and business case. | I55: 0 | K55: NONE | L55: 0 | M55: FULL
A56: S8 | B56: Classify assets, asset systems, life cycle stages and activities. | I56: 0 | K56: NONE | L56: 0 | M56: FULL
A57: S9 | B57: Plan and manage projects. | I57: 0 | K57: NONE | L57: 0 | M57: FULL
A58: S10 | B58: Assess asset health; condition and performance. | I58: 0 | K58: NONE | L58: 0 | M58: FULL
A59: S11 | B59: Select and apply fault finding technique(s) to identify causes and effects of assets/asset system failures. | I59: 0 | K59: NONE | L59: 0 | M59: FULL
A60: S12 | B60: Apply continuous improvement techniques. | I60: 0 | K60: NONE | L60: 0 | M60: FULL
A61: S13 | B61: Assess and quantify asset, asset system and asset management activity-related risks; identify mitigation options. | I61: 0 | K61: NONE | L61: 0 | M61: FULL
A62: S14 | B62: Comply with legislation, asset management standards and company policies. | I62: 0 | K62: PARTIAL | L62: =IF(J62=1,0.5,IF(J62=0.5,0.5,IF(J62=0,0))) -> 0 | M62: =IF(L62=0.5,"NONE",IF(L62=0,"PARTIAL")) -> PARTIAL
A63: S15 | B63: Use information technology systems and processes: for example, asset registers, work management systems, word processing, spreadsheets, email, presentation. | I63: 0 | K63: NONE | L63: 0 | M63: FULL
A64: S16 | B64: Collate and analyse asset/asset system data and information. | I64: 0 | K64: NONE | L64: =IF(J64=1,1,IF(J64=0.5,0.5,IF(J64=0,0))) -> 0 | M64: =IF(L64=1,"NONE",IF(L64=0.5,"PARTIAL",IF(L64=0,"FULL"))) -> FULL
A65: S17 | B65: Interpret and present data - qualitative and/or quantitative. | I65: 0 | K65: NONE | L65: 0 | M65: FULL
A66: S18 | B66: Communicate with colleagues and stakeholders – verbal, written and presentation. | I66: 0 | K66: NONE | L66: =IF(J66=1,1,IF(J66=0.5,0.5,IF(J66=0,0))) -> 0 | M66: =IF(L66=1,"NONE",IF(L66=0.5,"PARTIAL",IF(L66=0,"FULL"))) -> FULL
B67: Behaviours
A68: B1 | B68: Committed to compliance with legislation, asset management standards and company policies. | I68: =IF(C68:C74 = "FULLY MET",1,IF(C68:C74 = "PARTIALLY MET",0.5,IF(C68:C74 = "NOT MET",0,))) -> 0 | K68: PARTIAL | L68: =IF(J68=1,0.5,IF(J68=0.5,0.5,IF(J68=0,0))) -> 0 | M68: =IF(L68=0.5,"NONE",IF(L68=0,"PARTIAL")) -> PARTIAL
A69: B2 | B69: Focusses on value and outcomes in alignment with organisational objectives and stakeholders’ expectations. | I69: 0 | K69: PARTIAL | L69: =IF(J69=1,0.5,IF(J69=0.5,0.5,IF(J69=0,0))) -> 0 | M69: =IF(L69=0.5,"NONE",IF(L69=0,"PARTIAL")) -> PARTIAL
A70: B3 | B70: Collaborates, within teams and across disciplines. | I70: 0 | K70: NONE | L70: =IF(J70=1,1,IF(J70=0.5,0.5,IF(J70=0,0))) -> 0 | M70: =IF(L70=1,"NONE",IF(L70=0.5,"PARTIAL",IF(L70=0,"FULL"))) -> FULL
A71: B4 | B71: Shares knowledge and good practice, gives and receives feedback, help and support. | I71: 0 | K71: NONE | L71: 0 | M71: FULL
A72: B5 | B72: Adaptable for example, seeks new ways of working. | I72: 0 | K72: NONE | L72: =IF(J72=1,1,IF(J72=0.5,0.5,IF(J72=0,0))) -> 0 | M72: =IF(L72=1,"NONE",IF(L72=0.5,"PARTIAL",IF(L72=0,"FULL"))) -> FULL
A73: B6 | B73: Reliable and self-motivated, takes responsibility for work and seeks to deliver against personal objectives. | I73: 0 | K73: NONE | L73: 0 | M73: FULL
A74: B7 | B74: Committed to continued professional development. | I74: 0 | K74: NONE | L74: =IF(J74=1,1,IF(J74=0.5,0.5,IF(J74=0,0))) -> 0 | M74: =IF(L74=1,"NONE",IF(L74=0.5,"PARTIAL",IF(L74=0,"FULL"))) -> FULL
I77: Gross score | J77: =SUM(J22:J74) -> 0 | K77: Net Score | L77: =SUM(L22:L74) -> 0
I78: total KSB coverage | J78: =J77/L81 -> 0 | K78: total CoE KSB coverage | L78: =L77/L84 -> 0
K81: total KSBs | L81: 51
K82: fully mitigated | L82: 0
K83: partially mitigated | L83: 4
K84: net KSB | L84: =L81-L82-(L83*0.5) -> 49

Sheet ST0875
B1: START HERE
B2: Awarding body/Applicant:
B3: Please type the name of awarding body/applicant here
B4: Qualification name:
B5: Please type your qualification title here
B6: Programme title if applicable:
B7: Please type the programme title here
A10: EXAMPLE OF KSB MAPPING
A11: KSB | B11: KSB Statement | C11: KSB coverage Select the coverage provided by the qualification from the dropdown box | D11: Where in the qualification is the relevant content? Please reference precisely where the content you are citing as evidence is within the submitted documents - Document name/Module name/Specific page number | E11: Evidence Quote or copy & paste the relevant content from your referenced qualification documents. Please provide 1 - 3 references that best evidence the KSB and only refer to content that all students will cover regardless of option choice. The information you supply in this column, in conjunction with the Supporting Comments / Rationale column (Column F) should clearly and explicitly demonstrate the declared level of KSB coverage. | F11: Supporting Comments/Rationale Where the evidence in Column E does not clearly and explicitly provide the declared level of coverage or might not be obvious to someone who is not an expert in your qualification, use this space to explain how the level of KSB coverage is achieved by the qualification content - please be specific to the wording and meaning of the KSB statement. Where a KSB is not fully met, please provide the rationale for why you feel this is not achievable. | G11: Assessment method Provide information on the method(s) used to assess this KSB and relevant assessment materials.
A12: K7 | B12: Safe and professional working practices including health, safety, environment and legislative requirements relevant to the sector, the organisation and own role | C12: FULLY MET | D12: Qualification specification, pg 14-16 Module 2: Health, safety and professional working practices, pg 6 | E12: Module 2: LO1 - Understand the importance of health and safety in the workplace. LO2 - Understand the application of health and safety legislation in the workplace. LO3 - Understand how to apply safe working practices to work activities. Indicative content: local, regional, national health & safety regulations, codes of practice, site safety, health & safety promotion, health & safety measures, PPE, manual handling, equipment management, waste disposal, risk management, risk assessment | F12: Learners will be able to show a full understanding of Health & Safety and legislative requirements relevant to the role. The indicative content on Pg 16 of the qualification specification shows they will cover Health & Safety across the wider sector, and then identify some measures that may be specific to certain organisations. Learners will also analyse the role of the employer and the environment with regards to applying Health & Safety working practices and processes. | G12: Module 2 - students will produce a written report using a brief. There is also a short answer paper. Module 2 Assessment Brief pg 7-8 refers.
A13: S23 | B13: Communicate effectively (verbal, non-verbal, written, digital) in manner relevant to the target audience | C13: FULLY MET | D13: Qualification specification, pg 21-22 Module 6: The Fundamentals of Practice, pg 12 Module 9: Personal and Professional Development Skills, pg 11 | E13: Module 6: LO2 - Know how to use digital devices and databases relevant to your workplace. Module 9: LO1 - Understand the uses of different methods of communication. LO3 - Be able to communicate effectively with different audiences. Indicative content: verbal and non-verbal communication skills, presentation skills, academic and non-academic writing style, writing skills | F13: Learners will cover verbal, non-verbal, written and digital communications, and demonstrate practical skills by completing assessment tasks which will include simulated work environments and preparing presentations targeting different audiences. Learners will develop the skills to communicate with people in a professional capacity including co-workers, line managers, clients, contractors and the public. | G13: Module 6 - case study. Module 9 - scenarios in simulated work environment, students will produce presentation. Module 9 assessment pg 4.
B18: Small vessel chief engineer (level 4)
B19: Return to Guide
A20: KSB | B20: KSB Statement | C20: KSB coverage Select the coverage provided by the qualification from the dropdown box | D20: Where in the qualification is the relevant content? Please reference precisely where the content you are citing as evidence is within the submitted documents - Document name/Module name/Specific page number | E20: Evidence Quote or copy & paste the relevant content from your referenced qualification documents. Please provide 1 - 3 references that best evidence the KSB and only refer to content that all students will cover regardless of option choice. The information you supply in this column, in conjunction with the Supporting Comments / Rationale column (Column F) should clearly and explicitly demonstrate the declared level of KSB coverage. | F20: Supporting Comments/Rationale Where the evidence in Column E does not clearly and explicitly provide the declared level of coverage or might not be obvious to someone who is not an expert in your qualification, use this space to explain how the level of KSB coverage is achieved by the qualification content - please be specific to the wording and meaning of the KSB statement. Where a KSB is not fully met, please provide the rationale for why you feel this is not achievable. | G20: Assessment method Provide information on the method(s) used to assess this KSB and relevant assessment materials. | I20: AB Score | J20: IM Score | K20: Mitigations | L20: CoE Score | M20: Outstanding Requirement | N20: IM Comment | O20: IM moderation | P20: G7 QA | Q20: IM G7 Response | R20: Conclusion
B21: Knowledge
A22: K1 | B22: Understand the reason for determining voyage needs; fuel, lubricants, water, stores, expendables. [MCA] | I22: =IF(C22:C71 = "FULLY MET",1,IF(C22:C71 = "PARTIALLY MET",0.5,IF(C22:C71 = "NOT MET",0,))) -> 0 | K22: NONE | L22: =IF(J22=1,1,IF(J22=0.5,0.5,IF(J22=0,0))) -> 0 | M22: =IF(L22=1,"NONE",IF(L22=0.5,"PARTIAL",IF(L22=0,"FULL"))) -> FULL
A23: K2 | B23: Understand the necessity for routine maintenance and the reasons for maintaining records of machinery and its performance. [MCA] | I23: 0 | K23: NONE | L23: =IF(J23=1,1,IF(J23=0.5,0.5,IF(J23=0,0))) -> 0 | M23: =IF(L23=1,"NONE",IF(L23=0.5,"PARTIAL",IF(L23=0,"FULL"))) -> FULL
A24: K3 | B24: Understand the consequences of sailing with certain items of machinery inoperative and the risks involved in doing so. [MCA] | I24: 0 | K24: NONE | L24: 0 | M24: FULL
A25: K4 | B25: Understand the (Chief Engineer’s) responsibilities and duties concerning bunkering or refuelling operations. [MCA] | I25: 0 | K25: NONE | L25: 0 | M25: FULL
A26: K5 | B26: The methods of dealing with fire on board ship. Prevention of the spread of fire. The organisation and direction of fire-fighting and lifesaving parties. [MCA] | I26: 0 | K26: NONE | L26: 0 | M26: FULL
A27: K6 | B27: Care and management of steering systems and bow thrusters. [MCA] | I27: 0 | K27: NONE | L27: 0 | M27: FULL
A28: K7 | B28: Care and management of pumping systems. [MCA] | I28: 0 | K28: NONE | L28: 0 | M28: FULL
A29: K8 | B29: Care and management of oily water separator equipment. [MCA] | I29: 0 | K29: NONE | L29: 0 | M29: FULL
A30: K9 | B30: (a) Construction, maintenance and operation of fire-fighting equipment, (b) Fire detection and prevention. [MCA] | I30: 0 | K30: NONE | L30: 0 | M30: FULL
A31: K10 | B31: (a) Codes of safe working practices, risk assessment, permit to work (entry into enclosed space, hot work, electrical work), (b) The dangers of entering enclosed spaces. [MCA] | I31: 0 | K31: NONE | L31: 0 | M31: FULL
A32: K11 | B32: Routine operational duties and the effect of legislation on engine room operations. [MCA] | I32: 0 | K32: NONE | L32: 0 | M32: FULL
A33: K12 | B33: Working principles and constructional details of marine engines, gears, clutches and ancillary equipment. [MCA] | I33: 0 | K33: NONE | L33: 0 | M33: FULL
A34: K13 | B34: Fuel oil, lubrication oil, and cooling systems of marine engines together with ancillary systems including filters, pumps, heat exchangers and controls. [MCA] | I34: 0 | K34: NONE | L34: 0 | M34: FULL
A35: K14 | B35: (a) Methods of manoeuvring, including bridge control systems, variable pitch propellers and bow thrusters, (b) Emergency controls. [MCA] | I35: 0 | K35: NONE | L35: 0 | M35: FULL
A36: K15 | B36: Working principles and constructional details of air compressors, air receivers and associated equipment. [MCA] | I36: 0 | K36: NONE | L36: 0 | M36: FULL
A37: K16 | B37: Operational testing and fault rectification of basic control systems and alarm panels. [MCA] | I37: 0 | K37: NONE | L37: 0 | M37: FULL
A38: K17 | B38: Safe and efficient operation and maintenance of marine engines and propulsion systems. [MCA] | I38: 0 | K38: NONE | L38: 0 | M38: FULL
A39: K18 | B39: Knowledge of the International Convention for the Prevention of Pollution from Ships (MARPOL) Annexes and implementations. [MCA] | I39: 0 | K39: NONE | L39: 0 | M39: FULL
A40: K19 | B40: Principles of stability, water tight and watertight integrity, free surface effect and reserve buoyancy. [MCA] | I40: 0 | K40: NONE | L40: 0 | M40: FULL
A41: K20 | B41: Basic understanding of International Safety Management (ISM). [MCA] | I41: 0 | K41: NONE | L41: 0 | M41: FULL
A42: K21 | B42: Principles and constructional details of sensing, monitoring and measuring devices associated with marine equipment. [MCA] | I42: 0 | K42: NONE | L42: 0 | M42: FULL
A43: K22 | B43: Principles involved with the operation, testing and maintenance of propulsive transmission systems, including thrust and shaft bearings, stern tubes and propellers. [MCA] | I43: 0 | K43: NONE | L43: 0 | M43: FULL
A44: K23 | B44: Principles involved with the operation, testing and maintenance of bilge and ballast pumps, pumping and priming systems including pollution prevention equipment and systems. [MCA] | I44: 0 | K44: NONE | L44: 0 | M44: FULL
A45: K24 | B45: Principles involved with the operation, testing and maintenance of steering and stabilizing systems including bow thrusters. [MCA] | I45: 0 | K45: NONE | L45: 0 | M45: FULL
A46: K25 | B46: Principles involved with operation, testing and maintenance of control and alarm systems associated with automatic operation of marine steam plant. [MCA] | I46: 0 | K46: NONE | L46: 0 | M46: FULL
A47: K26 | B47: Principles involved with the operation, testing and maintenance of: a. marine diesel engines (medium and high speed); gearing systems and clutches; b. starting and reversing systems; c. cooling and lubrication systems; d. fuel oil preparation systems; e. air compressors, receivers and associated equipment; f. auxiliary diesel engines and associated equipment; g. control and alarm systems associated with automatic operation of a diesel plant. [MCA] | I47: 0 | K47: NONE | L47: 0 | M47: FULL
A48: K27 | B48: Methods of assessment of power output and diesel plant efficiency and action to be taken to maintain safe and efficient operation of plant. [MCA] | I48: 0 | K48: NONE | L48: 0 | M48: FULL
A49: K28 | B49: Methods of testing fuel oil, lubrication oil and cooling water and action to be taken to maintain safe conditions. [MCA] | I49: 0 | K49: NONE | L49: 0 | M49: FULL
A50: K29 | B50: Types of information issued by the MCA with respect to safety at sea. [MCA] | I50: 0 | K50: NONE | L50: 0 | M50: FULL
A51: K30 | B51: Responsibilities of a chief engineer officer with regard to the control and prevention of fire: a. precautions against fire or explosions, explosive mixtures and sources of ignition; b. principles and methods of fire prevention, detection and extinction in all areas of a ship; c. principles of the operation, testing and maintenance of fire detection and extinguishing systems; d. principles of the operation, testing and maintenance of fire pumps and associated pumping systems; e. control and organization of fire and damage control parties. [MCA] | I51: 0 | K51: NONE | L51: 0 | M51: FULL
A52: K31 | B52: Knowledge and understanding of applications and maintenance of ISM codes and system. [MCA] | I52: 0 | K52: NONE | L52: 0 | M52: FULL
A53: K32 | B53: Organisation and control procedures necessary for the safe and efficient operation in the Unmanned Maritime Systems (UMS) mode. [MCA] | I53: 0 | K53: NONE | L53: 0 | M53: FULL
A54: K33 | B54: Principles of the operation, testing and maintenance of: a. alternators, generators, motors, switch gear and batteries; b. ac and dc distribution systems. [MCA] | I54: 0 | K54: NONE | L54: 0 | M54: FULL
A55: K34 | B55: Fault finding and rectification of faults in electrical systems. [MCA] | I55: 0 | K55: NONE | L55: 0 | M55: FULL
A56: K35 | B56: Administration duties of a chief engineer associated with: a. organisation and training of staff for normal and emergency duties; b. organisation of temporary and permanent repairs and surveys – Company approval and Classification society. [MCA] | I56: 0 | K56: NONE | L56: 0 | M56: FULL
A57: K36 | B57: Ensuring ship is in seaworthy condition prior to sailing taking into account nature of voyage. [MCA] | I57: 0 | K57: NONE | L57: 0 | M57: FULL
A58: K37 | B58: Dry docking, hull surveys and repairs. [MCA] | I58: 0 | K58: NONE | L58: 0 | M58: FULL
A59: K38 | B59: The introduction of increased automation, artificial intelligence, and emerging technologies in the maritime sector. | I59: 0 | K59: NONE | L59: 0 | M59: FULL
A60: K39 | B60: Project management techniques: setting objectives, planning and monitoring. | I60: 0 | K60: NONE | L60: 0 | M60: FULL
A61: K40 | B61: Commercial awareness; costing and budgeting principles. | I61: 0 | K61: NONE | L61: 0 | M61: FULL
A62: K41 | B62: Resource management considerations: cost, quality, safety, security, and environmental impact. | I62: 0 | K62: NONE | L62: 0 | M62: FULL
A63: K42 | B63: Problem solving tools and techniques: root cause analysis. | I63: 0 | K63: NONE | L63: 0 | M63: FULL
A64: K43 | B64: Marine industry terminology. | I64: 0 | K64: NONE | L64: 0 | M64: FULL
A65: K44 | B65: Communication techniques: verbal and written. | I65: 0 | K65: NONE | L65: 0 | M65: FULL
A66: K45 | B66: Report writing techniques. | I66: 0 | K66: NONE | L66: 0 | M66: FULL
A67: K46 | B67: Documentation requirements and importance. | I67: 0 | K67: NONE | L67: 0 | M67: FULL
A68: K47 | B68: Information technology: word processing, spreadsheets, e-mail, and presentation. IT applications for technical reporting. | I68: 0 | K68: NONE | L68: 0 | M68: FULL
A69: K48 | B69: Sustainability: current practices and developments in the sector. | I69: 0 | K69: NONE | L69: 0 | M69: FULL
A70: K49 | B70: Ethical practices. | I70: 0 | K70: NONE | L70: 0 | M70: FULL
A71: K50 | B71: Equality, diversity, and inclusion awareness. | I71: 0 | K71: NONE | L71: 0 | M71: FULL
B72: Skills
A73: S1 | B73: Take personal emergency action onboard a vessel. [MCA] | I73: =IF(C73:C93 = "FULLY MET",1,IF(C73:C93 = "PARTIALLY MET",0.5,IF(C73:C93 = "NOT MET",0,))) -> 0 | K73: PARTIAL | L73: =IF(J73=1,0.5,IF(J73=0.5,0.5,IF(J73=0,0))) -> 0 | M73: =IF(L73=0.5,"NONE",IF(L73=0,"PARTIAL")) -> PARTIAL
A74: S2 | B74: Respond to emergencies onboard a vessel. [MCA] | I74: 0 | K74: NONE | L74: =IF(J74=1,1,IF(J74=0.5,0.5,IF(J74=0,0))) -> 0 | M74: =IF(L74=1,"NONE",IF(L74=0.5,"PARTIAL",IF(L74=0,"FULL"))) -> FULL
A75: S3 | B75: Take control of survival craft and rescue boats. [MCA] | I75: 0 | K75: PARTIAL | L75: =IF(J75=1,0.5,IF(J75=0.5,0.5,IF(J75=0,0))) -> 0 | M75: =IF(L75=0.5,"NONE",IF(L75=0,"PARTIAL")) -> PARTIAL
A76: S4 | B76: Take charge of an engine room watch. [MCA] | I76: 0 | K76: PARTIAL | L76: =IF(J76=1,0.5,IF(J76=0.5,0.5,IF(J76=0,0))) -> 0 | M76: PARTIAL
A77: S5 | B77: Prepare and operate vessel propulsion machinery and ancillary systems. [MCA] | I77: 0 | K77: NONE | L77: =IF(J77=1,1,IF(J77=0.5,0.5,IF(J77=0,0))) -> 0 | M77: =IF(L77=1,"NONE",IF(L77=0.5,"PARTIAL",IF(L77=0,"FULL"))) -> FULL
A78: S6 | B78: Operate vessel ancillaries and service machinery. [MCA] | I78: 0 | K78: NONE | L78: =IF(J78=1,1,IF(J78=0.5,0.5,IF(J78=0,0))) -> 0 | M78: =IF(L78=1,"NONE",IF(L78=0.5,"PARTIAL",IF(L78=0,"FULL"))) -> FULL
A79: S7 | B79: Operate and adjust vessel electrical systems. [MCA] | I79: 0 | K79: NONE | L79: 0 | M79: FULL
A80: S8 | B80: Carry out maintenance to vessel electrical machinery and systems. [MCA] | I80: 0 | K80: NONE | L80: 0 | M80: FULL
A81: S9 | B81: Carry out maintenance to vessel mechanical machinery and systems. [MCA] | I81: 0 | K81: NONE | L81: 0 | M81: FULL
A82: S10 | B82: Maintain personal health, safety and environmental standards onboard a vessel. [MCA] | I82: 0 | K82: NONE | L82: 0 | M82: FULL
A83: S11 | B83: Maintain safe, legal and effective working practices onboard a vessel. [MCA] | I83: 0 | K83: NONE | L83: 0 | M83: FULL
A84: S12 | B84: Maintain and enhance productive working relationships onboard a vessel. [MCA] | I84: 0 | K84: PARTIAL | L84: =IF(J84=1,0.5,IF(J84=0.5,0.5,IF(J84=0,0))) -> 0 | M84: =IF(L84=0.5,"NONE",IF(L84=0,"PARTIAL")) -> PARTIAL
A85: S13 | B85: Identify costs and create a draft budget for sign-off. | I85: 0 | K85: NONE | L85: 0 | M85: FULL
A86: S14 | B86: Apply project management techniques. | I86: 0 | K86: NONE | L86: 0 | M86: FULL
A87: S15 | B87: Identify, organise, and use resources to complete tasks. | I87: 0 | K87: NONE | L87: 0 | M87: FULL
A88: S16 | B88: Diagnose problems. Resolve or escalate problems in line with responsibilities. | I88: 0 | K88: NONE | L88: 0 | M88: FULL
A89: S17 | B89: Review work to identify improvements. | I89: 0 | K89: NONE | L89: 0 | M89: FULL
A90: S18 | B90: Communicate verbally and in writing with others for example, colleagues and contractors onboard or ashore. | I90: 0 | K90: NONE | L90: 0 | M90: FULL
A91: S19 | B91: Complete documentation for example, machinery space logbook and oil record book. | I91: 0 | K91: NONE | L91: =IF(J91=1,1,IF(J91=0.5,0.5,IF(J91=0,0))) -> 0 | M91: =IF(L91=1,"NONE",IF(L91=0.5,"PARTIAL",IF(L91=0,"FULL"))) -> FULL
A92: S20 | B92: Write technical reports. | I92: 0 | K92: NONE | L92: =IF(J92=1,1,IF(J92=0.5,0.5,IF(J92=0,0))) -> 0 | M92: =IF(L92=1,"NONE",IF(L92=0.5,"PARTIAL",IF(L92=0,"FULL"))) -> FULL
A93: S21 | B93: Use information technology for example, word processing, spreadsheets, email, and presentation. | I93: 0 | K93: NONE | L93: 0 | M93: FULL
B94: Behaviours
A95: B1 | B95: Promote and adopt a safety culture. | I95: =IF(C95:C100 = "FULLY MET",1,IF(C95:C100 = "PARTIALLY MET",0.5,IF(C95:C100 = "NOT MET",0,))) -> 0 | K95: NONE | L95: =IF(J95=1,1,IF(J95=0.5,0.5,IF(J95=0,0))) -> 0 | M95: =IF(L95=1,"NONE",IF(L95=0.5,"PARTIAL",IF(L95=0,"FULL"))) -> FULL
A96: B2 | B96: Committed to protecting the marine environment from pollution. | I96: 0 | K96: NONE | L96: =IF(J96=1,1,IF(J96=0.5,0.5,IF(J96=0,0))) -> 0 | M96: FULL
A97: B3 | B97: Take personal responsibility for their actions. | I97: 0 | K97: NONE | L97: 0 | M97: FULL
A98: B4 | B98: Committed to quality and continuous improvement. | I98: 0 | K98: NONE | L98: 0 | M98: FULL
A99: B5 | B99: Role-model equality and diversity expectations and requirements. | I99: 0 | K99: NONE | L99: 0 | M99: FULL
A100: B6 | B100: Actively pursue professional development to maintain and enhance their competence. | I100: 0 | K100: NONE | L100: 0 | M100: FULL
K101: NONE | L101: 0 | M101: FULL
I104: Gross score | J104: =SUM(J22:J101) -> 0 | K104: Net Score | L104: =SUM(L22:L101) -> 0
I105: total KSB coverage | J105: =J104/L108 -> 0 | K105: total CoE KSB coverage | L105: =L104/L111 -> 0
K108: total KSBs | L108: 77
K109: fully mitigated | L109: 0
K110: partially mitigated | L110: 4
K111: net KSB | L111: =L108-L109-(L110*0.5) -> 75

Sheet ST0999
B1: START HERE
B2: Awarding body/Applicant:
B3: Please type the name of awarding body/applicant here
B4: Qualification name:
B5: Please type your qualification title here
B6: Programme title if applicable:
B7: Please type the programme title here
A10: EXAMPLE OF KSB MAPPING
A11: KSB | B11: KSB Statement | C11: KSB coverage Select the coverage provided by the qualification from the dropdown box | D11: Where in the qualification is the relevant content? Please reference precisely where the content you are citing as evidence is within the submitted documents - Document name/Module name/Specific page number | E11: Evidence Quote or copy & paste the relevant content from your referenced qualification documents. Please provide 1 - 3 references that best evidence the KSB and only refer to content that all students will cover regardless of option choice. The information you supply in this column, in conjunction with the Supporting Comments / Rationale column (Column F) should clearly and explicitly demonstrate the declared level of KSB coverage. | F11: Supporting Comments/Rationale Where the evidence in Column E does not clearly and explicitly provide the declared level of coverage or might not be obvious to someone who is not an expert in your qualification, use this space to explain how the level of KSB coverage is achieved by the qualification content - please be specific to the wording and meaning of the KSB statement. Where a KSB is not fully met, please provide the rationale for why you feel this is not achievable. | G11: Assessment method Provide information on the method(s) used to assess this KSB and relevant assessment materials.
A12: K7 | B12: Safe and professional working practices including health, safety, environment and legislative requirements relevant to the sector, the organisation and own role | C12: FULLY MET | D12: Qualification specification, pg 14-16 Module 2: Health, safety and professional working practices, pg 6 | E12: Module 2: LO1 - Understand the importance of health and safety in the workplace. LO2 - Understand the application of health and safety legislation in the workplace. LO3 - Understand how to apply safe working practices to work activities. Indicative content: local, regional, national health & safety regulations, codes of practice, site safety, health & safety promotion, health & safety measures, PPE, manual handling, equipment management, waste disposal, risk management, risk assessment | F12: Learners will be able to show a full understanding of Health & Safety and legislative requirements relevant to the role. The indicative content on Pg 16 of the qualification specification shows they will cover Health & Safety across the wider sector, and then identify some measures that may be specific to certain organisations. Learners will also analyse the role of the employer and the environment with regards to applying Health & Safety working practices and processes. | G12: Module 2 - students will produce a written report using a brief. There is also a short answer paper. Module 2 Assessment Brief pg 7-8 refers.
A13: S23 | B13: Communicate effectively (verbal, non-verbal, written, digital) in manner relevant to the target audience | C13: FULLY MET | D13: Qualification specification, pg 21-22 Module 6: The Fundamentals of Practice, pg 12 Module 9: Personal and Professional Development Skills, pg 11 | E13: Module 6: LO2 - Know how to use digital devices and databases relevant to your workplace. Module 9: LO1 - Understand the uses of different methods of communication. LO3 - Be able to communicate effectively with different audiences. Indicative content: verbal and non-verbal communication skills, presentation skills, academic and non-academic writing style, writing skills | F13: Learners will cover verbal, non-verbal, written and digital communications, and demonstrate practical skills by completing assessment tasks which will include simulated work environments and preparing presentations targeting different audiences. Learners will develop the skills to communicate with people in a professional capacity including co-workers, line managers, clients, contractors and the public. | G13: Module 6 - case study. Module 9 - scenarios in simulated work environment, students will produce presentation. Module 9 assessment pg 4.
B18: Lead engineering maintenance technician (level 4)
B19: Return to Guide
A20: KSB | B20: KSB Statement | C20: KSB coverage Select the coverage provided by the qualification from the dropdown box | D20: Where in the qualification is the relevant content? Please reference precisely where the content you are citing as evidence is within the submitted documents - Document name/Module name/Specific page number | E20: Evidence Quote or copy & paste the relevant content from your referenced qualification documents. Please provide 1 - 3 references that best evidence the KSB and only refer to content that all students will cover regardless of option choice. The information you supply in this column, in conjunction with the Supporting Comments / Rationale column (Column F) should clearly and explicitly demonstrate the declared level of KSB coverage. | F20: Supporting Comments/Rationale Where the evidence in Column E does not clearly and explicitly provide the declared level of coverage or might not be obvious to someone who is not an expert in your qualification, use this space to explain how the level of KSB coverage is achieved by the qualification content - please be specific to the wording and meaning of the KSB statement. Where a KSB is not fully met, please provide the rationale for why you feel this is not achievable. | G20: Assessment method Provide information on the method(s) used to assess this KSB and relevant assessment materials. | I20: AB Score | J20: IM Score | K20: Mitigations | L20: CoE Score | M20: Outstanding Requirement | N20: IM Comment | O20: IM moderation | P20: G7 QA | Q20: IM G7 Response | R20: Conclusion
B21: Knowledge
A22: K1 | B22: Awareness of health and safety regulations, relevance to the occupation and the technician's responsibilities. Health and safety regulations. | I22: =IF(C22:C46 = "FULLY MET",1,IF(C22:C46 = "PARTIALLY MET",0.5,IF(C22:C46 = "NOT MET",0,))) -> 0 | K22: NONE | L22: =IF(J22=1,1,IF(J22=0.5,0.5,IF(J22=0,0))) -> 0 | M22: =IF(L22=1,"NONE",IF(L22=0.5,"PARTIAL",IF(L22=0,"FULL"))) -> FULL
A23: K2 | B23: Risk identification, risk assessments, mitigations and safe systems of work. | I23: 0 | K23: NONE | L23: 0 | M23: FULL
A24: K3 | B24: Awareness of environment and sustainability regulations, relevance to the occupation and the technician’s responsibilities. Environment and sustainability. Environmental Protection Act - responsibilities. Types of pollution and control measures: noise, smells, spills, and waste. Sustainability. Resource Management. Environmental permits. Waste management. Waste Electrical and Electronic Equipment Directive (WEEE). Hazardous waste regulations. Re-cyclable materials and waste disposal procedures. Energy consumption and usage profiling. Data logging to optimise energy performance. The Climate Change Agreements. Carbon Reduction Commitment (CRC). | I24: 0 | K24: NONE | L24: 0 | M24: FULL
A25: K4 | B25: Engineering mathematical and scientific principles: methods, techniques, graphical expressions, symbols, formulae and calculations. | I25: 0 | K25: NONE | L25: 0 | M25: FULL
A26: K5 | B26: Engineering materials: characteristics, properties and impact on use. | I26: 0 | K26: NONE | L26: 0 | M26: FULL
A27: K6 | B27: Problem solving techniques: diagnostics, root cause analysis, 6 thinking hats, DMAIC (Define, Measure, Analyse, Improve, Control), PDCA (Plan Do Check Act). Fault finding techniques: root cause analysis, 5 Whys’, fishbone, half-split. | I27: 0 | K27: NONE | L27: 0 | M27: FULL
A28: K7 | B28: Maintenance and engineering strategies, practices and techniques: planned, preventative, predictive and reactive. | I28: 0 | K28: NONE | L28: 0 | M28: FULL
A29: K8 | B29: Standard operating procedures and work instructions: rationale, review and updates. | I29: 0 | K29: NONE | L29: 0 | M29: FULL
A30: K9 | B30: Engineering, manufacturing and maintenance technical information, related documentation, such as job records, service reports, checklists and condemn notices; representations, drawings, graphical information, visuals and symbols. | I30: 0 | K30: NONE | L30: 0 | M30: FULL
A31: K10 | B31: Manufacturers’ instructions: what they are and how to use them. Warranties: what they are and impact on engineering maintenance work. | I31: 0 | K31: NONE | L31: 0 | M31: FULL
A32: K11 | B32: Awareness of engineering international, national and regulatory standards, relevance to the occupation and technician’s responsibilities. British Standards (BS). International Organisation for Standardisation standards (ISO). European Norm (EN). | I32: 0 | K32: NONE | L32: 0 | M32: FULL
A33: K12 | B33: The function of an engineering maintenance department. Limits of autonomy and reporting channels. Different teams and functions involved in operation and interdependencies. | I33: 0 | K33: NONE | L33: 0 | M33: FULL
A34: K13 | B34: Leadership and management techniques: customer relationship management, negotiating, influencing, networking, commercial awareness, conflict management and assertiveness. | I34: 0 | K34: NONE | L34: 0 | M34: FULL
A35: K14 | B35: Workplace training and development and competence assurance techniques in the workplace. How to pass on knowledge to colleagues and provide guidance to customers or stakeholders. | I35: 0 | K35: NONE | L35: 0 | M35: FULL
A36: K15 | B36: Planning, prioritising, work scheduling, workflow and time management techniques. Work management systems. Work categorisation systems. | I36: 0 | K36: NONE | L36: 0 | M36: FULL
A37: K16 | B37: Verbal communication techniques: Matching style to audience. Barriers in communication and how to overcome them. Engineering terminology. | I37: 0 | K37: NONE | L37: 0 | M37: FULL
A38: K17 | B38: Communication techniques: written. Writing using plain English principles. Report writing. | I38: 0 | K38: NONE | L38: 0 | M38: FULL
A39: K18 | B39: The engineering maintenance sector. Regulators. Types of employers. Clients. Supply chain. Stakeholders. Audits. | I39: 0 | K39: NONE | L39: 0 | M39: FULL
A40: K19 | B40: Resources: Human, physical, space, documentation, tooling, specialist equipment, spares and materials: Stock and services considerations. | I40: 0 | K40: NONE | L40: 0 | M40: FULL
A41: K20 | B41: Awareness of Quality Management Systems (QMS) and the principles of Quality Control and Assurance, principles and practice in a maintenance and engineering environment. Relevance to the occupation and the technician’s responsibilities. | I41: 0 | K41: NONE | L41: 0 | M41: FULL
A42: K21 | B42: Continuous improvement techniques: lean, 6-sigma, KAIZEN, 5 S (Sort, set, shine, standardise and sustain). | I42: 0 | K42: NONE | L42: 0 | M42: FULL
A43: K22 | B43: Project management techniques: Strengths, Weaknesses, Opportunities, Threats (SWOT), stakeholder matrices, risk mapping and summary risk profiles. | I43: 0 | K43: NONE | L43: 0 | M43: FULL
A44: K23 | B44: Information technology: Management Information Systems (MIS), spreadsheets, presentation, word processing, email, virtual communication and learning platforms. General Data Protection Regulation (GDPR). Documentation and data collection: principles, methods and requirements - electronic and paper. Analytical data, job records, timekeeping, service reports, checklists and condemn notices. Technological development and innovation in the engineering sector. Industry 4.0. IT networking and digital twinning. | I44: 0 | K44: NONE | L44: 0 | M44: FULL
A45: K24 | B45: Business operation considerations: efficiency, customer satisfaction, competitiveness, minimising risks to operation, finance, business ethics and licenses. | I45: 0 | K45: NONE | L45: 0 | M45: FULL
A46: K25 | B46: Equality, diversity and inclusion in the workplace. | I46: 0 | K46: NONE | L46: 0 | M46: FULL
B47: Skills
A48: S1 | B48: Comply with health and safety regulations and procedures. Apply safe systems of work. | I48: =IF(C48:C69 = "FULLY MET",1,IF(C48:C69 = "PARTIALLY MET",0.5,IF(C48:C69 = "NOT MET",0,))) -> 0 | K48: NONE | L48: =IF(J48=1,1,IF(J48=0.5,0.5,IF(J48=0,0))) -> 0 | M48: =IF(L48=1,"NONE",IF(L48=0.5,"PARTIAL",IF(L48=0,"FULL"))) -> FULL
A49: S2 | B49: Comply with environmental and sustainability regulations and procedures when using resources. Segregate resources for re-use, recycling and disposal applying sustainability principles. | I49: 0 | K49: NONE | L49: =IF(J49=1,1,IF(J49=0.5,0.5,IF(J49=0,0))) -> 0 | M49: =IF(L49=1,"NONE",IF(L49=0.5,"PARTIAL",IF(L49=0,"FULL"))) -> FULL
A50: S3 | B50: Follow manufacturers’ instructions and standard maintenance procedures. | I50: 0 | K50: NONE | L50: 0 | M50: FULL
A51: S4 | B51: Identify and document risks and hazards in the workplace. Advise on and apply control measures. | I51: 0 | K51: NONE | L51: 0 | M51: FULL
A52: S5 | B52: Record or enter information - paper based or electronic. For example, job sheets, risk assessments, equipment service records, test results, handover documents and manufacturers' documentation, asset management records, work sheets, checklists, waste environmental records and any legal reporting requirements. | I52: 0 | K52: NONE | L52: 0 | M52: FULL
A53: S6 | B53: Plan and schedule tasks, projects or resources in the workplace. | I53: 0 | K53: NONE | L53: 0 | M53: FULL
A54: S7 | B54: Manage tasks, projects or resources in the workplace. | I54: 0 | K54: NONE | L54: 0 | M54: FULL
A55: S8 | B55: Evaluate tasks, projects or resources in the workplace | I55: 0 | K55: NONE | L55: 0 | M55: FULL
A56: S9 | B56: Communicate with colleagues and stakeholders verbally. | I56: 0 | K56: NONE | L56: 0 | M56: FULL
A57: S10 | B57: Communicate in writing. | I57: 0 | K57: NONE | L57: 0 | M57: FULL
A58: S11 | B58: Negotiate with colleagues or stakeholders. For example, to access equipment or arrange system outage. | I58: 0 | K58: NONE | L58: 0 | M58: FULL
A59: S12 | B59: Identify potential conflicts and apply resolution strategies. | I59: 0 | K59: NONE | L59: 0 | M59: FULL
A60: S13 | B60: Identify training needs of team members in the workplace. | I60: 0 | K60: NONE | L60: 0 | M60: FULL
A61: S14 | B61: Provide technical leadership for maintenance practices and techniques. | I61: 0 | K61: NONE | L61: 0 | M61: FULL
A62: S15 | B62: Provide technical leadership for repair practices and techniques. | I62: 0 | K62: NONE | L62: 0 | M62: FULL
A63: S16 | B63: Provide technical leadership for fault finding techniques and practices. | I63: 0 | K63: NONE | L63: 0 | M63: FULL
A64: S17 | B64: Identify problems and apply methods to identify causes and solutions. Escalate issues or concerns. | I64: 0 | K64: NONE | L64: 0 | M64: FULL
A65: S18 | B65: Comply with engineering standards and regulations. For example, ISO9001. | I65: 0 | K65: NONE | L65: 0 | M65: FULL
A66: S19 | B66: Interpret and use information from engineering data sources to apply changes. | I66: 0 | K66: NONE | L66: 0 | M66: FULL
A67: S20 | B67: Lead on continuous improvement projects. Apply continuous improvement techniques. Devise suggestions for improvement. | I67: 0 | K67: NONE | L67: 0 | M67: FULL
A68: S21 | B68: Manage technical handover of completed repair or maintenance activity. | I68: 0 | K68: NONE | L68: 0 | M68: FULL
A69: S22 | B69: Use information technology. For example, for document creation, communication, and information management in line with breakdown, repair and maintenance activities. Comply with GDPR. | I69: 0 | K69: NONE | L69: 0 | M69: FULL
B70: Behaviours
A71: B1 | B71: Prioritise and promote the environment and sustainability. | I71: =IF(C71:C78 = "FULLY MET",1,IF(C71:C78 = "PARTIALLY MET",0.5,IF(C71:C78 = "NOT MET",0,))) -> 0 | K71: NONE | L71: =IF(J71=1,1,IF(J71=0.5,0.5,IF(J71=0,0))) -> 0 | M71: =IF(L71=1,"NONE",IF(L71=0.5,"PARTIAL",IF(L71=0,"FULL"))) -> FULL
A72: B2 | B72: Prioritise and promote health and safety. | I72: 0 | K72: NONE | L72: =IF(J72=1,1,IF(J72=0.5,0.5,IF(J72=0,0))) -> 0 | M72: =IF(L72=1,"NONE",IF(L72=0.5,"PARTIAL",IF(L72=0,"FULL"))) -> FULL
A73: B3 | B73: Apply a professional approach. | I73: 0 | K73: NONE | L73: =IF(J73=1,1,IF(J73=0.5,0.5,IF(J73=0,0))) -> 0 | M73: =IF(L73=1,"NONE",IF(L73=0.5,"PARTIAL",IF(L73=0,"FULL"))) -> FULL
A74: B4 | B74: Promote adoption of emerging and advanced engineering and maintenance technologies. | I74: 0 | K74: NONE | L74: 0 | M74: FULL
A75: B5 | B75: Committed to professional development of self and others | I75: 0 | K75: NONE | L75: 0 | M75: FULL
A76: B6 | B76: Take responsibility for work. | I76: 0 | K76: NONE | L76: 0 | M76: FULL
A77: B7 | B77: Act ethically. | I77: 0 | K77: NONE | L77: 0 | M77: FULL
A78: B8 | B78: Collaborate within teams, across disciplines and external stakeholders. | I78: 0 | K78: NONE | L78: 0 | M78: FULL
I81: Gross score | J81: =SUM(J22:J78) -> 0 | K81: Net Score | L81: =SUM(L22:L78) -> 0
I82: total KSB coverage | J82: =J81/L85 -> 0 | K82: total CoE KSB coverage | L82: =L81/L88 -> 0
K85: total KSBs | L85: 55
K86: fully mitigated | L86: 0
K87: partially mitigated | L87: 0
K88: net KSB | L88: =L85-L86-(L87*0.5) -> 55

Sheet Source filters (hidden)
A4: FULLY MET
A5: PARTIALLY MET
A6: NOT MET
